Workbook

Sheet Aggregate Gradations (hidden)
A2: Aggregate Type | C2: KDOT Kansas River Sand | D2: KDOT Limestone | E2: Midwest Concrete Sand | F2: Midwest SA-1 | G2: Granite | H2: LRM - Arch (from Midwest) | I2: LRM - Pea G. | J2: Midwest 3/4 x 3/8 | K2: Stone 1 | L2: Stone 2 | M2: Stone 3 | N2: Sand 1 | O2: Sand 2 | P2: KDOT Kansas River Sand 6/17/03 | Q2: LRM Pea Gravel 6/17/03 | R2: 1" Washed Airport Limestone 10/2003 | S2: 1 1/4" Quartzite 10/2003 | T2: Quartzite Chip 10/2003 | U2: KDOT Kansas River Sand 12/12/03 | V2: ? Saif 9/2/03 | W2: KDOT Kansas River 2-18-04 | X2: Pea Gravel 2-18-04 | Y2: 3/4" KDOT Limestone 2-18-04 | Z2: 3/4" KDOT Limestone 4/29/2004 | AA2: 1" Washed Airport Limestone sieved | AB2: cement sand | AC2: 3/4" KDOT Limestone 6/18/2004 | AD2: KDOT Kansas River Sand 6/18/04 | AE2: Pea Gravel 6/18/04 | AF2: #67 Quartzite 6/23/2004 | AG2: Quartzite 1 1/4" 6/24/2004 | AH2: #67 Quartzite 6/28/2004 | AI2: Kansas 3/4in. Granite 8/3/04 | AJ2: #57 Limestone HMM 9/7/2004 | AK2: Martin Marietta Limestone 9/14/2004 | AL2: #57 Granite 9/14/2004 | AM2: #67 Quartzite 10/8/2004 | AN2: 3/4" KDOT Limestone 10/8/2004 | AO2: KDOT Sand 10/8/2004 | AP2: ACI 211.1 Apx 1 Example CA | AQ2: ACI 211.1 Apx 1 Example FA | AR2: ACI 211.1 Apx 1 Example Blending | AS2: Swapnil's next aggregate | AT2: 3/4" KDOT Limestone 01/10/2005 | AU2: 3/4" Quartzite 01/10/2005 | AV2: 3/4" Granite 01/10/2005 | AW2: KDOT Sand 01/10/2005 | AX2: LRM Pea Gravel 01/10/2005 | AY2: A1 - Granite | AZ2: A2 - River Sand | BA2: A3 - Pea Gravel | BB2: A4 - Small Deco | BC2: OK - CA #1 | BD2: OK - IA #1 | BE2: OK - FA | BF2: OK - IA #2 | BG2: 3/4" Quartzite 03/19/05 | BH2: 3/4" KDOT Limestone 03/19/05 | BI2: OK - CA #2 | BJ2: GMQ 1.5 PCCP | BK2: GMQ CA7 | BL2: GMQ 3MA (3/8") | BM2: GMQ 3/4" | BN2: MA-2 Holliday | BO2: KC 3/4" | BP2: LRM Kansas River Sand 5-5-05 | BQ2: LRM 3/4" Class 1 Limestone | BR2: LRM Kansas River Sand 6-6-05 | BS2: LRM 3/4" Class 1 Limestone 6-3-05 | BT2: LRM Pea Gravel 6-14-05 | BU2: LRM Kansas River Sand 6-23-05 | BV2: LRM 3/4" Class 1 Limestone | BW2: LRM 3/4" Class 1 Limestone 7/14/05 | BX2: LRM Pea Gravel 7/14/05 | BY2: LRM 3/4" Limestone >3/8" | BZ2: LRM 3/4" Limestone <3/8"
A3: Data # | C3: 1 | D3: 2 | E3: 3 | F3: 4 | G3: 5 | H3: 6 | I3: 7 | J3: 8 | K3: 9 | L3: 10 | M3: 11 | N3: 12 | O3: 13 | P3: 14 | Q3: 15 | R3: 16 | S3: 17 | T3: 18 | U3: 19 | V3: 20 | W3: 21 | X3: 22 | Y3: 23 | Z3: 24 | AA3: 25 | AB3: 26 | AC3: 27 | AD3: 28 | AE3: 29 | AF3: 30 | AG3: 31 | AH3: 32 | AI3: 33 | AJ3: 34 | AK3: 35 | AL3: 36 | AM3: 37 | AN3: 38 | AO3: 39 | AP3: 40 | AQ3: 41 | AR3: 42 | AS3: 43 | AT3: 44 | AU3: 45 | AV3: 46 | AW3: 47 | AX3: 48 | AY3: 49 | AZ3: 50 | BA3: 51 | BB3: 52 | BC3: 53 | BD3: 54 | BE3: 55 | BF3: 56 | BG3: 57 | BH3: 58 | BI3: 59 | BJ3: 60 | BK3: 61 | BL3: 62 | BM3: 63 | BN3: 64 | BO3: 65 | BP3: 66 | BQ3: 67 | BR3: 68 | BS3: 69 | BT3: 70 | BU3: 71 | BV3: 72 | BW3: 73 | BX3: 74 | BY3: 75 | BZ3: 76
A5: Specific Gravity | C5: 2.63 | D5: 2.58 | G5: 2.63 | R5: 2.57 | S5: 2.63 | T5: 2.63 | W5: 2.63 | X5: 2.62 | Y5: ? | AS5: 5.2 | AT5: 2.53 | AU5: 2.63 | AV5: 2.58 | AW5: 2.63 | AX5: 2.62
A6: % Absorption | C6: 0.3 | D6: 3 | G6: 0.7 | I6: 0.7 | R6: 3.92 | S6: 0.44 | T6: 0.49 | W6: 0.35 | X6: 0.6 | Y6: ? | AS6: 0.01 | AT6: 2.85 | AU6: 0.5 | AV6: 0.7 | AW6: 0.35 | AX6: 0.6
A7: % Fines | R7: 1.27 | S7: 0.6 | T7: 0.6 | W7: 1.46 | X7: 0.55 | AS7: 0 | AW7: 1.46 | AX7: 0.55
A8: Cumulative Percent Retained
A9: 1 1/2" | C9: 0 | D9: 0 | E9: 0 | F9: 0 | G9: 0 | H9: 0 | I9: 0 | J9: 0 | K9: 0 | L9: 6.5 | M9: 0 | N9: 0 | O9: 0 | P9: 0 | Q9: 0 | R9: 0 | S9: 0 | T9: 0 | U9: 0 | V9: 0 | W9: 0 | X9: 0 | Y9: 0 | Z9: 0 | AA9: 0 | AB9: 0 | AC9: 0 | AD9: 0 | AE9: 0 | AF9: 0 | AG9: 0 | AH9: 0 | AI9: 0 | AJ9: 0 | AK9: 0 | AL9: 0 | AM9: 0 | AN9: 0 | AO9: 0 | AP9: 0 | AQ9: 0 | AR9: 0 | AS9: 0 | AT9: 0 | AU9: 0 | AV9: 0 | AW9: 0 | AX9: 0 | AY9: 0 | AZ9: 0 | BA9: 0 | BB9: 0 | BC9: 0 | BD9: 0 | BE9: 0 | BF9: 0 | BG9: 0 | BH9: 0 | BI9: 0 | BJ9: 0 | BK9: 0 | BL9: 0 | BM9: 0 | BN9: 0 | BO9: 0 | BP9: 0 | BQ9: 0 | BR9: 0 | BS9: 0 | BT9: 0 | BU9: 0 | BV9: 0 | BW9: 0 | BX9: 0 | BY9: 0 | BZ9: 0
A10: 1" | C10: 0 | D10: 0 | E10: 0 | F10: 0 | G10: 0 | H10: 0 | I10: 0 | J10: 0 | K10: 0 | L10: 40 | M10: 0 | N10: 0 | O10: 0 | P10: 0 | Q10: 0 | R10: 0 | S10: 0 | T10: 0 | U10: 0 | V10: 0 | W10: 0 | X10: 0 | Y10: 0 | Z10: 0 | AA10: 0 | AB10: 0 | AC10: 0.06 | AD10: 0 | AE10: 0 | AF10: 0 | AG10: 0 | AH10: 0 | AI10: 0 | AJ10: 0 | AK10: 0 | AL10: 0.4 | AM10: 0 | AN10: 0 | AO10: 0 | AP10: 0 | AQ10: 0 | AR10: 0 | AS10: 50 | AT10: 0 | AU10: 0 | AV10: 0 | AW10: 0 | AX10: 0 | AY10: 4 | AZ10: 0 | BA10: 0 | BB10: 0 | BC10: 0 | BD10: 0 | BE10: 0 | BF10: 0 | BG10: 0 | BH10: 0 | BI10: 1.1 | BJ10: 14.1 | BK10: 0 | BL10: 0 | BM10: 0 | BN10: 0 | BO10: 0 | BP10: 0 | BQ10: 0 | BR10: 0 | BS10: 0 | BT10: 0 | BU10: 0 | BV10: 0 | BW10: 0 | BX10: 0 | BY10: 0 | BZ10: 0
A11: 3/4" | C11: 0 | D11: 0 | E11: 0 | F11: 0 | G11: 0 | H11: 0 | I11: 0 | J11: 0 | K11: 3.5 | L11: 67 | M11: 0 | N11: 0 | O11: 0 | P11: 0 | Q11: 0 | R11: 25.94 | S11: 8.31 | T11: 0 | U11: 0 | V11: 0 | W11: 0 | X11: 0 | Y11: 0 | Z11: 0 | AA11: 0 | AB11: 0 | AC11: 0.19 | AD11: 0 | AE11: 0 | AF11: 0.6361323155 | AG11: 4.339118825 | AH11: 1.58 | AI11: 2.005174644 | AJ11: 2.7 | AK11: 0 | AL11: 17.9 | AM11: 1.4 | AN11: 0 | AO11: 0 | AP11: 20.90962788 | AQ11: 0 | AR11: 0 | AS11: 80 | AT11: 0 | AU11: 2 | AV11: 1.3 | AW11: 0 | AX11: 0 | AY11: 15 | AZ11: 0 | BA11: 0 | BB11: 0 | BC11: 0.8 | BD11: 0 | BE11: 0 | BF11: 0 | BG11: 0.2 | BH11: 0 | BI11: 14.8 | BJ11: 43.5 | BK11: 0 | BL11: 0 | BM11: =100-95 -> 5 | BN11: 0 | BO11: 4 | BP11: 0 | BQ11: 0 | BR11: 0 | BS11: 0 | BT11: 0 | BU11: 0 | BV11: 0 | BW11: 0.06 | BX11: 0 | BY11: 0.1234567901 | BZ11: 0
A12: 1/2" | C12: 0 | D12: 27.9 | E12: 0 | F12: 0 | G12: 38.4 | H12: 7.9 | I12: 0 | J12: 23 | K12: 39.9 | L12: 84 | M12: 28 | N12: 0 | O12: 0 | P12: 0 | Q12: 0 | R12: 97.66 | S12: 55.24 | T12: 0.27 | U12: 0 | V12: 13.99 | W12: 0 | X12: 0 | Y12: 23.04 | Z12: 19 | AA12: 96.94570136 | AB12: 0 | AC12: 11.47 | AD12: 0 | AE12: 0 | AF12: 22.20101781 | AG12: 48.53137517 | AH12: 27.44 | AI12: 20.18111255 | AJ12: 30.5 | AK12: 18.44 | AL12: 53.84 | AM12: 29.7 | AN12: 17.5 | AO12: 0 | AP12: 65.68222091 | AQ12: 0 | AR12: 0 | AS12: 90 | AT12: 18.9 | AU12: 33.1 | AV12: 21.7 | AW12: 0 | AX12: 0 | AY12: =40.2+AY11 -> 55.2 | AZ12: 0 | BA12: 0 | BB12: 7.9 | BC12: 26.4 | BD12: 0 | BE12: 0 | BF12: 0 | BG12: 10.1 | BH12: 22.6 | BI12: 70.7 | BJ12: 73.9 | BK12: 6.5 | BL12: 0 | BM12: =100-56 -> 44 | BN12: 0 | BO12: 40 | BP12: 0 | BQ12: 17.13 | BR12: 0 | BS12: 25.3 | BT12: 0 | BU12: 0 | BV12: 25 | BW12: 21.8 | BX12: 0 | BY12: 44.85596708 | BZ12: 0
A13: 3/8" | C13: 0 | D13: 56.1 | E13: 0 | F13: 0 | G13: 66.6 | H13: 39.7 | I13: 0 | J13: 54 | K13: 65.8 | L13: 93 | M13: 47 | N13: 0 | O13: 5 | P13: 0 | Q13: 0 | R13: 99.12 | S13: 78.24 | T13: 17.77 | U13: 0 | V13: 37.01 | W13: 0 | X13: 0 | Y13: 49.5 | Z13: 45.7 | AA13: 98.92533937 | AB13: 0 | AC13: 30.13 | AD13: 0 | AE13: 0 | AF13: 57.0610687 | AG13: 75.30040053 | AH13: 55.84 | AI13: 50.9702458 | AJ13: 56.1 | AK13: 41.94 | AL13: 75.24 | AM13: 65.8 | AN13: 43.3 | AO13: 0 | AP13: 88.06851742 | AQ13: 0 | AR13: 16.4 | AS13: 95 | AT13: 44.4 | AU13: 67.5 | AV13: 51.7 | AW13: 0 | AX13: 0 | AY13: =AY12+23 -> 78.2 | AZ13: 0 | BA13: 0 | BB13: =31.8+BB12 -> 39.7 | BC13: 68.9 | BD13: 1.9 | BE13: 0 | BF13: 0 | BG13: 32.7 | BH13: 48.7 | BI13: 86.3 | BJ13: 84.1 | BK13: 44.5 | BL13: 5 | BM13: =100-23 -> 77 | BN13: 0 | BO13: =100-28 -> 72 | BP13: 0 | BQ13: 42.34 | BR13: 0 | BS13: 55.1 | BT13: 0 | BU13: 0 | BV13: 54.5 | BW13: 45.9 | BX13: 0 | BY13: 94.44444444 | BZ13: 0
A14: #4 | C14: 1.2 | D14: 94 | E14: 5 | F14: 21 | G14: 96.8 | H14: 92.4 | I14: 10.9 | J14: 98 | K14: 93.3 | L14: 97 | M14: 85 | N14: 0 | O14: 13 | P14: 0.6 | Q14: 11.8 | R14: 99.29 | S14: 95.8 | T14: 93.77 | U14: 1.2 | V14: 87.74 | W14: 1.4 | X14: 10.3 | Y14: 91.6 | Z14: 89.6 | AA14: 99.15158371 | AB14: 0 | AC14: 78.85 | AD14: 1.6 | AE14: 12.47 | AF14: 95.41984733 | AG14: 97.79706275 | AH14: 92.63 | AI14: 95.34282018 | AJ14: 92.2 | AK14: 86.61 | AL14: 96.37 | AM14: 98.1 | AN14: 88.9 | AO14: 1.4 | AP14: 100 | AQ14: 1.047904192 | AR14: 45.6 | AS14: 96 | AT14: 90.8 | AU14: 98.9 | AV14: 97.2 | AW14: 2 | AX14: 9.6 | AY14: =AY13+17.6 -> 95.8 | AZ14: 2 | BA14: 9.6 | BB14: =52.7+BB13 -> 92.4 | BC14: 97.1 | BD14: 89.4 | BE14: 4 | BF14: 53.8 | BG14: 93.5 | BH14: 90.4 | BI14: 99 | BJ14: 98.2 | BK14: 96.7 | BL14: 95.37 | BM14: =100-2 -> 98 | BN14: 0 | BO14: 98 | BP14: 0 | BQ14: 88.3 | BR14: 1.3 | BS14: 93.3 | BT14: 10.1 | BU14: 0.9 | BV14: 89.7 | BW14: 86.9 | BX14: 9.5 | BY14: 94.44444444 | BZ14: 80.23483366 | CI14: sum | CJ14: 900 | CK14: =CJ14/SUM($CJ$14:$CJ$17) -> 0.3027245207 | CL14: 30
A15: #8 | C15: 12.4 | D15: 98 | E15: 22 | F15: 65 | G15: 99.1 | H15: 97.6 | I15: 48.1 | J15: 99 | K15: 99 | L15: 98 | M15: 93 | N15: 6 | O15: 45 | P15: 10.4 | Q15: 52.8 | R15: 99.33 | S15: 98.05 | T15: 99.31 | U15: 13.8 | V15: 96.49 | W15: 14.5 | X15: 51.3 | Y15: 97.74 | Z15: 97.3 | AA15: 99.2081448 | AB15: 0 | AC15: 93.91 | AD15: 14.32 | AE15: 52.98 | AF15: 97.32824427 | AG15: 99.26568758 | AH15: 96.09 | AI15: 97.02457956 | AJ15: 97.3 | AK15: 97.81 | AL15: 97.72 | AM15: 99.7 | AN15: 97.2 | AO15: 14.2 | AP15: 100 | AQ15: 12.4251497 | AR15: 71.3 | AS15: 97 | AT15: 98.5 | AU15: 99.7 | AV15: 98.9 | AW15: 13.8 | AX15: 43.2 | AY15: =AY14+2.3 -> 98.1 | AZ15: 13.8 | BA15: =33.6+BA14 -> 43.2 | BB15: =5.2+BB14 -> 97.6 | BC15: 98.4 | BD15: 98.4 | BE15: 12 | BF15: 93.6 | BG15: 99.2 | BH15: 97.8 | BI15: 99.2 | BJ15: 100 | BK15: 98.5 | BL15: 97.36 | BM15: =100-1 -> 99 | BN15: 16 | BO15: 99 | BP15: 16.4 | BQ15: 96.54 | BR15: 11.7 | BS15: 97.3 | BT15: 56.7 | BU15: 10.9 | BV15: 95.3 | BW15: 94.3 | BX15: 50.4 | BY15: 94.44444444 | BZ15: 94.71624266 | CJ15: 560 | CK15: =CJ15/SUM($CJ$14:$CJ$17) -> 0.188361924 | CL15: 19
A16: #16 | C16: 34.2 | D16: 100 | E16: 49 | F16: 95 | G16: 99.9 | H16: 100 | I16: 83.2 | J16: 100 | K16: 99 | L16: 99 | M16: 96 | N16: 41 | O16: 48 | P16: 29.2 | Q16: 85.2 | R16: 99.91 | S16: 99.99 | T16: 100 | U16: 35.8 | V16: 100 | W16: 35.8 | X16: 84.2 | Y16: 100 | Z16: 100 | AA16: 99.2081448 | AB16: 0 | AC16: 100 | AD16: 35.25 | AE16: 83.14 | AF16: 100 | AG16: 100 | AH16: 100 | AI16: 99.80595084 | AJ16: 99.8 | AK16: 100 | AL16: 100 | AM16: 100 | AN16: 100 | AO16: 38 | AP16: 100 | AQ16: 35.25449102 | AR16: 89.6 | AS16: 98 | AT16: 100 | AU16: 100 | AV16: 100 | AW16: 33.9 | AX16: 76.9 | AY16: =AY15+1.9 -> 100 | AZ16: =AZ15+20.1 -> 33.9 | BA16: =BA15+33.7 -> 76.9 | BB16: =2.4+BB15 -> 100 | BC16: 100 | BD16: 100 | BE16: 22 | BF16: 97.2 | BG16: 100 | BH16: 100 | BI16: 100 | BJ16: 100 | BK16: 100 | BL16: 98.02 | BM16: 100 | BN16: 38 | BO16: 99 | BP16: 40.5 | BQ16: 100 | BR16: 31.5 | BS16: 99.7 | BT16: 85 | BU16: 29.8 | BV16: 95.3 | BW16: 94.3 | BX16: 85.6 | BY16: 94.44444444 | BZ16: 94.71624266 | CJ16: 270 | CK16: =CJ16/SUM($CJ$14:$CJ$17) -> 0.09081735621 | CL16: 9
A17: #30 | C17: 62 | D17: 100 | E17: 71 | F17: 99 | G17: 100 | H17: 100 | I17: 92.7 | J17: 100 | K17: 100 | L17: 100 | M17: 98 | N17: 62 | O17: 69 | P17: 54.1 | Q17: 93.1 | R17: 99.91 | S17: 99.99 | T17: 100 | U17: 63 | V17: 100 | W17: 60 | X17: 92.8 | Y17: 100 | Z17: 100 | AA17: 99.2081448 | AB17: 0 | AC17: 100 | AD17: 60.69 | AE17: 92.14 | AF17: 100 | AG17: 100 | AH17: 100 | AI17: 100 | AJ17: 100 | AK17: 100 | AL17: 100 | AM17: 100 | AN17: 100 | AO17: 65.6 | AP17: 100 | AQ17: 56.66167665 | AR17: 98.1 | AS17: 99 | AT17: 100 | AU17: 100 | AV17: 100 | AW17: 59 | AX17: 89.1 | AY17: 100 | AZ17: =AZ16+25.1 -> 59 | BA17: =BA16+12.2 -> 89.1 | BB17: 100 | BC17: 100 | BD17: 100 | BE17: 49 | BF17: 97.5 | BG17: 100 | BH17: 100 | BI17: 100 | BJ17: 100 | BK17: 100 | BL17: 100 | BM17: 100 | BN17: 69 | BO17: 99 | BP17: 67.7 | BQ17: 100 | BR17: 56.6 | BS17: 99.7 | BT17: 93.8 | BU17: 55.5 | BV17: 95.3 | BW17: 94.3 | BX17: 94.4 | BY17: 94.44444444 | BZ17: 94.71624266 | CJ17: 1243 | CK17: =CJ17/SUM($CJ$14:$CJ$17) -> 0.4180961991 | CL17: 42
A18: #50 | C18: 87.8 | D18: 100 | E18: 91 | F18: 100 | G18: 100 | H18: 100 | I18: 97.4 | J18: 100 | K18: 100 | L18: 100 | M18: 98 | N18: 83 | O18: 94 | P18: 87.1 | Q18: 97.3 | R18: 99.91 | S18: 99.99 | T18: 100 | U18: 90.1 | V18: 100 | W18: 88.6 | X18: 97.7 | Y18: 100 | Z18: 100 | AA18: 99.2081448 | AB18: 0 | AC18: 100 | AD18: 90.22 | AE18: 97.74 | AF18: 100 | AG18: 100 | AH18: 100 | AI18: 100 | AJ18: 100 | AK18: 100 | AL18: 100 | AM18: 100 | AN18: 100 | AO18: 91.3 | AP18: 100 | AQ18: 76.64670659 | AR18: 100 | AS18: 100 | AT18: 100 | AU18: 100 | AV18: 100 | AW18: 87 | AX18: 96.5 | AY18: 100 | AZ18: =AZ17+28 -> 87 | BA18: =BA17+7.4 -> 96.5 | BB18: 100 | BC18: 100 | BD18: 100 | BE18: 88 | BF18: 97.7 | BG18: 100 | BH18: 100 | BI18: 100 | BJ18: 100 | BK18: 100 | BL18: 100 | BM18: 100 | BN18: 92 | BO18: 99 | BP18: 92.1 | BQ18: 100 | BR18: 87.2 | BS18: 99.7 | BT18: 97.6 | BU18: 83 | BV18: 95.3 | BW18: 94.3 | BX18: 97.8 | BY18: 94.44444444 | BZ18: 94.71624266
A19: #100 | C19: 99.1 | D19: 100 | E19: 99 | F19: 100 | G19: 100 | H19: 100 | I19: 99.3 | J19: 100 | K19: 100 | L19: 100 | M19: 98.5 | N19: 99 | O19: 98 | P19: 97.6 | Q19: 99.2 | R19: 99.91 | S19: 99.99 | T19: 100 | U19: 98.4 | V19: 100 | W19: 98.9 | X19: 99.5 | Y19: 100 | Z19: 100 | AA19: 99.2081448 | AB19: 0 | AC19: 100 | AD19: 98.85 | AE19: 99.41 | AF19: 100 | AG19: 100 | AH19: 100 | AI19: 100 | AJ19: 100 | AK19: 100 | AL19: 100 | AM19: 100 | AN19: 100 | AO19: 98.9 | AP19: 100 | AQ19: 88.62275449 | AR19: 100 | AS19: 100 | AT19: 100 | AU19: 100 | AV19: 100 | AW19: 98.5 | AX19: 99.5 | AY19: 100 | AZ19: =AZ18+11.5 -> 98.5 | BA19: =BA18+3 -> 99.5 | BB19: 100 | BC19: 100 | BD19: 100 | BE19: 98 | BF19: 99 | BG19: 100 | BH19: 100 | BI19: 100 | BJ19: 100 | BK19: 100 | BL19: 100 | BM19: 100 | BN19: 99.5 | BO19: 99 | BP19: 99.2 | BQ19: 100 | BR19: 98.7 | BS19: 99.7 | BT19: 99.1 | BU19: 96.3 | BV19: 95.3 | BW19: 94.3 | BX19: 99.1 | BY19: 94.44444444 | BZ19: 94.71624266
A20: #200 | C20: 99.9 | D20: 100 | E20: 100 | F20: 100 | G20: 100 | H20: 100 | I20: 99.7 | J20: 100 | K20: 100 | L20: 100 | M20: 100 | N20: 100 | O20: 99.5 | P20: 99.2 | Q20: 99.7 | R20: 99.91 | S20: 99.99 | T20: 100 | U20: 99.5 | V20: 100 | W20: 99.9 | X20: 99.9 | Y20: 100 | Z20: 100 | AA20: 99.2081448 | AB20: 0 | AC20: 100 | AD20: 99.84 | AE20: 99.83 | AF20: 100 | AG20: 100 | AH20: 100 | AI20: 100 | AJ20: 100 | AK20: 100 | AL20: 100 | AM20: 100 | AN20: 100 | AO20: 99.8 | AP20: 100 | AQ20: 97.15568862 | AR20: 100 | AS20: 100 | AT20: 100 | AU20: 100 | AV20: 100 | AW20: 99.8 | AX20: 99.9 | AY20: 100 | AZ20: =AZ19+1.3 -> 99.8 | BA20: =BA19+0.4 -> 99.9 | BB20: 100 | BC20: 100 | BD20: 100 | BE20: 98.8 | BF20: 99.1 | BG20: 100 | BH20: 100 | BI20: 100 | BJ20: 100 | BK20: 100 | BL20: 100 | BM20: 100 | BN20: 99.8 | BO20: 99.6 | BP20: 99.8 | BQ20: 100 | BR20: 99.6 | BS20: 99.7 | BT20: 99.4 | BU20: 99.4 | BV20: 95.3 | BW20: 94.3 | BX20: 99.4 | BY20: 94.44444444 | BZ20: 94.71624266
A21: pan | C21: 100 | D21: 100 | E21: 100 | F21: 100 | G21: 100 | H21: 100 | I21: 100 | J21: 100 | K21: 100 | L21: 100 | M21: 100 | N21: 100 | O21: 100 | P21: 99.7 | Q21: 100 | R21: 99.91 | S21: 99.99 | T21: 100 | U21: 100 | V21: 100 | W21: 100 | X21: 100 | Y21: 100 | Z21: 100 | AA21: 100 | AB21: 100 | AC21: 100 | AD21: 100 | AE21: 100 | AF21: 100 | AG21: 100 | AH21: 100 | AI21: 100 | AJ21: 100 | AK21: 100 | AL21: 100 | AM21: 100 | AN21: 100 | AO21: 100 | AP21: 100 | AQ21: 100 | AR21: 100 | AS21: 100 | AT21: 100 | AU21: 100 | AV21: 100 | AW21: 100 | AX21: 100 | AY21: 100 | AZ21: =AZ20+0.2 -> 100 | BA21: =BA20+0.1 -> 100 | BB21: 100 | BC21: 100 | BD21: 100 | BE21: 100 | BF21: 100 | BG21: 100 | BH21: 100 | BI21: 100 | BJ21: 100 | BK21: 100 | BL21: 100 | BM21: 100 | BN21: 100 | BO21: 100 | BP21: 100 | BQ21: 100 | BR21: 100 | BS21: 100 | BT21: 99.8 | BU21: 100 | BV21: 99.6 | BW21: 99.7 | BX21: 100 | BY21: 100 | BZ21: 100
A22: Initials | AS22: HM | AT22: SD | AU22: SD | AV22: SD | AW22: SD | AX22: SD | BG22: SD | BH22: SD
A24: Percent Retained on Each Sieve | C24: =C2 -> KDOT Kansas River Sand | D24: =D2 -> KDOT Limestone | E24: Midwest Concrete Sand | F24: Midwest SA-1 | G24: Granite | H24: LRM - Arch (from Midwest) | I24: LRM - Pea G. | J24: Midwest 3/4 x 3/8 | K24: Stone 1 | L24: Stone 2 | M24: Stone 3 | N24: Sand 1 | O24: Sand 2 | P24: KDOT Kansas River Sand 6/17/03 | Q24: LRM Pea Gravel 6/17/03 | R24: 1" Washed Airport Limestone 10/2003 | S24: 1 1/4" Quartzite 10/2003 | T24: Quartzite Chip 10/2003 | U24: KDOT Kansas River Sand 12/12/03 | V24: ? Saif 9/2/03 | W24: KDOT Kansas River 2-18-04 | X24: Pea Gravel 2-18-04 | Y24: 3/4" KDOT Limestone 2-18-04 | Z24: 3/4" KDOT Limestone 4/29/2004 | AA24: 1" Washed Airport Limestone sieved | AB24: cement sand | AC24: 3/4" KDOT Limestone 6/18/2004 | AD24: KDOT Kansas River Sand 6/18/04 | AE24: Pea Gravel 6/18/04 | AF24: #67 Quartzite 6/23/2004 | AG24: Quartzite 1 1/4" 6/24/2004 | AH24: #67 Quartzite 6/28/2004 | AI24: Kansas 3/4in. Granite 8/3/04 | AJ24: #57 Limestone HMM 9/7/2004 | AK24: Martin Marietta Limestone 9/14/2004 | AL24: #57 Granite 9/14/2004 | AM24: #67 Quartzite 10/8/2004 | AN24: 3/4" KDOT Limestone 10/8/2004 | AO24: KDOT Sand 10/8/2004 | AP24: ACI 211.1 Apx 1 Example CA | AQ24: ACI 211.1 Apx 1 Example FA | AR24: ACI 211.1 Apx 1 Example Blending | AS24: Swapnil's next aggregate | AT24: 3/4" KDOT Limestone 01/10/2005 | AU24: 3/4" Quartzite 01/10/2005 | AV24: 3/4" Granite 01/10/2005 | AW24: KDOT Sand 01/10/2005 | AX24: LRM Pea Gravel 01/10/2005 | AY24: A1 - Granite | AZ24: A2 - River Sand | BA24: A3 - Pea Gravel | BB24: A4 - Small Deco | BC24: OK - CA #1 | BD24: OK - IA #1 | BE24: OK - FA | BF24: =BF2 -> OK - IA #2 | BG24: 3/4" Quartzite 03/19/05 | BH24: 3/4" KDOT Limestone 03/19/05 | BI24: OK - CA #2 | BJ24: GMQ 1.5 PCCP | BK24: GMQ CA7 | BL24: GMQ 3MA (3/8") | BM24: GMQ 3/4" | BN24: =BN2 -> MA-2 Holliday | BO24: KC 3/4" | BP24: LRM Kansas River Sand 5-5-05 | BQ24: LRM 3/4" Class 1 Limestone | BR24: LRM Kansas River Sand 6-6-05 | BS24: LRM 3/4" Class 1 Limestone 6-3-05 | BT24: =BT2 -> LRM Pea Gravel 6-14-05 | BU24: LRM Kansas River Sand 6-23-05 | BV24: LRM 3/4" Class 1 Limestone | BW24: LRM 3/4" Class 1 Limestone 7/14/05 | BX24: LRM Pea Gravel 7/14/05 | BY24: LRM 3/4" Limestone >3/8" | BZ24: LRM 3/4" Limestone <3/8" | CB24: KDOT Specification (min) | CD24: KDOT Specification (max)
A25: 1 1/2" | C25: =+C9 -> 0 | D25: 0 | E25: 0 | F25: 0 | G25: 0 | H25: 0 | I25: 0 | J25: 0 | K25: =+K9 -> 0 | L25: 6.5 | M25: 0 | N25: 0 | O25: 0 | P25: 0 | Q25: 0 | R25: 0 | S25: =+S9 -> 0 | T25: 0 | U25: 0 | V25: 0 | W25: 0 | X25: 0 | Y25: 0 | Z25: 0 | AA25: 0 | AB25: 0 | AC25: 0 | AD25: =+AD9 -> 0 | AE25: 0 | AF25: 0 | AG25: 0 | AH25: 0 | AI25: 0 | AJ25: 0 | AK25: 0 | AL25: 0 | AM25: 0 | AN25: 0 | AO25: 0 | AP25: 0 | AQ25: 0 | AR25: 0 | AS25: 0 | AT25: 0 | AU25: 0 | AV25: 0 | AW25: 0 | AX25: 0 | AY25: 0 | AZ25: 0 | BA25: 0 | BB25: 0 | BC25: =+BC9 -> 0 | BD25: 0 | BE25: 0 | BF25: 0 | BG25: 0 | BH25: 0 | BI25: =+BI9 -> 0 | BJ25: 0 | BK25: 0 | BL25: 0 | BM25: 0 | BN25: 0 | BO25: =+BO9 -> 0 | BP25: 0 | BQ25: 0 | BR25: 0 | BS25: 0 | BT25: 0 | BU25: =+BU9 -> 0 | BV25: 0 | BW25: 0 | BX25: 0 | BY25: 0 | BZ25: 0 | CB25: 0 | CD25: 0
A26: 1" | C26: =+C10-C9 -> 0 | D26: 0 | E26: 0 | F26: 0 | G26: 0 | H26: 0 | I26: 0 | J26: 0 | K26: =+K10-K9 -> 0 | L26: 33.5 | M26: 0 | N26: 0 | O26: 0 | P26: 0 | Q26: 0 | R26: 0 | S26: =+S10-S9 -> 0 | T26: 0 | U26: 0 | V26: 0 | W26: 0 | X26: 0 | Y26: 0 | Z26: 0 | AA26: 0 | AB26: 0 | AC26: 0.06 | AD26: =+AD10-AD9 -> 0 | AE26: 0 | AF26: 0 | AG26: 0 | AH26: 0 | AI26: 0 | AJ26: 0 | AK26: 0 | AL26: 0.4 | AM26: 0 | AN26: 0 | AO26: 0 | AP26: 0 | AQ26: 0 | AR26: 0 | AS26: 50 | AT26: 0 | AU26: 0 | AV26: 0 | AW26: 0 | AX26: 0 | AY26: 4 | AZ26: 0 | BA26: 0 | BB26: 0 | BC26: =+BC10-BC9 -> 0 | BD26: 0 | BE26: 0 | BF26: =+BF10-BF9 -> 0 | BG26: 0 | BH26: 0 | BI26: =+BI10-BI9 -> 1.1 | BJ26: 14.1 | BK26: 0 | BL26: 0 | BM26: =+BM10-BM9 -> 0 | BN26: 0 | BO26: =+BO10-BO9 -> 0 | BP26: =+BP10-BP9 -> 0 | BQ26: 0 | BR26: =+BR10-BR9 -> 0 | BS26: 0 | BT26: =+BT10-BT9 -> 0 | BU26: 0 | BV26: 0 | BW26: =+BW10-BW9 -> 0 | BX26: 0 | BY26: =+BY10-BY9 -> 0 | BZ26: 0 | CB26: 2 | CD26: 6
A27: 3/4" | C27: =+C11-C10 -> 0 | D27: 0 | E27: =+E11-E10 -> 0 | F27: 0 | G27: 0 | H27: 0 | I27: 0 | J27: 0 | K27: =+K11-K10 -> 3.5 | L27: 27 | M27: 0 | N27: 0 | O27: 0 | P27: 0 | Q27: 0 | R27: 25.94 | S27: =+S11-S10 -> 8.31 | T27: 0 | U27: 0 | V27: 0 | W27: 0 | X27: 0 | Y27: 0 | Z27: 0 | AA27: 0 | AB27: 0 | AC27: 0.13 | AD27: =+AD11-AD10 -> 0 | AE27: 0 | AF27: 0.6361323155 | AG27: 4.339118825 | AH27: 1.58 | AI27: 2.005174644 | AJ27: 2.7 | AK27: 0 | AL27: 17.5 | AM27: 1.4 | AN27: 0 | AO27: 0 | AP27: 20.90962788 | AQ27: 0 | AR27: 0 | AS27: 30 | AT27: 0 | AU27: 2 | AV27: 1.3 | AW27: 0 | AX27: 0 | AY27: 11 | AZ27: 0 | BA27: 0 | BB27: 0 | BC27: 0.8 | BD27: 0 | BE27: 0 | BF27: 0 | BG27: 0.2 | BH27: 0 | BI27: 13.7 | BJ27: 29.4 | BK27: 0 | BL27: 0 | BM27: 5 | BN27: 0 | BO27: 4 | BP27: 0 | BQ27: 0 | BR27: 0 | BS27: 0 | BT27: 0 | BU27: 0 | BV27: 0 | BW27: 0.06 | BX27: 0 | BY27: 0.1234567901 | BZ27: 0 | CB27: 5 | CD27: 22
A28: 1/2" | C28: 0 | D28: 27.9 | E28: 0 | F28: 0 | G28: 38.4 | H28: 7.9 | I28: 0 | J28: 23 | K28: =+K12-K11 -> 36.4 | L28: 17 | M28: 28 | N28: 0 | O28: 0 | P28: 0 | Q28: 0 | R28: 71.72 | S28: =+S12-S11 -> 46.93 | T28: 0.27 | U28: 0 | V28: 13.99 | W28: 0 | X28: 0 | Y28: 23.04 | Z28: 19 | AA28: 96.94570136 | AB28: 0 | AC28: 11.28 | AD28: =+AD12-AD11 -> 0 | AE28: 0 | AF28: 21.5648855 | AG28: 44.19225634 | AH28: 25.86 | AI28: 18.1759379 | AJ28: 27.8 | AK28: 18.44 | AL28: 35.94 | AM28: 28.3 | AN28: 17.5 | AO28: 0 | AP28: 44.77259303 | AQ28: 0 | AR28: 0 | AS28: 10 | AT28: 18.9 | AU28: 31.1 | AV28: 20.4 | AW28: 0 | AX28: 0 | AY28: 40.2 | AZ28: 0 | BA28: 0 | BB28: 7.9 | BC28: 25.6 | BD28: 0 | BE28: 0 | BF28: 0 | BG28: 9.9 | BH28: 22.6 | BI28: 55.9 | BJ28: 30.4 | BK28: 6.5 | BL28: 0 | BM28: 39 | BN28: 0 | BO28: 36 | BP28: 0 | BQ28: 17.13 | BR28: 0 | BS28: 25.3 | BT28: 0 | BU28: 0 | BV28: 25 | BW28: 21.74 | BX28: 0 | BY28: 44.73251029 | BZ28: 0 | CB28: 8 | CD28: 22
A29: 3/8" | C29: =+C13-C12 -> 0 | D29: 28.2 | E29: 0 | F29: 0 | G29: 28.2 | H29: 31.8 | I29: 0 | J29: 31 | K29: =+K13-K12 -> 25.9 | L29: 9 | M29: 19 | N29: 0 | O29: 5 | P29: 0 | Q29: 0 | R29: 1.46 | S29: =+S13-S12 -> 23 | T29: 17.5 | U29: 0 | V29: 23.02 | W29: 0 | X29: 0 | Y29: 26.46 | Z29: 26.7 | AA29: 1.979638009 | AB29: 0 | AC29: 18.66 | AD29: =+AD13-AD12 -> 0 | AE29: 0 | AF29: 34.86005089 | AG29: 26.76902537 | AH29: 28.4 | AI29: 30.78913325 | AJ29: 25.6 | AK29: 23.5 | AL29: 21.4 | AM29: 36.1 | AN29: 25.8 | AO29: 0 | AP29: 22.38629652 | AQ29: 0 | AR29: 16.4 | AS29: 5 | AT29: 25.5 | AU29: 34.4 | AV29: 30 | AW29: 0 | AX29: 0 | AY29: 23 | AZ29: 0 | BA29: 0 | BB29: 31.8 | BC29: 42.5 | BD29: 1.9 | BE29: 0 | BF29: 0 | BG29: 22.6 | BH29: 26.1 | BI29: 15.6 | BJ29: 10.2 | BK29: 38 | BL29: 5 | BM29: 33 | BN29: 0 | BO29: 32 | BP29: 0 | BQ29: 25.21 | BR29: 0 | BS29: 29.8 | BT29: 0 | BU29: 0 | BV29: 29.5 | BW29: 24.1 | BX29: 0 | BY29: 49.58847737 | BZ29: 0 | CB29: 8 | CD29: 22
A30: #4 | C30: 1.2 | D30: 37.9 | E30: 5 | F30: 21 | G30: 30.2 | H30: 52.7 | I30: 10.9 | J30: 44 | K30: =+K14-K13 -> 27.5 | L30: 4 | M30: 38 | N30: 0 | O30: 8 | P30: 0.6 | Q30: 11.8 | R30: 0.17 | S30: =+S14-S13 -> 17.56 | T30: 76 | U30: 1.2 | V30: 50.73 | W30: 1.4 | X30: 10.3 | Y30: 42.1 | Z30: 43.9 | AA30: 0.2262443439 | AB30: 0 | AC30: 48.72 | AD30: =+AD14-AD13 -> 1.6 | AE30: 12.47 | AF30: 38.35877863 | AG30: 22.49666222 | AH30: 36.79 | AI30: 44.37257439 | AJ30: 36.1 | AK30: 44.67 | AL30: 21.13 | AM30: 32.3 | AN30: 45.6 | AO30: 1.4 | AP30: 11.93148258 | AQ30: 1.047904192 | AR30: 29.2 | AS30: 1 | AT30: 46.4 | AU30: 31.4 | AV30: 45.5 | AW30: 2 | AX30: 9.6 | AY30: 17.6 | AZ30: 2 | BA30: 9.6 | BB30: 52.7 | BC30: 28.2 | BD30: 87.5 | BE30: 4 | BF30: 53.8 | BG30: 60.8 | BH30: 41.7 | BI30: 12.7 | BJ30: 14.1 | BK30: 52.2 | BL30: 90.37 | BM30: 21 | BN30: 0 | BO30: 26 | BP30: 0 | BQ30: 45.96 | BR30: 1.3 | BS30: 38.2 | BT30: 10.1 | BU30: 0.9 | BV30: 35.2 | BW30: 41 | BX30: 9.5 | BY30: 0 | BZ30: 80.23483366 | CB30: 8 | CD30: 22
A31: #8 | C31: 11.2 | D31: 4 | E31: 17 | F31: 44 | G31: 2.3 | H31: 5.2 | I31: 37.2 | J31: 1 | K31: =+K15-K14 -> 5.7 | L31: 1 | M31: 8 | N31: 6 | O31: 32 | P31: 9.8 | Q31: 41 | R31: 0.04 | S31: =+S15-S14 -> 2.25 | T31: 5.54 | U31: 12.6 | V31: 8.75 | W31: 13.1 | X31: 41 | Y31: 6.14 | Z31: 7.7 | AA31: 0.05656108597 | AB31: 0 | AC31: 15.06 | AD31: =+AD15-AD14 -> 12.72 | AE31: 40.51 | AF31: 1.908396947 | AG31: 1.468624833 | AH31: 3.46 | AI31: 1.681759379 | AJ31: 5.1 | AK31: 11.2 | AL31: 1.35 | AM31: 1.6 | AN31: 8.3 | AO31: 12.8 | AP31: 0 | AQ31: 11.37724551 | AR31: 25.7 | AS31: 1 | AT31: 7.7 | AU31: 0.8 | AV31: 1.7 | AW31: 11.8 | AX31: 33.6 | AY31: 2.3 | AZ31: 11.8 | BA31: 33.6 | BB31: 5.2 | BC31: 1.3 | BD31: 9 | BE31: 8 | BF31: 39.8 | BG31: 5.7 | BH31: 7.4 | BI31: 0.2 | BJ31: 1.8 | BK31: 1.8 | BL31: 1.99 | BM31: 1 | BN31: 16 | BO31: 1 | BP31: 16.4 | BQ31: 8.24 | BR31: 10.4 | BS31: 4 | BT31: 46.6 | BU31: 10 | BV31: 5.6 | BW31: 7.4 | BX31: 40.9 | BY31: 0 | BZ31: 14.481409 | CB31: 8 | CD31: 22
A32: #16 | C32: =+C16-C15 -> 21.8 | D32: 2 | E32: 27 | F32: 30 | G32: 0.8 | H32: 2.4 | I32: 35.1 | J32: 1 | K32: =+K16-K15 -> 0 | L32: 1 | M32: 3 | N32: 35 | O32: 3 | P32: 18.8 | Q32: 32.4 | R32: 0.58 | S32: =+S16-S15 -> 1.94 | T32: 0.69 | U32: 22 | V32: 3.51 | W32: 21.3 | X32: 32.9 | Y32: 2.26 | Z32: 2.7 | AA32: 0 | AB32: 0 | AC32: 6.09 | AD32: =+AD16-AD15 -> 20.93 | AE32: 30.16 | AF32: 2.671755725 | AG32: 0.7343124166 | AH32: 3.91 | AI32: 2.781371281 | AJ32: 2.5 | AK32: 2.19 | AL32: 2.28 | AM32: 0.3 | AN32: 2.8 | AO32: 23.8 | AP32: 0 | AQ32: 22.82934132 | AR32: 18.3 | AS32: 1 | AT32: 1.5 | AU32: 0.3 | AV32: 1.1 | AW32: 20.1 | AX32: 33.7 | AY32: 1.9 | AZ32: 20.1 | BA32: 33.7 | BB32: 2.4 | BC32: 1.6 | BD32: 1.6 | BE32: 10 | BF32: 3.6 | BG32: 0.8 | BH32: 2.2 | BI32: 0.8 | BJ32: 0 | BK32: 1.5 | BL32: 0.66 | BM32: 1 | BN32: 22 | BO32: 0 | BP32: 24.1 | BQ32: 3.46 | BR32: 19.8 | BS32: 2.4 | BT32: 28.3 | BU32: 18.9 | BV32: 0 | BW32: 0 | BX32: 35.2 | BY32: 0 | BZ32: 0 | CB32: 8 | CD32: 22
A33: #30 | C33: 27.8 | D33: 0 | E33: 22 | F33: 4 | G33: 0.1 | H33: 0 | I33: 9.5 | J33: 0 | K33: =+K17-K16 -> 1 | L33: 1 | M33: 2 | N33: 21 | O33: 21 | P33: 24.9 | Q33: 7.9 | R33: 0 | S33: =+S17-S16 -> 0 | T33: 0 | U33: 27.2 | V33: 0 | W33: 24.2 | X33: 8.6 | Y33: 0 | Z33: 0 | AA33: 0 | AB33: 0 | AC33: 0 | AD33: =+AD17-AD16 -> 25.44 | AE33: 9 | AF33: 0 | AG33: 0 | AH33: 0 | AI33: 0.1940491591 | AJ33: 0.2 | AK33: 0 | AL33: 0 | AM33: 0 | AN33: 0 | AO33: 27.6 | AP33: 0 | AQ33: 21.40718563 | AR33: 8.5 | AS33: 1 | AT33: 0 | AU33: 0 | AV33: 0 | AW33: 25.1 | AX33: 12.2 | AY33: 0 | AZ33: 25.1 | BA33: 12.2 | BB33: 0 | BC33: 0 | BD33: 0 | BE33: 27 | BF33: 0.3 | BG33: 0 | BH33: 0 | BI33: 0 | BJ33: 0 | BK33: 0 | BL33: 1.98 | BM33: 0 | BN33: 31 | BO33: 0 | BP33: 27.2 | BQ33: 0 | BR33: 25.1 | BS33: 0 | BT33: 8.8 | BU33: 25.7 | BV33: 0 | BW33: 0 | BX33: 8.8 | BY33: 0 | BZ33: 0 | CB33: 8 | CD33: 15
A34: #50 | C34: 25.8 | D34: 0 | E34: 20 | F34: 1 | G34: 0 | H34: 0 | I34: 4.7 | J34: 0 | K34: =+K18-K17 -> 0 | L34: 0 | M34: 0 | N34: 21 | O34: 25 | P34: 33 | Q34: 4.2 | R34: 0 | S34: =+S18-S17 -> 0 | T34: 0 | U34: 27.1 | V34: 0 | W34: 28.6 | X34: 4.9 | Y34: 0 | Z34: 0 | AA34: 0 | AB34: 0 | AC34: 0 | AD34: =+AD18-AD17 -> 29.53 | AE34: 5.6 | AF34: 0 | AG34: 0 | AH34: 0 | AI34: 0 | AJ34: 0 | AK34: 0 | AL34: 0 | AM34: 0 | AN34: 0 | AO34: 25.7 | AP34: 0 | AQ34: 19.98502994 | AR34: 1.9 | AS34: 1 | AT34: 0 | AU34: 0 | AV34: 0 | AW34: 28 | AX34: 7.4 | AY34: 0 | AZ34: 28 | BA34: 7.4 | BB34: 0 | BC34: 0 | BD34: 0 | BE34: 39 | BF34: 0.2 | BG34: 0 | BH34: 0 | BI34: 0 | BJ34: 0 | BK34: 0 | BL34: 0 | BM34: 0 | BN34: 23 | BO34: 0 | BP34: 24.4 | BQ34: 0 | BR34: 30.6 | BS34: 0 | BT34: 3.8 | BU34: 27.5 | BV34: 0 | BW34: 0 | BX34: 3.4 | BY34: 0 | BZ34: 0 | CB34: 5 | CD34: 15
A35: #100 | C35: 11.3 | D35: 0 | E35: 8 | F35: 0 | G35: 0 | H35: 0 | I35: 1.9 | J35: 0 | K35: =+K19-K18 -> 0 | L35: 0 | M35: 0.5 | N35: 16 | O35: 4 | P35: 10.5 | Q35: 1.9 | R35: 0 | S35: =+S19-S18 -> 0 | T35: 0 | U35: 8.3 | V35: 0 | W35: 10.3 | X35: 1.8 | Y35: 0 | Z35: 0 | AA35: 0 | AB35: 0 | AC35: 0 | AD35: =+AD19-AD18 -> 8.63 | AE35: 1.67 | AF35: 0 | AG35: 0 | AH35: 0 | AI35: 0 | AJ35: 0 | AK35: 0 | AL35: 0 | AM35: 0 | AN35: 0 | AO35: 7.6 | AP35: 0 | AQ35: 11.9760479 | AR35: 0 | AS35: 0 | AT35: 0 | AU35: 0 | AV35: 0 | AW35: 11.5 | AX35: 3 | AY35: 0 | AZ35: 11.5 | BA35: 3 | BB35: 0 | BC35: 0 | BD35: 0 | BE35: 10 | BF35: 1.3 | BG35: 0 | BH35: 0 | BI35: 0 | BJ35: 0 | BK35: 0 | BL35: 0 | BM35: 0 | BN35: 7.5 | BO35: 0 | BP35: 7.1 | BQ35: 0 | BR35: 11.5 | BS35: 0 | BT35: 1.5 | BU35: 13.3 | BV35: 0 | BW35: 0 | BX35: 1.3 | BY35: 0 | BZ35: 0
A36: #200 | C36: 0.8 | D36: 0 | E36: 1 | F36: 0 | G36: 0 | H36: 0 | I36: 0.4 | J36: 0 | K36: =+K20-K19 -> 0 | L36: 0 | M36: 1.5 | N36: 1 | O36: 1.5 | P36: 1.6 | Q36: 0.5 | R36: 0 | S36: =+S20-S19 -> 0 | T36: 0 | U36: 1.1 | V36: 0 | W36: 1 | X36: 0.4 | Y36: 0 | Z36: 0 | AA36: 0 | AB36: 0 | AC36: 0 | AD36: =+AD20-AD19 -> 0.99 | AE36: 0.42 | AF36: 0 | AG36: 0 | AH36: 0 | AI36: 0 | AJ36: 0 | AK36: 0 | AL36: 0 | AM36: 0 | AN36: 0 | AO36: 0.9 | AP36: 0 | AQ36: 8.532934132 | AR36: 0 | AS36: 0 | AT36: 0 | AU36: 0 | AV36: 0 | AW36: 1.3 | AX36: 0.4 | AY36: 0 | AZ36: 1.3 | BA36: 0.4 | BB36: 0 | BC36: 0 | BD36: 0 | BE36: 0.8 | BF36: 0.1 | BG36: 0 | BH36: 0 | BI36: 0 | BJ36: 0 | BK36: 0 | BL36: 0 | BM36: 0 | BN36: 0.3 | BO36: 0.6 | BP36: 0.6 | BQ36: 0 | BR36: 0.9 | BS36: 0 | BT36: 0.3 | BU36: 3.1 | BV36: 0 | BW36: 0 | BX36: 0.3 | BY36: 0 | BZ36: 0
A37: fines | C37: 0.1 | D37: 0 | E37: 0 | F37: 0 | G37: 0 | H37: 0 | I37: 0.3 | J37: 0 | K37: =+K21-K20 -> 0 | L37: 0 | M37: 0 | N37: 0 | O37: 0.5 | P37: 0.5 | Q37: 0.3 | R37: 0 | S37: =+S21-S20 -> 0 | T37: 0 | U37: 0.5 | V37: 0 | W37: 0.1 | X37: 0.1 | Y37: 0 | Z37: 0 | AA37: 0.7918552036 | AB37: 100 | AC37: 0 | AD37: =+AD21-AD20 -> 0.16 | AE37: 0.17 | AF37: 0 | AG37: 0 | AH37: 0 | AI37: 0 | AJ37: 0 | AK37: 0 | AL37: 0 | AM37: 0 | AN37: 0 | AO37: 0.2 | AP37: 0 | AQ37: 2.844311377 | AR37: 0 | AS37: 0 | AT37: 0 | AU37: 0 | AV37: 0 | AW37: 0.2 | AX37: 0.1 | AY37: 0 | AZ37: 0.2 | BA37: 0.1 | BB37: 0 | BC37: 0 | BD37: 0 | BE37: 1.2 | BF37: 0.9 | BG37: 0 | BH37: 0 | BI37: 0 | BJ37: 0 | BK37: 0 | BL37: 0 | BM37: 0 | BN37: 0.2 | BO37: 0.4 | BP37: 0.2 | BQ37: 0 | BR37: 0.4 | BS37: 0.3 | BT37: 0.4 | BU37: 0.6 | BV37: 4.3 | BW37: 5.4 | BX37: 0.6 | BY37: 5.555555556 | BZ37: 5.283757339 | CB37: 0 | CD37: 2.5
BX48: Big | BY48: cumulative
BW49: =BW25 -> 0 | BX49: =BW49/$BV$52 -> 0 | BY49: =BX49 -> 0
BW50: =BW26 -> 0 | BX50: =BW50/$BV$52 -> 0 | BY50: =BX50+BY49 -> 0
BW51: 0.06 | BX51: =BW51/$BV$52*100 -> 0.1234567901 | BY51: =BX51+BY50 -> 0.1234567901
BU52: sum | BV52: =SUM(BW49:BW53)+0.5*BW61 -> 48.6 | BW52: 21.74 | BX52: =BW52/$BV$52*100 -> 44.73251029 | BY52: 44.85596708
BV53: 3/8" | BW53: 24.1 | BX53: =BW53/$BV$52*100 -> 49.58847737 | BY53: 94.44444444
BW54: 41 | BX54: 0 | BY54: 94.44444444
BV55: =SUM(BW54:BW60)+0.5*BW61 -> 51.1 | BW55: 7.4 | BX55: 0 | BY55: 94.44444444
BW56: 0 | BX56: 0 | BY56: 94.44444444
BW57: 0 | BX57: 0 | BY57: 94.44444444
BW58: 0 | BX58: 0 | BY58: 94.44444444
BW59: 0 | BX59: 0 | BY59: 94.44444444
BW60: 0 | BX60: 0 | BY60: 94.44444444
BW61: =BW37 -> 5.4 | BX61: =BW61/2/BV52*100 -> 5.555555556 | BY61: 100
BX62: Small
BX63: 0 | BY63: =BX63 -> 0
BX64: 0 | BY64: =BX64+BY63 -> 0
BX65: 0 | BY65: =BX65+BY64 -> 0
BX66: 0 | BY66: 0
BX67: 0 | BY67: 0
BX68: =BW54/$BV$55*100 -> 80.23483366 | BY68: 80.23483366
BX69: =BW55/$BV$55*100 -> 14.481409 | BY69: 94.71624266
BX70: =BW56/$BV$55 -> 0 | BY70: 94.71624266
BX71: =BW57/$BV$55 -> 0 | BY71: 94.71624266
BX72: =BW58/$BV$55 -> 0 | BY72: 94.71624266
BX73: =BW59/$BV$55 -> 0 | BY73: 94.71624266
BX74: =BW60/$BV$55 -> 0 | BY74: 94.71624266
BX75: =BW61/2/$BV$55*100 -> 5.283757339 | BY75: 100
BC99: 8 | BD99: 18 | BE99: Bad Gradation
BB100: 1 1/2" | BC100: 0 | BD100: 18 | BE100: 0
BB101: 1" | BC101: 0 | BD101: 18 | BE101: 4
BB102: 3/4" | BC102: 8 | BD102: 18 | BE102: 8.5
BB103: 1/2" | BC103: 8 | BD103: 18 | BE103: 16
BB104: 3/8" | BC104: 8 | BD104: 18 | BE104: 8.5
BB105: #4 | BC105: 8 | BD105: 18 | BE105: 8.5
BB106: #8 | BC106: 8 | BD106: 18 | BE106: 8.5
BB107: #16 | BC107: 8 | BD107: 18 | BE107: 8.5
BB108: #30 | BC108: 8 | BD108: 18 | BE108: 16
BB109: #50 | BC109: 0 | BD109: 18 | BE109: 16
BB110: #100 | BC110: 0 | BD110: 8 | BE110: 3
BB111: #200 | BC111: 0 | BD111: 8 | BE111: 2
BB112: pan | BC112: 0 | BD112: 8 | BE112: 0.5

Sheet MixDesign
D2: KU MIX 3.4 BETA 1
C13: =IF(ISBLANK(Calculations!B71)=TRUE,"BLANK",Calculations!B71) -> University of Kansas
C14: =IF(ISBLANK(Calculations!B72)=TRUE,"BLANK",Calculations!B72) -> CEAE Department
C15: =IF(ISBLANK(Calculations!B73)=TRUE,"BLANK",Calculations!B73) -> 2150 Learned Hall
C16: =IF(ISBLANK(Calculations!B74)=TRUE,"BLANK",Calculations!B74) -> 1530 W. 15th St.
C17: =CONCATENATE(Calculations!B75, ", ",Calculations!B76, " ",Calculations!B77) -> Lawrence, Kansas 66045-7609
C18: =IF(AND(ISBLANK(Calculations!B78),ISBLANK(Calculations!B79)),"BLANK",IF(ISBLANK(Calculations!B78)=TRUE,CONCATENATE("Fax: ",Calculations!B79),IF(ISBLANK(Calculations!B79)=TRUE,CONCATENATE("Phone: ",Calculations!B78), CONCATENATE("Phone: ",Calculations!B78," Fax: ",Calculations!B79)))) -> Phone: 785.864.3885 Fax: 785.864.5631
C20: =IF(ISBLANK(Calculations!B85)=TRUE,"CONCRETE MIX DESIGN", CONCATENATE("CONCRETE MIX DESIGN REPORT #",Calculations!B85)) -> CONCRETE MIX DESIGN
C21: =IF(ISBLANK(Calculations!B86)=TRUE,"BLANK",CONCATENATE("Compressive Strength: ",Calculations!B86)) -> BLANK
C23: Contractor: | E23: =IF(ISBLANK(Calculations!B80),"BLANK",Calculations!B80) -> Quality Construction Co.
C24: Project: | E24: =IF(ISBLANK(Calculations!B81),"BLANK",Calculations!B81) -> County Road 443
C25: Source of Concrete: | E25: =IF(ISBLANK(Calculations!B82),"BLANK",Calculations!B82) -> Ready Mix Concrete
C26: Project Type: | E26: =IF(ISBLANK(Calculations!B83),"BLANK",Calculations!B83) -> LC-HPC Bridge Deck
C27: Placement Type: | E27: =IF(ISBLANK(Calculations!B84),"BLANK",Calculations!B84) -> Conventional
C29: Material / Source or Designation / Blend1 | G29: Quantity (SSD) | I29: S.G. | J29: Yield, ft3
C30: =IF(ISBLANK(Calculations!A3)=TRUE,"BLANK",CONCATENATE(Calculations!M3," / ",Calculations!L3, " / ",Calculations!U110,"%")) -> Type I/II Cement / Cement Producer / 100% | G30: =IF(ISBLANK(Calculations!A3)=TRUE,"",CONCATENATE(Calculations!H3," lb")) -> 535 lb | I30: =IF(ISBLANK(Calculations!A3)=TRUE,"",Calculations!E3) -> 3.2 | J30: =IF(ISBLANK(Calculations!A3)=TRUE,"",Calculations!S110*(27/Calculations!Z134)) -> 2.68004019
C31: =IF(ISBLANK(Calculations!A4)=TRUE,"BLANK",CONCATENATE(Calculations!M4," / ",Calculations!L4, " / ",Calculations!U111,"%")) -> BLANK | G31: =IF(ISBLANK(Calculations!A4)=TRUE,"",CONCATENATE(Calculations!H4," lb")) ->  | I31: =IF(ISBLANK(Calculations!A4)=TRUE,"",Calculations!E4) ->  | J31: =IF(ISBLANK(Calculations!A4)=TRUE,"",Calculations!S111*(27/Calculations!Z134)) -> 
C32: =IF(ISBLANK(Calculations!A5)=TRUE,"BLANK",CONCATENATE(Calculations!M5," / ",Calculations!L5, " / ",Calculations!U112,"%")) -> BLANK | G32: =IF(ISBLANK(Calculations!A5)=TRUE,"",CONCATENATE(Calculations!H5," lb")) ->  | I32: =IF(ISBLANK(Calculations!A5)=TRUE,"",Calculations!E5) ->  | J32: =IF(ISBLANK(Calculations!A5)=TRUE,"",Calculations!S112*(27/Calculations!Z134)) -> 
C33: =IF(ISBLANK(Calculations!A6)=TRUE,"BLANK",CONCATENATE(Calculations!M6," / ",Calculations!L6, " / ",Calculations!U113,"%")) -> BLANK | G33: =IF(ISBLANK(Calculations!A6)=TRUE,"",CONCATENATE(Calculations!H6," lb")) ->  | I33: =IF(ISBLANK(Calculations!A6)=TRUE,"",Calculations!E6) ->  | J33: =IF(ISBLANK(Calculations!A6)=TRUE,"",Calculations!S113*(27/Calculations!Z134)) -> 
C34: =IF(ISBLANK(Calculations!A7)=TRUE,"BLANK",CONCATENATE(Calculations!M7," / ",Calculations!L7, " / ",Calculations!U114,"%")) -> BLANK | G34: =IF(ISBLANK(Calculations!A7)=TRUE,"",CONCATENATE(Calculations!H7," lb")) ->  | I34: =IF(ISBLANK(Calculations!A7)=TRUE,"",Calculations!E7) ->  | J34: =IF(ISBLANK(Calculations!A7)=TRUE,"",Calculations!S114*(27/Calculations!Z134)) -> 
C35: Water | G35: =CONCATENATE(Calculations!$Q$108," lb") -> 224 lb | I35: =Calculations!R108 -> 1 | J35: =Calculations!S108*(27/Calculations!Z134) -> 3.590053836
C36: =IF(ISBLANK(Calculations!A26)=TRUE,"BLANK",CONCATENATE(Calculations!B27," / ",Calculations!T27," / ",Calculations!U117,"%")) -> 1-1/2" PCCP GMQ / CA-6 / 32.54% | G36: =IF(ISBLANK(Calculations!A26)=TRUE,"",CONCATENATE(Calculations!T117," lb")) -> 993 lb | I36: =IF(ISBLANK(Calculations!A26)=TRUE,"",Calculations!C26) -> 2.64 | J36: =IF(ISBLANK(Calculations!A26)=TRUE,"",Calculations!V117*(27/Calculations!Z134)) -> 6.027916734
C37: =IF(ISBLANK(Calculations!A29)=TRUE,"BLANK",CONCATENATE(Calculations!B30," / ",Calculations!T30," / ",Calculations!U118,"%")) -> 3/4" GMQ / CA-5 / 20.64% | G37: =IF(ISBLANK(Calculations!A29)=TRUE,"",CONCATENATE(Calculations!T118, " lb")) -> 630 lb | I37: =IF(ISBLANK(Calculations!A29)=TRUE,"",Calculations!C29) -> 2.64 | J37: =IF(ISBLANK(Calculations!A29)=TRUE,"",Calculations!V118*(27/Calculations!Z134)) -> 3.824358049
C38: =IF(ISBLANK(Calculations!A32)=TRUE,"BLANK",CONCATENATE(Calculations!B33," / ",Calculations!T33," / ",Calculations!U119,"%")) -> Midwest Concrete Materials / MA-2 / 46.82% | G38: =IF(ISBLANK(Calculations!A32)=TRUE,"",CONCATENATE(Calculations!T119, " lb")) -> 1429 lb | I38: =IF(ISBLANK(Calculations!A32)=TRUE,"",Calculations!C32) -> 2.63 | J38: =IF(ISBLANK(Calculations!A32)=TRUE,"",Calculations!V119*(27/Calculations!Z134)) -> 8.707598649
C39: =IF(ISBLANK(Calculations!A35)=TRUE,"BLANK",CONCATENATE(Calculations!B36," / ",Calculations!T36," / ",Calculations!U120,"%")) -> BLANK | G39: =IF(ISBLANK(Calculations!A35)=TRUE,"",CONCATENATE(Calculations!T120, " lb")) ->  | I39: =IF(ISBLANK(Calculations!A35)=TRUE,"",Calculations!C35) ->  | J39: =IF(ISBLANK(Calculations!A35)=TRUE,"",Calculations!V120*(27/Calculations!Z134)) -> 
C40: =IF(ISBLANK(Calculations!A38)=TRUE,"BLANK",CONCATENATE(Calculations!B39," / ",Calculations!T39," / ",Calculations!U121,"%")) -> BLANK | G40: =IF(ISBLANK(Calculations!A38)=TRUE,"",CONCATENATE(Calculations!T121," lb")) ->  | I40: =IF(ISBLANK(Calculations!A38)=TRUE,"",Calculations!C38) ->  | J40: =IF(ISBLANK(Calculations!A38)=TRUE,"",Calculations!V121*(27/Calculations!Z134)) -> 
C41: Total Air, percent | G41: =CONCATENATE(Calculations!Q109,"%") -> 8% | J41: =Calculations!S109*(27/Calculations!Z134) -> 2.160032392
C42: =IF(ISBLANK(Calculations!A12)=TRUE,"BLANK",CONCATENATE(Calculations!N13," / ",Calculations!O13)) -> Air Entraining Agent / Air R Us | G42: =IF(ISBLANK(Calculations!A12)=TRUE,"",CONCATENATE(Calculations!I12," fl oz (US)")) -> 4 fl oz (US) | I42: =Calculations!R130 -> 1.01 | J42: =Calculations!V130*(27/Calculations!Z134) -> 0
C43: =IF(ISBLANK(Calculations!A17)=TRUE,"BLANK",CONCATENATE(Calculations!P17, " / ",Calculations!Q17)) -> Superplasticizer / Admixtures R Us | G43: =IF(ISBLANK(Calculations!A17)=TRUE,"",CONCATENATE(Calculations!K17," fl oz (US)")) -> 10 fl oz (US) | I43: =Calculations!R125 -> 1.2 | J43: =IF(ISBLANK(Calculations!A17)=TRUE,"",Calculations!V125*(27/Calculations!Z134)) -> 0.01000014996
C44: =IF(ISBLANK(Calculations!A18)=TRUE,"BLANK",CONCATENATE(Calculations!P18, " / ",Calculations!Q18)) -> BLANK | G44: =IF(ISBLANK(Calculations!A18)=TRUE,"",CONCATENATE(Calculations!K18," fl oz (US)")) ->  | I44: =Calculations!R126 ->  | J44: =IF(ISBLANK(Calculations!A18)=TRUE,"",Calculations!V126*(27/Calculations!Z134)) -> 
C45: =IF(ISBLANK(Calculations!A19)=TRUE,"BLANK",CONCATENATE(Calculations!P19, " / ",Calculations!Q19)) -> BLANK | G45: =IF(ISBLANK(Calculations!A19)=TRUE,"",CONCATENATE(Calculations!K19," fl oz (US)")) ->  | I45: =Calculations!R127 ->  | J45: =IF(ISBLANK(Calculations!A19)=TRUE,"",Calculations!Q127*(27/Calculations!Z134)) -> 
C46: =IF(ISBLANK(Calculations!A20)=TRUE,"BLANK",CONCATENATE(Calculations!P20, " / ",Calculations!Q20)) -> BLANK | G46: =IF(ISBLANK(Calculations!A20)=TRUE,"",CONCATENATE(Calculations!K20," fl oz (US)")) ->  | I46: =Calculations!R128 ->  | J46: =IF(ISBLANK(Calculations!A20)=TRUE,"",Calculations!Q128*(27/Calculations!Z134)) -> 
C47: =IF(ISBLANK(Calculations!A21)=TRUE,"BLANK",CONCATENATE(Calculations!P21, " / ",Calculations!Q21)) -> BLANK | G47: =IF(ISBLANK(Calculations!A21)=TRUE,"",CONCATENATE(Calculations!K21," fl oz (US)")) ->  | I47: =Calculations!R129 ->  | J47: =IF(ISBLANK(Calculations!A21)=TRUE,"",Calculations!Q129*(27/Calculations!Z134)) -> 
C48: 1 The blend percentage indicated (by weight) is listed separately for cementitious materials and aggregates. | J48: =ROUND(SUM(J30:K47),2) -> 27
C50: Total Water Content (including water in admixtures), lb | H50: =ROUND(Calculations!Y61*SUM(Calculations!Q110:Q114),0) -> 225
C51: Water / Cementitious Material Ratio: | H51: =Calculations!$Y$61 -> 0.42
C52: Concrete Unit Weight, pcf | H52: =Calculations!$Q$132 -> 141.1740741
C53: Target Slump, in. | H53: =IF(OR(ISBLANK(Calculations!B88)=TRUE,ISBLANK(Calculations!B89)=TRUE)=TRUE,"BLANK",CONCATENATE(Calculations!B88," ± ",Calculations!B89)) -> 3 ± 0.5
C54: Paste Content, percent | H54: =Calculations!W109 -> 0.2326282051
C55: Workability Factor (WF) | G55: Target: | H55: =Calculations!$R$61 -> 35 | I55: Actual: | J55: =Calculations!AJ86 -> 34.99999922
C56: Coarseness Factor (CF) | G56: Target: | H56: =Calculations!$Q$61 -> 59.55660691 | I56: Actual: | J56: =Calculations!$AJ$85 -> 59.55660635
C57: Prepared On: | H57: =NOW() -> 2011-05-24T13:36:44.780
C59: Prepared By:
C62: =IF(ISBLANK(Calculations!B87)=TRUE,"--",Calculations!B87) -> Jiqiu Yuan

Sheet Advanced
D2: GRADATION DETAILS
D11: 1. Select Minimum and Maximum Gradation Limits (if desired)
D13: a. | F13: Press the button at right to input the minimum and maximum gradation limits
D16: b. | F16: Press the button at right to select minimum and maximum gradation limits
D18: Aggregate Gradation Comparison | K18: Minimum or Maximum
D20: =IF(ISBLANK(Calculations!B23)=TRUE,"",Calculations!B23) -> KDOT LC-HPC | K20: =IF(ISBLANK(Calculations!C23)=TRUE,"",Calculations!C23) -> Min
D21: =IF(ISBLANK(Calculations!B24)=TRUE,"",Calculations!B24) -> KDOT LC-HPC | K21: =IF(ISBLANK(Calculations!C24)=TRUE,"",Calculations!C24) -> Max
E22: Check here to remove these comparison lines from the percent retained charts below
C26: Combined Aggregate Details | H26: Blend | I26: Blend | M26: CF | N26: WF(CF)
H27: (by Weight) | I27: (by Volume) | M27: 75 | N27: 32.90941222
C28: Aggregates: | E28: =IF(ISBLANK(Calculations!$A$26)=TRUE,"",Calculations!$A$26) -> 1-1/2" PCCP GMQ -- CA-6 | H28: =IF(Calculations!$P$117=0,"",Calculations!$Z$117) -> 0.3253533277 | I28: =IF(Calculations!$P$117=0,"",Calculations!$Q$117/1000) -> 0.3247690468 | M28: 70 | N28: 33.55392427
E29: =IF(ISBLANK(Calculations!$A$29)=TRUE,"",Calculations!$A$29) -> 3/4" GMQ -- CA-5 | H29: =IF(Calculations!$P$118=0,"",Calculations!$Z$118) -> 0.2064175191 | I29: =IF(Calculations!$P$118=0,"",Calculations!$Q$118/1000) -> 0.2060633765 | M29: 60 | N29: 35.00027887
E30: =IF(ISBLANK(Calculations!$A$32)=TRUE,"",Calculations!$A$32) -> Midwest Concrete Materials -- MA-2 | H30: =IF(Calculations!$P$119=0,"",Calculations!$Z$119) -> 0.4682073568 | I30: =IF(Calculations!$P$119=0,"",Calculations!$Q$119/1000) -> 0.4691675768 | M30: 50 | N30: 36.54795747
E31: =IF(ISBLANK(Calculations!$A$35)=TRUE,"",Calculations!$A$35) ->  | H31: =IF(Calculations!$P$120=0,"",Calculations!$Z$120) ->  | I31: =IF(Calculations!$P$120=0,"",Calculations!$Q$120/1000) ->  | M31: 40 | N31: 38.06682007
E32: =IF(ISBLANK(Calculations!$A$38)=TRUE,"",Calculations!$A$38) ->  | H32: =IF(Calculations!$P$121=0,"",Calculations!$Z$121) ->  | I32: =IF(Calculations!$P$121=0,"",Calculations!$Q$121/1000) ->  | M32: 30 | N32: 39.42672667
C33: Date: | E33: =TODAY() -> 2011-05-24 | H33: =SUM(H28:H32) -> 0.9999782037 | I33: =SUM(I28:I32) -> 1 | M33: 20 | N33: 40.49753727
C34: Contractor: | E34: =IF(ISBLANK(Calculations!$B$80)=TRUE,"--",Calculations!$B$80) -> Quality Construction Co. | M34: 10 | N34: 41.14911187
C35: Project: | E35: =IF(ISBLANK(Calculations!$B$81)=TRUE,"--",Calculations!$B$81) -> County Road 443 | M35: 0 | N35: 41.25131047
M36: CF | N36: WF(CF) | O36: trend lines
D37: Sieves Openings | F37: Combined Gradation | H37: Actual Gradation | J37: Pass/Fail | L37: top | M37: 35.8333 | N37: 100 | O37: 26.833333 | P37: 100 | Q37: =O37-1.833333 -> 25
F38: Percent Retained | H38: Limits | M38: 40 | N38: 70 | O38: 26.83333 | P38: =90-3.33 -> 86.67 | Q38: 24.999997
D39: Nominal | E39: mm | F39: Optimum | G39: Actual | H39: =K20 -> Min | I39: =K21 -> Max | L39: lt | M39: 39.3045 | N39: 75 | O39: =25+3.33333 -> 28.33333 | P39: 80 | Q39: 26.499997
D40: 1.5" | E40: 37.5 | F40: =Calculations!AE69 -> 0 | G40: =Calculations!AJ69 -> 0 | H40: =IF(ISBLANK(Calculations!$A$23)=TRUE,"--",Calculations!E$23) -> 0 | I40: =IF(ISBLANK(Calculations!$A$24)=TRUE,"--",Calculations!E$24) -> 0 | J40: =IF(AND(H40="--",I40="--")=TRUE,"--",IF(AND(LEFT($H$39,3)="Min",LEFT($I$39,3)="Max")=TRUE,IF(H40="--","--",IF(AND(G40>=H40,G40<=I40)=TRUE,"PASS","FAIL")),IF(AND(LEFT($H$39,3)="Max",LEFT($I$39,3)="Min")=TRUE,IF(AND(G40<=H40,G40>=I40)=TRUE,"PASS","FAIL"),IF(LEFT($H$39,3)="Min",IF(G40>=H40,"PASS","FAIL"),IF(G40<=H40,"PASS","FAIL"))))) -> PASS | M40: 28.5 | N40: 75 | O40: 36 | P40: 20 | Q40: 34.166667
D41: 1" | E41: 25 | F41: =Calculations!AE70 -> 0.05521073795 | G41: =Calculations!AJ70 -> 0.05521073795 | H41: =IF(ISBLANK(Calculations!$A$23)=TRUE,"--",Calculations!F$23) -> 0.02 | I41: =IF(ISBLANK(Calculations!$A$24)=TRUE,"--",Calculations!F$24) -> 0.06 | J41: PASS | L41: rt | M41: 43.4715 | N41: 45 | O41: 36.83333 | P41: 10 | Q41: 34.999997
D42: 3/4" | E42: 19 | F42: =Calculations!AE71 -> 0.08648454974 | G42: =Calculations!AJ71 -> 0.08768764263 | H42: =IF(ISBLANK(Calculations!$A$23)=TRUE,"--",Calculations!G$23) -> 0.05 | I42: =IF(ISBLANK(Calculations!$A$24)=TRUE,"--",Calculations!G$24) -> 0.18 | J42: PASS | M42: 32.7585 | N42: 45 | O42: =35+1.8333333 -> 36.8333333 | P42: 0 | Q42: 35.0000003
D43: 1/2" | E43: 12.5 | F43: =Calculations!AE72 -> 0.1158407339 | G43: =Calculations!AJ72 -> 0.144511811 | H43: =IF(ISBLANK(Calculations!$A$23)=TRUE,"--",Calculations!H$23) -> 0.08 | I43: =IF(ISBLANK(Calculations!$A$24)=TRUE,"--",Calculations!H$24) -> 0.18 | J43: PASS | L43: Modified Coarseness Factor Chart
D44: 3/8" | E44: 9.5 | F44: =Calculations!AE73 -> 0.1256706228 | G44: =Calculations!AJ73 -> 0.09579645396 | H44: =IF(ISBLANK(Calculations!$A$23)=TRUE,"--",Calculations!I$23) -> 0.08 | I44: =IF(ISBLANK(Calculations!$A$24)=TRUE,"--",Calculations!I$24) -> 0.18 | J44: PASS
D45: No. 4 | E45: 4.75 | F45: =Calculations!AE74 -> 0.1305600952 | G45: =Calculations!AJ74 -> 0.1602105795 | H45: =IF(ISBLANK(Calculations!$A$23)=TRUE,"--",Calculations!J$23) -> 0.08 | I45: =IF(ISBLANK(Calculations!$A$24)=TRUE,"--",Calculations!J$24) -> 0.18 | J45: PASS | M45: Percent Retained Chart Sieve Lines
D46: No. 8 | E46: 2.36 | F46: =Calculations!AE75 -> 0.1296658942 | G46: =Calculations!AJ75 -> 0.1000154166 | H46: =IF(ISBLANK(Calculations!$A$23)=TRUE,"--",Calculations!K$23) -> 0.08 | I46: =IF(ISBLANK(Calculations!$A$24)=TRUE,"--",Calculations!K$24) -> 0.18 | J46: PASS
D47: No. 16 | E47: 1.18 | F47: =Calculations!AE76 -> 0.1218517217 | G47: =Calculations!AJ76 -> 0.12198357 | H47: =IF(ISBLANK(Calculations!$A$23)=TRUE,"--",Calculations!L$23) -> 0.08 | I47: =IF(ISBLANK(Calculations!$A$24)=TRUE,"--",Calculations!L$24) -> 0.18 | J47: PASS | M47: 37.5 | N47: 37.5 | O47: 0 | P47: 0.4
D48: No. 30 | E48: 0.6 | F48: =Calculations!AE77 -> 0.106482329 | G48: =Calculations!AJ77 -> 0.09383351535 | H48: =IF(ISBLANK(Calculations!$A$23)=TRUE,"--",Calculations!M$23) -> 0.08 | I48: =IF(ISBLANK(Calculations!$A$24)=TRUE,"--",Calculations!M$24) -> 0.15 | J48: PASS | M48: 25 | N48: 25 | O48: 0 | P48: 0.4
D49: No. 50 | E49: 0.3 | F49: =Calculations!AE78 -> 0.08167308442 | G49: =Calculations!AJ78 -> 0.09852519112 | H49: =IF(ISBLANK(Calculations!$A$23)=TRUE,"--",Calculations!N$23) -> 0.05 | I49: =IF(ISBLANK(Calculations!$A$24)=TRUE,"--",Calculations!N$24) -> 0.15 | J49: PASS | M49: 19 | N49: 19 | O49: 0 | P49: 0.4
D50: No. 100 | E50: 0.15 | F50: =Calculations!AE79 -> 0.04656023101 | G50: =Calculations!AJ79 -> 0.04222508191 | H50: =IF(ISBLANK(Calculations!$A$23)=TRUE,"--",Calculations!O$23) -> 0 | I50: =IF(ISBLANK(Calculations!$A$24)=TRUE,"--",Calculations!O$24) -> 0.05 | J50: PASS | M50: 12.5 | N50: 12.5 | O50: 0 | P50: 0.4
D51: No. 200 | E51: 0.075 | F51: =Calculations!AE80 -> 0 | G51: =Calculations!AJ80 -> 0 | H51: =IF(ISBLANK(Calculations!$A$23)=TRUE,"--",Calculations!P$23) -> 0 | I51: =IF(ISBLANK(Calculations!$A$24)=TRUE,"--",Calculations!P$24) -> 0.05 | J51: PASS | M51: 9.5 | N51: 9.5 | O51: 0 | P51: 0.4
D52: pan | E52: NA | F52: =Calculations!AE81 -> 0 | G52: =Calculations!AJ81 -> 0 | H52: =IF(ISBLANK(Calculations!$A$23)=TRUE,"--",Calculations!Q$23) -> 0 | I52: =IF(ISBLANK(Calculations!$A$24)=TRUE,"--",Calculations!Q$24) -> 0.02 | J52: PASS | M52: 4.75 | N52: 4.75 | O52: 0 | P52: 0.4
M53: 2.36 | N53: 2.36 | O53: 0 | P53: 0.4
D54: =IF(Calculations!AL89=0,"Workability Factor (WF):","Workability Factor (WF)*:") -> Workability Factor (WF)*: | G54: Target: | H54: =Calculations!R61 -> 35 | I54: Actual: | J54: =Calculations!AJ86 -> 34.99999922 | M54: 1.18 | N54: 1.18 | O54: 0 | P54: 0.4
D55: Coarseness Factor (CF): | G55: Target: | H55: =Calculations!Q61 -> 59.55660691 | I55: Actual: | J55: =Calculations!AJ85 -> 59.55660635 | M55: 0.6 | N55: 0.6 | O55: 0 | P55: 0.4
D56: =IF(Calculations!AL89=0,"",CONCATENATE("*Including a ", -1*ROUND(Calculations!AL89,1), " correction ",IF(Calculations!AL89<0, "due to excess cementitious material", "due to a low cementitious material content"))) -> *Including a -0.7 correction due to a low cementitious material content | M56: 0.3 | N56: 0.3 | O56: 0 | P56: 0.4
M57: 0.15 | N57: 0.15 | O57: 0 | P57: 0.4
D58: Combined Fineness Modulus: | G58: =Calculations!AH83 -> 5.295395749 | M58: 0.075 | N58: 0.075 | O58: 0 | P58: 0.4
D60: Model Parameters: | F60: =CONCATENATE(Calculations!$AA$62," to ",Calculations!$AB$62," percent retained on the ") -> 2 to 6 percent retained on the
F61: =CONCATENATE(Calculations!$Y$63," sieve.") -> 25 mm (1.0 in.) sieve.
L63: Percent Retained Chart
C67: Individual Aggregate Details | I67: Blend | J67: Blend
I68: (by Weight) | J68: (by Volume)
C69: Aggregates: | E69: =E28 -> 1-1/2" PCCP GMQ -- CA-6 | I69: =H28 -> 0.3253533277 | J69: =I28 -> 0.3247690468
E70: =E29 -> 3/4" GMQ -- CA-5 | I70: =H29 -> 0.2064175191 | J70: =I29 -> 0.2060633765
E71: =E30 -> Midwest Concrete Materials -- MA-2 | I71: =H30 -> 0.4682073568 | J71: =I30 -> 0.4691675768
E72: =E31 ->  | J72: =I31 -> 
E73: =E32 ->  | J73: =I32 -> 
C74: Date: | E74: =TODAY() -> 2011-05-24
C75: Contractor: | E75: =E34 -> Quality Construction Co.
C76: Project: | E76: =E35 -> County Road 443
D78: Sieves Openings | F78: Percent Retained (by weight) on Each Sieve
F79: Aggregate Designation
D80: Nominal | E80: mm | F80: =LEFT(Calculations!T26,8) -> CA-6 | G80: =LEFT(Calculations!T29,8) -> CA-5 | H80: =LEFT(Calculations!T32,8) -> MA-2 | I80: =LEFT(Calculations!T35,8) ->  | J80: =LEFT(Calculations!T38,8) ->  | M80: Number of Aggregates | O80: =Calculations!$U$28 -> 3
D81: 1.5" | E81: 37.5 | F81: =IF($F$80="","",1*Calculations!$E$27) -> 0 | G81: =IF($G$80="","",1*Calculations!$E$30) -> 0 | H81: =IF($H$80="","",1*Calculations!$E$33) -> 0 | I81: =IF($I$80="","",1*Calculations!$E$36) ->  | J81: =IF($J$80="","",1*Calculations!$E$39) -> 
D82: 1" | E82: 25 | F82: =IF($F$80="","",1*Calculations!$F$27) -> 0.17 | G82: =IF($G$80="","",1*Calculations!$F$30) -> 0 | H82: =IF($H$80="","",1*Calculations!$F$33) -> 0 | I82: =IF($I$80="","",1*Calculations!$F$36) ->  | J82: =IF($J$80="","",1*Calculations!$F$39) -> 
D83: 3/4" | E83: 19 | F83: =IF($F$80="","",1*Calculations!$G$27) -> 0.27 | G83: =IF($G$80="","",1*Calculations!$G$30) -> 0 | H83: =IF($H$80="","",1*Calculations!$G$33) -> 0 | I83: =IF($I$80="","",1*Calculations!$G$36) ->  | J83: =IF($J$80="","",1*Calculations!$G$39) -> 
D84: 1/2" | E84: 12.5 | F84: =IF($F$80="","",1*Calculations!$H$27) -> 0.28 | G84: =IF($G$80="","",1*Calculations!$H$30) -> 0.26 | H84: =IF($H$80="","",1*Calculations!$H$33) -> 0 | I84: =IF($I$80="","",1*Calculations!$H$36) ->  | J84: =IF($J$80="","",1*Calculations!$H$39) -> 
D85: 3/8" | E85: 9.5 | F85: =IF($F$80="","",1*Calculations!$I$27) -> 0.13 | G85: =IF($G$80="","",1*Calculations!$I$30) -> 0.26 | H85: =IF($H$80="","",1*Calculations!$I$33) -> 0 | I85: =IF($I$80="","",1*Calculations!$I$36) ->  | J85: =IF($J$80="","",1*Calculations!$I$39) -> 
D86: No. 4 | E86: 4.75 | F86: =IF($F$80="","",1*Calculations!$J$27) -> 0.15 | G86: =IF($G$80="","",1*Calculations!$J$30) -> 0.45 | H86: =IF($H$80="","",1*Calculations!$J$33) -> 0.04 | I86: =IF($I$80="","",1*Calculations!$J$36) ->  | J86: =IF($J$80="","",1*Calculations!$J$39) -> 
D87: No. 8 | E87: 2.36 | F87: =IF($F$80="","",1*Calculations!$K$27) -> 0 | G87: =IF($G$80="","",1*Calculations!$K$30) -> 0.03 | H87: =IF($H$80="","",1*Calculations!$K$33) -> 0.2 | I87: =IF($I$80="","",1*Calculations!$K$36) ->  | J87: =IF($J$80="","",1*Calculations!$K$39) -> 
D88: No. 16 | E88: 1.18 | F88: =IF($F$80="","",1*Calculations!$L$27) -> 0 | G88: =IF($G$80="","",1*Calculations!$L$30) -> 0 | H88: =IF($H$80="","",1*Calculations!$L$33) -> 0.26 | I88: =IF($I$80="","",1*Calculations!$L$36) ->  | J88: =IF($J$80="","",1*Calculations!$L$39) -> 
D89: No. 30 | E89: 0.6 | F89: =IF($F$80="","",1*Calculations!$M$27) -> 0 | G89: =IF($G$80="","",1*Calculations!$M$30) -> 0 | H89: =IF($H$80="","",1*Calculations!$M$33) -> 0.2 | I89: =IF($I$80="","",1*Calculations!$M$36) ->  | J89: =IF($J$80="","",1*Calculations!$M$39) -> 
D90: No. 50 | E90: 0.3 | F90: =IF($F$80="","",1*Calculations!$N$27) -> 0 | G90: =IF($G$80="","",1*Calculations!$N$30) -> 0 | H90: =IF($H$80="","",1*Calculations!$N$33) -> 0.21 | I90: =IF($I$80="","",1*Calculations!$N$36) ->  | J90: =IF($J$80="","",1*Calculations!$N$39) -> 
D91: No. 100 | E91: 0.15 | F91: =IF($F$80="","",1*Calculations!$O$27) -> 0 | G91: =IF($G$80="","",1*Calculations!$O$30) -> 0 | H91: =IF($H$80="","",1*Calculations!$O$33) -> 0.09 | I91: =IF($I$80="","",1*Calculations!$O$36) ->  | J91: =IF($J$80="","",1*Calculations!$O$39) -> 
D92: No. 200 | E92: 0.075 | F92: =IF($F$80="","",1*Calculations!$P$27) -> 0 | G92: =IF($G$80="","",1*Calculations!$P$30) -> 0 | H92: =IF($H$80="","",1*Calculations!$P$33) -> 0 | I92: =IF($I$80="","",1*Calculations!$P$36) ->  | J92: =IF($J$80="","",1*Calculations!$P$39) -> 
D93: pan | E93: NA | F93: =IF($F$80="","",1*Calculations!$Q$27) -> 0 | G93: =IF($G$80="","",1*Calculations!$Q$30) -> 0 | H93: =IF($H$80="","",1*Calculations!$Q$33) -> 0 | I93: =IF($I$80="","",1*Calculations!$Q$36) ->  | J93: =IF($J$80="","",1*Calculations!$Q$39) -> 
D94: SUM | F94: =IF(F81="","",SUM(F81:F93)) -> 1 | G94: =IF(G81="","",SUM(G81:G93)) -> 1 | H94: =IF(H81="","",SUM(H81:H93)) -> 1 | I94: =IF(I81="","",SUM(I81:I93)) ->  | J94: =IF(J81="","",SUM(J81:K93)) -> 
D96: Specific Gravity: | F96: =Calculations!C26 -> 2.64 | G96: =Calculations!C29 -> 2.64 | H96: =Calculations!C32 -> 2.63 | I96: =Calculations!C35 ->  | J96: =Calculations!C38 -> 
D97: Fineness Modulus: | F97: =IF(G82="","",Calculations!Y26) -> 7.29 | G97: =IF(G80="","",Calculations!Y29) -> 6.49 | H97: =IF(H80="","",Calculations!Y32) -> 3.39 | I97: =IF(I80="","",Calculations!Y35) ->  | J97: =IF(J80="","",Calculations!Y38) -> 

Sheet Program v.3
C2: MIX DESIGN INPUT AND OPTIMIZATION
C10: 1. Select Cementious Materials, Water-Cementitious Material Ratio, and Design Air Content
C13: a. | D13: Press the button at right to Select Cementious Materials
C16: b. | D16: Enter cementitious material Quantities into the table below
C18: Material | F18: Producer -- Sample # | J18: Specific Gravity | K18: Quantitiy (lbs)
C19: =IF(ISBLANK(Calculations!B3)=TRUE,"",Calculations!B3) -> Type I/II Cement | F19: =IF(ISBLANK(Calculations!A3)=FALSE,Calculations!G3,"") -> Cement Producer-- #1 | J19: =IF(ISBLANK(Calculations!E3)=TRUE,"",Calculations!E3) -> 3.2 | K19: 535
C20: =IF(ISBLANK(Calculations!B4)=TRUE,"",Calculations!B4) ->  | F20: =IF(ISBLANK(Calculations!A4)=FALSE,Calculations!G4,"") ->  | J20: =IF(ISBLANK(Calculations!E4)=TRUE,"",Calculations!E4) -> 
C21: =IF(ISBLANK(Calculations!B5)=TRUE,"",Calculations!B5) ->  | F21: =IF(ISBLANK(Calculations!A5)=FALSE,Calculations!G5,"") ->  | J21: =IF(ISBLANK(Calculations!E5)=TRUE,"",Calculations!E5) -> 
C22: =IF(ISBLANK(Calculations!B6)=TRUE,"",Calculations!B6) ->  | F22: =IF(ISBLANK(Calculations!A6)=FALSE,Calculations!G6,"") ->  | J22: =IF(ISBLANK(Calculations!E6)=TRUE,"",Calculations!E6) -> 
C23: =IF(ISBLANK(Calculations!B7)=TRUE,"",Calculations!B7) ->  | F23: =IF(ISBLANK(Calculations!A7)=FALSE,Calculations!G7,"") ->  | J23: =IF(ISBLANK(Calculations!E7)=TRUE,"",Calculations!E7) -> 
C25: c. | D25: Enter (or select) the Water-Cementitious Material Ratio
C28: d. | D28: Enter (or select) the Design Air Content Percent
C32: 2. Select Aggregates and Set Gradation Constraints
C35: a. | D35: Select the Top Sieve
C38: b. | D38: =CONCATENATE("Enter (or select) the max and min percent retained desired on the ", Calculations!Y63, " sieve") -> Enter (or select) the max and min percent retained desired on the 25 mm (1.0 in.) sieve | I38: min | K38: max
C41: c. | D41: Press the button at right to Select Aggregates
C44: d. | D44: Enter aggregate blend Minimum and Maximums (by volume) into the table below (leave blank if no blend limitations are desired)
C46: Aggregate | E46: Designation | F46: Supplier | H46: Specific Gravity | I46: Minimum1 (%) | J46: Maximum1 (%) | K46: Blend (by Volume)
C48: =IF(ISBLANK(Calculations!B26)=TRUE,"",Calculations!B26) -> 1-1/2" PCCP GMQ | E48: =IF(ISBLANK(Calculations!T26)=TRUE,"",Calculations!T26) -> CA-6 | F48: =IF(ISBLANK(Calculations!R26)=TRUE,"",Calculations!R26) -> 0.007 | H48: =IF(ISBLANK(Calculations!C26)=TRUE,"",Calculations!C26) -> 2.64 | K48: =IF(C48="","",Calculations!Q117/1000) -> 0.3247690468
C49: =IF(ISBLANK(Calculations!B29)=TRUE,"",Calculations!B29) -> 3/4" GMQ | E49: =IF(ISBLANK(Calculations!T29)=TRUE,"",Calculations!T29) -> CA-5 | F49: =IF(ISBLANK(Calculations!R29)=TRUE,"",Calculations!R29) -> 0.007 | H49: =IF(ISBLANK(Calculations!C29)=TRUE,"",Calculations!C29) -> 2.64 | K49: =IF(C49="","",Calculations!Q118/1000) -> 0.2060633765
C50: =IF(ISBLANK(Calculations!B32)=TRUE,"",Calculations!B32) -> Midwest Concrete Materials | E50: =IF(ISBLANK(Calculations!T32)=TRUE,"",Calculations!T32) -> MA-2 | F50: =IF(ISBLANK(Calculations!R32)=TRUE,"",Calculations!R32) -> 0.0163 | H50: =IF(ISBLANK(Calculations!C32)=TRUE,"",Calculations!C32) -> 2.63 | K50: =IF(C50="","",Calculations!Q119/1000) -> 0.4691675768
C51: =IF(ISBLANK(Calculations!B35)=TRUE,"",Calculations!B35) ->  | E51: =IF(ISBLANK(Calculations!T35)=TRUE,"",Calculations!T35) ->  | F51: =IF(ISBLANK(Calculations!R35)=TRUE,"",Calculations!R35) ->  | H51: =IF(ISBLANK(Calculations!C35)=TRUE,"",Calculations!C35) ->  | K51: =IF(C51="","",Calculations!Q120/1000) -> 
C52: =IF(ISBLANK(Calculations!B38)=TRUE,"",Calculations!B38) ->  | E52: =IF(ISBLANK(Calculations!T38)=TRUE,"",Calculations!T38) ->  | F52: =IF(ISBLANK(Calculations!R38)=TRUE,"",Calculations!R38) ->  | H52: =IF(ISBLANK(Calculations!C38)=TRUE,"",Calculations!C38) ->  | K52: =IF(C52="","",Calculations!Q121/1000) -> 
C53: 1Minimum and Maximum percent blends must be specified by percent volume of aggregate.
C56: 3. Select Chemical Admixtures
C59: a. | D59: Press the button at right to select an Air Entraining Agent (AEA)
C62: b. | D62: Enter the Air Entraining Agent Quantity (US fl oz) into the table below
C64: Air Entraining Agent | E64: Producer | G64: Dosage Rate (US fl oz)* | I64: Percent Solids | J64: Specific Gravity | K64: Quantity (US fl oz)
G65: min | H65: max
C66: =IF(ISBLANK(Calculations!B12)=TRUE,"",Calculations!B12) -> Air Entraining Agent | E66: =IF(ISBLANK(Calculations!E12)=TRUE,"",Calculations!E12) -> Air R Us | G66: =IF(OR(Calculations!$H$8=0,'Program v.3'!$C66="")=TRUE,"",Calculations!$C12*Calculations!$H$8/100) -> 0.66875 | H66: =IF(OR(Calculations!$H$8=0,'Program v.3'!$C66="")=TRUE,"",Calculations!D12*Calculations!$H$8/100) -> 8.56 | I66: =IF(ISBLANK(Calculations!$J$12)=TRUE,"",Calculations!$J$12) -> 0.3 | J66: =IF(ISBLANK(Calculations!$K$12)=TRUE,"",Calculations!$K$12) -> 1.01 | K66: 4
C68: c. | D68: Press the button at right to select additional Chemical Admixtures
C71: d. | D71: Enter Chemical Admixture Quantities (US fl oz) into the table below
C73: Chemical Admixtures | E73: Producer | G73: Dosage Rate (US fl oz)* | I73: Percent Solids | J73: Specific Gravity | K73: Quantity (US fl oz)
G74: min | H74: max
C75: =IF(ISBLANK(Calculations!B17)=TRUE,"",Calculations!B17) -> Superplasticizer | E75: =IF(ISBLANK(Calculations!E17)=TRUE,"",Calculations!E17) -> Admixtures R Us | G75: =IF(OR(Calculations!$H$8=0,'Program v.3'!$C75="")=TRUE,"",Calculations!$C17*Calculations!$H$8/100) -> 24.075 | H75: =IF(OR(Calculations!$H$8=0,'Program v.3'!$C75="")=TRUE,"",Calculations!D17*Calculations!$H$8/100) -> 72.225 | I75: =IF(ISBLANK(Calculations!$I$17)=TRUE,"",Calculations!$I$17) -> 0.3 | J75: =IF(ISBLANK(Calculations!$J$17)=TRUE,"",Calculations!$J$17) -> 1.2 | K75: 10
C76: =IF(ISBLANK(Calculations!B18)=TRUE,"",Calculations!B18) ->  | E76: =IF(ISBLANK(Calculations!E18)=TRUE,"",Calculations!E18) ->  | G76: =IF(OR(Calculations!$H$8=0,'Program v.3'!$C76="")=TRUE,"",Calculations!$C18*Calculations!$H$8/100) ->  | H76: =IF(OR(Calculations!$H$8=0,'Program v.3'!$C76="")=TRUE,"",Calculations!D18*Calculations!$H$8/100) ->  | I76: =IF(ISBLANK(Calculations!I18)=TRUE,"",Calculations!I18) ->  | J76: =IF(ISBLANK(Calculations!J18)=TRUE,"",Calculations!J18) -> 
C77: =IF(ISBLANK(Calculations!B19)=TRUE,"",Calculations!B19) ->  | E77: =IF(ISBLANK(Calculations!E19)=TRUE,"",Calculations!E19) ->  | G77: =IF(OR(Calculations!$H$8=0,'Program v.3'!$C77="")=TRUE,"",Calculations!$C19*Calculations!$H$8/100) ->  | H77: =IF(OR(Calculations!$H$8=0,'Program v.3'!$C77="")=TRUE,"",Calculations!D19*Calculations!$H$8/100) ->  | I77: =IF(ISBLANK(Calculations!I19)=TRUE,"",Calculations!I19) ->  | J77: =IF(ISBLANK(Calculations!J19)=TRUE,"",Calculations!J19) -> 
C78: =IF(ISBLANK(Calculations!B20)=TRUE,"",Calculations!B20) ->  | E78: =IF(ISBLANK(Calculations!E20)=TRUE,"",Calculations!E20) ->  | G78: =IF(OR(Calculations!$H$8=0,'Program v.3'!$C78="")=TRUE,"",Calculations!$C20*Calculations!$H$8/100) ->  | H78: =IF(OR(Calculations!$H$8=0,'Program v.3'!$C78="")=TRUE,"",Calculations!D20*Calculations!$H$8/100) ->  | I78: =IF(ISBLANK(Calculations!I20)=TRUE,"",Calculations!I20) ->  | J78: =IF(ISBLANK(Calculations!J20)=TRUE,"",Calculations!J20) -> 
C79: =IF(ISBLANK(Calculations!B20)=TRUE,"",Calculations!B20) ->  | E79: =IF(ISBLANK(Calculations!E20)=TRUE,"",Calculations!E20) ->  | G79: =IF(OR(Calculations!$H$8=0,'Program v.3'!$C79="")=TRUE,"",Calculations!$C21*Calculations!$H$8/100) ->  | H79: =IF(OR(Calculations!$H$8=0,'Program v.3'!$C79="")=TRUE,"",Calculations!D21*Calculations!$H$8/100) ->  | I79: =IF(ISBLANK(Calculations!I21)=TRUE,"",Calculations!I21) ->  | J79: =IF(ISBLANK(Calculations!J21)=TRUE,"",Calculations!J21) -> 
C80: *Manufacturer's recommended dosage rate per cubic yard
C83: 4. Complete and View Concrete Mix Design
C86: a. | D86: Press the button at right to optimize the mix design
C89: b. | D89: Press a button at right to view the completed mix design or combined aggregate gradation details
AK153: OLD Method
AK154: MINIMIZE
AK155: Difference
AK156: =(Calculations!AE69-Calculations!#REF!)^2 -> 
AK157: =(Calculations!AE70-Calculations!#REF!)^2 -> 
AK158: =(Calculations!AE71-Calculations!#REF!)^2 -> 
AK159: =(Calculations!AE72-Calculations!#REF!)^2 -> 
AK160: =(Calculations!AE73-Calculations!#REF!)^2 -> 
AK161: =(Calculations!AE74-Calculations!#REF!)^2 -> 
AK162: =(Calculations!AE75-Calculations!#REF!)^2 -> 
AK163: =(Calculations!AE76-Calculations!#REF!)^2 -> 
AK164: =(Calculations!AE77-Calculations!#REF!)^2 -> 
AK165: =(Calculations!AE78-Calculations!#REF!)^2 -> 
AK166: =(Calculations!AE79-Calculations!#REF!)^2 -> 
AK167: =(Calculations!AE80-Calculations!#REF!)^2 -> 
AJ168: sum | AK168: =SUM(AK156:AK167) -> 

Sheet Aggregates
B1: Aggregate Information
B4: Name | C4: Designation | D4: Specific Gravity | E4: Percent Retained On Each Sieve | R4: SIEVE CHECK | S4: % Absorption | T4: Supplier
E5: 1 1/2" | F5: 1" | G5: 3/4" | H5: 1/2" | I5: 3/8" | J5: #4 | K5: #8 | L5: #16 | M5: #30 | N5: #50 | O5: #100 | P5: #200 | Q5: pan | U5: Notes:
A6: Name -- Designation
A7: =IF(ISBLANK(B7)=TRUE,"",IF(C7="",B7,CONCATENATE(B7," -- ",C7))) -> 3/4" GMQ -- CA-5 | B7: 3/4" GMQ | C7: CA-5 | D7: 2.64 | E7: 0 | F7: 0 | G7: 0 | H7: 0.26 | I7: 0.26 | J7: 0.45 | K7: 0.03 | L7: 0 | M7: 0 | N7: 0 | O7: 0 | P7: 0 | Q7: 0 | R7: =IF(SUM(E7:Q7)=0,"",SUM(E7:Q7)) -> 1 | S7: 0.007 | T7: GMQ
A8: =IF(ISBLANK(B8)=TRUE,"",IF(C8="",B8,CONCATENATE(B8," -- ",C8))) -> 1-1/2" PCCP GMQ -- CA-6 | B8: 1-1/2" PCCP GMQ | C8: CA-6 | D8: 2.64 | E8: 0 | F8: 0.17 | G8: 0.27 | H8: 0.28 | I8: 0.13 | J8: 0.15 | K8: 0 | L8: 0 | M8: 0 | N8: 0 | O8: 0 | P8: 0 | Q8: 0 | R8: =IF(SUM(E8:Q8)=0,"",SUM(E8:Q8)) -> 1 | S8: 0.007 | T8: GMQ
A9: Midwest Concrete Materials -- MA-2 | B9: Midwest Concrete Materials | C9: MA-2 | D9: 2.63 | E9: 0 | F9: 0 | G9: 0 | H9: 0 | I9: 0 | J9: 0.04 | K9: 0.2 | L9: 0.26 | M9: 0.2 | N9: 0.21 | O9: 0.09 | P9: 0 | Q9: 0 | R9: 1 | S9: 0.0163 | T9: Holliday Sand
R10: =IF(SUM(E10:Q10)=0,"",SUM(E10:Q10)) -> 
A12: =IF(ISBLANK(B12)=TRUE,"",IF(C12="",B12,CONCATENATE(B12," -- ",C12))) -> 
A20: =IF(ISBLANK(B20)=TRUE,"",IF(C20="",B20,CONCATENATE(B20," -- ",C20))) ->  | R20: =IF(SUM(E20:Q20)=0,"",SUM(E20:Q20)) -> 
A21: =IF(ISBLANK(B21)=TRUE,"",IF(C21="",B21,CONCATENATE(B21," -- ",C21))) ->  | R21: =IF(SUM(E21:Q21)=0,"",SUM(E21:Q21)) -> 
A22: =IF(ISBLANK(B22)=TRUE,"",IF(C22="",B22,CONCATENATE(B22," -- ",C22))) ->  | R22: =IF(SUM(E22:Q22)=0,"",SUM(E22:Q22)) -> 
A23: =IF(ISBLANK(B23)=TRUE,"",IF(C23="",B23,CONCATENATE(B23," -- ",C23))) ->  | R23: =IF(SUM(E23:Q23)=0,"",SUM(E23:Q23)) -> 
A24: =IF(ISBLANK(B24)=TRUE,"",IF(C24="",B24,CONCATENATE(B24," -- ",C24))) ->  | R24: =IF(SUM(E24:Q24)=0,"",SUM(E24:Q24)) -> 
A72: =IF(ISBLANK(B72)=TRUE,"",IF(C72="",B72,CONCATENATE(B72," -- ",C72))) ->  | R72: =IF(SUM(E72:Q72)=0,"",SUM(E72:Q72)) -> 
A73: =IF(ISBLANK(B73)=TRUE,"",IF(C73="",B73,CONCATENATE(B73," -- ",C73))) -> 
A74: =IF(ISBLANK(B74)=TRUE,"",IF(C74="",B74,CONCATENATE(B74," -- ",C74))) -> 
A75: =IF(ISBLANK(B75)=TRUE,"",IF(C75="",B75,CONCATENATE(B75," -- ",C75))) -> 
R136: =IF(SUM(E136:Q136)=0,"",SUM(E136:Q136)) -> 
R200: =IF(SUM(E200:Q200)=0,"",SUM(E200:Q200)) -> 

Sheet Aggregates (Max-Min)
B1: Maximum and Minimum Combined Aggregate Gradation Constraints
B4: Name | C4: Designation (Minimum or Maximum) | D4: Percent Retained on Individual Sieves
D5: 1 1/2" | E5: 1" | F5: 3/4" | G5: 1/2" | H5: 3/8" | I5: #4 | J5: #8 | K5: #16 | L5: #30 | M5: #50 | N5: #100 | O5: #200 | P5: pan | Q5: Notes:
A6: Name -- Designation
A7: =IF(ISBLANK(B7)=TRUE,"",IF(C7="",B7,CONCATENATE(B7," -- ",C7))) -> 8 - 18 Rule -- Min | B7: 8 - 18 Rule | C7: Min | D7: 0.08 | E7: 0.08 | F7: 0.08 | G7: 0.08 | H7: 0.08 | I7: 0.08 | J7: 0.08 | K7: 0.08 | L7: 0.08 | M7: 0.08 | N7: 0.08 | O7: 0.08 | P7: 0.08
A8: =IF(ISBLANK(B8)=TRUE,"",IF(C8="",B8,CONCATENATE(B8," -- ",C8))) -> 8 - 18 Rule -- Max | B8: 8 - 18 Rule | C8: Max | D8: 0.18 | E8: 0.18 | F8: 0.18 | G8: 0.18 | H8: 0.18 | I8: 0.18 | J8: 0.18 | K8: 0.18 | L8: 0.18 | M8: 0.18 | N8: 0.18 | O8: 0.18 | P8: 0.18
A10: KDOT LC-HPC -- Min | B10: KDOT LC-HPC | C10: Min | D10: 0 | E10: 0.02 | F10: 0.05 | G10: 0.08 | H10: 0.08 | I10: 0.08 | J10: 0.08 | K10: 0.08 | L10: 0.08 | M10: 0.05 | N10: 0 | O10: 0 | P10: 0
A11: KDOT LC-HPC -- Max | B11: KDOT LC-HPC | C11: Max | D11: 0 | E11: 0.06 | F11: 0.18 | G11: 0.18 | H11: 0.18 | I11: 0.18 | J11: 0.18 | K11: 0.18 | L11: 0.15 | M11: 0.15 | N11: 0.05 | O11: 0.05 | P11: 0.02
A72: =IF(ISBLANK(B72)=TRUE,"",IF(C72="",B72,CONCATENATE(B72," -- ",C72))) -> 
A73: =IF(ISBLANK(B73)=TRUE,"",IF(C73="",B73,CONCATENATE(B73," -- ",C73))) -> 
A74: =IF(ISBLANK(B74)=TRUE,"",IF(C74="",B74,CONCATENATE(B74," -- ",C74))) -> 
A75: =IF(ISBLANK(B75)=TRUE,"",IF(C75="",B75,CONCATENATE(B75," -- ",C75))) -> 

Sheet AEA
B1: Air Entraining Agents
B4: Name | C4: Percent Solids | D4: Specific Gravity | E4: Recommended Dosages | G4: Producer | H4: Sample # | I4: Date Obtained | J4: Notes:
E5: (oz per 100 lbs cement)
A6: Material -- Producer -- Sample # | E6: Minimum | F6: Maximum
A7: =IF(ISBLANK(B7)=TRUE,"",CONCATENATE(B7, " -- ", G7, " -- ", "# ", H7)) -> Air Entraining Agent -- Air R Us -- # 1 | B7: Air Entraining Agent | C7: 0.3 | D7: 1.01 | E7: 0.125 | F7: 1.6 | G7: Air R Us | H7: 1 | I7: 2008-12-23
A8: =IF(ISBLANK(B8)=TRUE,"",CONCATENATE(B8, " -- ", G8, " -- ", "# ", H8)) -> 
A72: =IF(ISBLANK(B72)=TRUE,"",CONCATENATE(B72, " -- ", G72, " -- ", "# ", H72)) -> 
A73: =IF(ISBLANK(B73)=TRUE,"",CONCATENATE(B73, " -- ", G73, " -- ", "# ", H73)) -> 
A74: =IF(ISBLANK(B74)=TRUE,"",CONCATENATE(B74, " -- ", G74, " -- ", "# ", H74)) -> 
A75: =IF(ISBLANK(B75)=TRUE,"",CONCATENATE(B75, " -- ", G75, " -- ", "# ", H75)) -> 

Sheet Admixtures
B1: Other Admixtures
B4: Name | C4: Percent Solids | D4: Specific Gravity | E4: Recommended Dosages | G4: Producer | H4: Sample # | I4: Date Obtained | J4: Notes:
E5: (oz per 100 lbs cm)
A6: Material -- Producer -- Sample # | E6: Minimum | F6: Maximum
A7: =IF(ISBLANK(B7)=TRUE,"",CONCATENATE(B7, " -- ", G7, " -- ", "# ", H7)) -> Superplasticizer -- Admixtures R Us -- # 1 | B7: Superplasticizer | C7: 0.3 | D7: 1.2 | E7: 4.5 | F7: 13.5 | G7: Admixtures R Us | H7: 1 | I7: 2008-12-25
A8: =IF(ISBLANK(B8)=TRUE,"",CONCATENATE(B8, " -- ", G8, " -- ", "# ", H8)) -> 
A72: =IF(ISBLANK(B72)=TRUE,"",CONCATENATE(B72, " -- ", G72, " -- ", "# ", H72)) -> 
A73: =IF(ISBLANK(B73)=TRUE,"",CONCATENATE(B73, " -- ", G73, " -- ", "# ", H73)) -> 
A74: =IF(ISBLANK(B74)=TRUE,"",CONCATENATE(B74, " -- ", G74, " -- ", "# ", H74)) -> 
A75: =IF(ISBLANK(B75)=TRUE,"",CONCATENATE(B75, " -- ", G75, " -- ", "# ", H75)) -> 

Sheet Cement
B1: Cementitious Materials
B4: Material | C4: Producer | D4: Sample # | E4: Specific Gravity | F4: Date Obtained | G4: Notes:
A6: Material -- Producer -- Sample #
A7: =IF(ISBLANK(B7)=TRUE,"",CONCATENATE(B7, " -- ", C7, " -- ", "# ", D7)) -> Type I/II Cement -- Cement Producer -- # 1 | B7: Type I/II Cement | C7: Cement Producer | D7: 1 | E7: 3.2 | F7: 2008-12-23
A8: =IF(ISBLANK(B8)=TRUE,"",CONCATENATE(B8, " -- ", C8, " -- ", "# ", D8)) -> 
A35: =IF(ISBLANK(B35)=TRUE,"",CONCATENATE(B35, " -- ", C35, " -- ", "# ", D35)) -> 
A36: =IF(ISBLANK(B36)=TRUE,"",CONCATENATE(B36, " -- ", C36, " -- ", "# ", D36)) -> 
A73: =IF(ISBLANK(B73)=TRUE,"",CONCATENATE(B73, " -- ", C73, " -- ", "# ", D73)) -> 
A74: =IF(ISBLANK(B74)=TRUE,"",CONCATENATE(B74, " -- ", C74, " -- ", "# ", D74)) -> 
A75: =IF(ISBLANK(B75)=TRUE,"",CONCATENATE(B75, " -- ", C75, " -- ", "# ", D75)) -> 

Sheet Calculations
A1: Cements Selected | J1: Error Check | M1: Cement Name
B2: Cement Type | C2: Producer | D2: Sample # | E2: Specific Gravity | F2: Date Obtained | G2: Producer -- Sample | H2: Quantity | I2: # of C.M. | J2: Column | L2: LEFT(22) | M2: LEFT(22)
A3: Type I/II Cement -- Cement Producer -- # 1 | B3: =IF(IF($A3="","",VLOOKUP($A3,Cement!$A$7:$G$75,2,FALSE))=0,"",IF($A3="","",VLOOKUP($A3,Cement!$A$7:$G$75,2,FALSE))) -> Type I/II Cement | C3: =IF(IF($A3="","",VLOOKUP($A3,Cement!$A$7:$G$75,3,FALSE))=0,"",IF($A3="","",VLOOKUP($A3,Cement!$A$7:$G$75,3,FALSE))) -> Cement Producer | D3: =IF(IF($A3="","",VLOOKUP($A3,Cement!$A$7:$G$75,4,FALSE))=0,"",IF($A3="","",VLOOKUP($A3,Cement!$A$7:$G$75,4,FALSE))) -> 1 | E3: =IF(IF($A3="","",VLOOKUP($A3,Cement!$A$7:$G$75,5,FALSE))=0,"",IF($A3="","",VLOOKUP($A3,Cement!$A$7:$G$75,5,FALSE))) -> 3.2 | F3: =IF(IF($A3="","",VLOOKUP($A3,Cement!$A$7:$G$75,6,FALSE))=0,"",IF($A3="","",VLOOKUP($A3,Cement!$A$7:$G$75,6,FALSE))) -> 2008-12-23 | G3: =IF(D3="",C3,CONCATENATE(C3,"-- #",D3)) -> Cement Producer-- #1 | H3: ='Program v.3'!K19 -> 535 | I3: =COUNTA(cementc) -> 1 | J3: B | K3: =IF(OR(ISERROR($B$3)=TRUE, ISERROR($B$4)=TRUE,ISERROR($B$5)=TRUE,ISERROR($B$6)=TRUE, ISERROR($B$7)=TRUE)=TRUE,"Error","none") -> none | L3: =LEFT(C3,22) -> Cement Producer | M3: =LEFT(B3,22) -> Type I/II Cement
B4: =IF(IF($A4="","",VLOOKUP($A4,Cement!$A$7:$G$75,2,FALSE))=0,"",IF($A4="","",VLOOKUP($A4,Cement!$A$7:$G$75,2,FALSE))) ->  | C4: =IF(IF($A4="","",VLOOKUP($A4,Cement!$A$7:$G$75,3,FALSE))=0,"",IF($A4="","",VLOOKUP($A4,Cement!$A$7:$G$75,3,FALSE))) ->  | D4: =IF(IF($A4="","",VLOOKUP($A4,Cement!$A$7:$G$75,4,FALSE))=0,"",IF($A4="","",VLOOKUP($A4,Cement!$A$7:$G$75,4,FALSE))) ->  | E4: =IF(IF($A4="","",VLOOKUP($A4,Cement!$A$7:$G$75,5,FALSE))=0,"",IF($A4="","",VLOOKUP($A4,Cement!$A$7:$G$75,5,FALSE))) ->  | F4: =IF(IF($A4="","",VLOOKUP($A4,Cement!$A$7:$G$75,6,FALSE))=0,"",IF($A4="","",VLOOKUP($A4,Cement!$A$7:$G$75,6,FALSE))) ->  | G4: =IF(D4="",C4,CONCATENATE(C4,"-- #",D4)) ->  | H4: ='Program v.3'!K20 -> 0 | J4: C | K4: =IF(OR(ISERROR($C$3)=TRUE, ISERROR($C$4)=TRUE,ISERROR($C$5)=TRUE,ISERROR($C$6)=TRUE, ISERROR($C$7)=TRUE)=TRUE,"Error","none") -> none | L4: =LEFT(C4,22) ->  | M4: =LEFT(B4,22) -> 
B5: =IF(IF($A5="","",VLOOKUP($A5,Cement!$A$7:$G$75,2,FALSE))=0,"",IF($A5="","",VLOOKUP($A5,Cement!$A$7:$G$75,2,FALSE))) ->  | C5: =IF(IF($A5="","",VLOOKUP($A5,Cement!$A$7:$G$75,3,FALSE))=0,"",IF($A5="","",VLOOKUP($A5,Cement!$A$7:$G$75,3,FALSE))) ->  | D5: =IF(IF($A5="","",VLOOKUP($A5,Cement!$A$7:$G$75,4,FALSE))=0,"",IF($A5="","",VLOOKUP($A5,Cement!$A$7:$G$75,4,FALSE))) ->  | E5: =IF(IF($A5="","",VLOOKUP($A5,Cement!$A$7:$G$75,5,FALSE))=0,"",IF($A5="","",VLOOKUP($A5,Cement!$A$7:$G$75,5,FALSE))) ->  | F5: =IF(IF($A5="","",VLOOKUP($A5,Cement!$A$7:$G$75,6,FALSE))=0,"",IF($A5="","",VLOOKUP($A5,Cement!$A$7:$G$75,6,FALSE))) ->  | G5: =IF(D5="",C5,CONCATENATE(C5,"-- #",D5)) ->  | H5: ='Program v.3'!K21 -> 0 | J5: D | K5: =IF(OR(ISERROR($D$3)=TRUE, ISERROR($D$4)=TRUE,ISERROR($D$5)=TRUE,ISERROR($D$6)=TRUE, ISERROR($D$7)=TRUE)=TRUE,"Error","none") -> none | L5: =LEFT(C5,22) ->  | M5: =LEFT(B5,22) -> 
B6: =IF(IF($A6="","",VLOOKUP($A6,Cement!$A$7:$G$75,2,FALSE))=0,"",IF($A6="","",VLOOKUP($A6,Cement!$A$7:$G$75,2,FALSE))) ->  | C6: =IF(IF($A6="","",VLOOKUP($A6,Cement!$A$7:$G$75,3,FALSE))=0,"",IF($A6="","",VLOOKUP($A6,Cement!$A$7:$G$75,3,FALSE))) ->  | D6: =IF(IF($A6="","",VLOOKUP($A6,Cement!$A$7:$G$75,4,FALSE))=0,"",IF($A6="","",VLOOKUP($A6,Cement!$A$7:$G$75,4,FALSE))) ->  | E6: =IF(IF($A6="","",VLOOKUP($A6,Cement!$A$7:$G$75,5,FALSE))=0,"",IF($A6="","",VLOOKUP($A6,Cement!$A$7:$G$75,5,FALSE))) ->  | F6: =IF(IF($A6="","",VLOOKUP($A6,Cement!$A$7:$G$75,6,FALSE))=0,"",IF($A6="","",VLOOKUP($A6,Cement!$A$7:$G$75,6,FALSE))) ->  | G6: =IF(D6="",C6,CONCATENATE(C6,"-- #",D6)) ->  | H6: ='Program v.3'!K22 -> 0 | J6: E | K6: =IF(OR(ISERROR($E$3)=TRUE, ISERROR($E$4)=TRUE,ISERROR($E$5)=TRUE,ISERROR($E$6)=TRUE, ISERROR($E$7)=TRUE)=TRUE,"Error","none") -> none | L6: =LEFT(C6,22) ->  | M6: =LEFT(B6,22) -> 
B7: =IF(IF($A7="","",VLOOKUP($A7,Cement!$A$7:$G$75,2,FALSE))=0,"",IF($A7="","",VLOOKUP($A7,Cement!$A$7:$G$75,2,FALSE))) ->  | C7: =IF(IF($A7="","",VLOOKUP($A7,Cement!$A$7:$G$75,3,FALSE))=0,"",IF($A7="","",VLOOKUP($A7,Cement!$A$7:$G$75,3,FALSE))) ->  | D7: =IF(IF($A7="","",VLOOKUP($A7,Cement!$A$7:$G$75,4,FALSE))=0,"",IF($A7="","",VLOOKUP($A7,Cement!$A$7:$G$75,4,FALSE))) ->  | E7: =IF(IF($A7="","",VLOOKUP($A7,Cement!$A$7:$G$75,5,FALSE))=0,"",IF($A7="","",VLOOKUP($A7,Cement!$A$7:$G$75,5,FALSE))) ->  | F7: =IF(IF($A7="","",VLOOKUP($A7,Cement!$A$7:$G$75,6,FALSE))=0,"",IF($A7="","",VLOOKUP($A7,Cement!$A$7:$G$75,6,FALSE))) ->  | G7: =IF(D7="",C7,CONCATENATE(C7,"-- #",D7)) ->  | H7: ='Program v.3'!K23 -> 0 | J7: F | K7: =IF(OR(ISERROR($F$3)=TRUE, ISERROR($F$4)=TRUE,ISERROR($F$5)=TRUE,ISERROR($F$6)=TRUE, ISERROR($F$7)=TRUE)=TRUE,"Error","none") -> none | L7: =LEFT(C7,22) ->  | M7: =LEFT(B7,22) -> 
H8: =SUM(H3:H7) -> 535 | K8: =IF(OR(K3="Error",K4="Error",K5="Error",K6="Error",K7="Error"), 1,0) -> 0
A11: Air Entraining Agents | B11: Name | C11: Minimum | D11: Maximum | E11: Producer | F11: Sample # | G11: Date Obtained | H11: min/max | I11: Quantity | J11: % Solids | K11: S.G. | L11: # of AEA | M11: Error Check | N11: Name | O11: Producer
A12: Air Entraining Agent -- Air R Us -- # 1 | B12: =IF(IF($A12="","",VLOOKUP($A12,AEA!$A$7:$I$75,2,FALSE))=0,"",IF($A12="","",VLOOKUP($A12,AEA!$A$7:$I$75,2,FALSE))) -> Air Entraining Agent | C12: =IF(IF($A12="","",VLOOKUP($A12,AEA!$A$7:$I$75,5,FALSE))=0,"",IF($A12="","",VLOOKUP($A12,AEA!$A$7:$I$75,5,FALSE))) -> 0.125 | D12: =IF(IF($A12="","",VLOOKUP($A12,AEA!$A$7:$I$75,6,FALSE))=0,"",IF($A12="","",VLOOKUP($A12,AEA!$A$7:$I$75,6,FALSE))) -> 1.6 | E12: =IF(IF($A12="","",VLOOKUP($A12,AEA!$A$7:$I$75,7,FALSE))=0,"",IF($A12="","",VLOOKUP($A12,AEA!$A$7:$I$75,7,FALSE))) -> Air R Us | F12: =IF(IF($A12="","",VLOOKUP($A12,AEA!$A$7:$I$75,8,FALSE))=0,"",IF($A12="","",VLOOKUP($A12,AEA!$A$7:$I$75,8,FALSE))) -> 1 | G12: =IF(IF($A12="","",VLOOKUP($A12,AEA!$A$7:$I$75,9,FALSE))=0,"",IF($A12="","",VLOOKUP($A12,AEA!$A$7:$I$75,9,FALSE))) -> 39805 | H12: =IF(A12="","",CONCATENATE(C12," / ",D12)) -> 0.125 / 1.6 | I12: =AEAQ -> 4 | J12: =IF(A12="","",IF(VLOOKUP($A12,AEA!$A$7:$I$75,3,FALSE)="","0",VLOOKUP($A12,AEA!$A$7:$I$75,3,FALSE))) -> 0.3 | K12: =IF(IF($A12="","",VLOOKUP($A12,AEA!$A$7:$I$75,4,FALSE))=0,"",IF($A12="","",VLOOKUP($A12,AEA!$A$7:$I$75,4,FALSE))) -> 1.01 | L12: =COUNTA(A12) -> 1 | M12: =IF(OR(ISERROR($B$12)=TRUE, ISERROR($E$12)=TRUE,ISERROR($C$12)=TRUE,ISERROR($F$12)=TRUE, ISERROR($D$12)=TRUE)=TRUE,"Error","none") -> none | N12: LEFT(25) | O12: LEFT(25)
M13: =IF(M12="Error",1,0) -> 0 | N13: =LEFT(B12,25) -> Air Entraining Agent | O13: =LEFT(E12,25) -> Air R Us
P15: Name | Q15: Producer
A16: Chemical Admixtures | B16: Name | C16: Minimum | D16: Maximum | E16: Producer | F16: Sample # | G16: Date Obtained | H16: min/max | I16: % Solids | J16: S.G. | K16: Quantity | L16: # of Chem | M16: Column | N16: Error Check | P16: LEFT(25) | Q16: LEFT(25)
A17: Superplasticizer -- Admixtures R Us -- # 1 | B17: =IF(IF($A17="","",VLOOKUP($A17,Admixtures!$A$7:$G$75,2,FALSE))=0,"",IF($A17="","",VLOOKUP($A17,Admixtures!$A$7:$G$75,2,FALSE))) -> Superplasticizer | C17: =IF(IF($A17="","",VLOOKUP($A17,Admixtures!$A$7:$G$75,5,FALSE))=0,"",IF($A17="","",VLOOKUP($A17,Admixtures!$A$7:$G$75,5,FALSE))) -> 4.5 | D17: =IF(IF($A17="","",VLOOKUP($A17,Admixtures!$A$7:$G$75,6,FALSE))=0,"",IF($A17="","",VLOOKUP($A17,Admixtures!$A$7:$G$75,6,FALSE))) -> 13.5 | E17: =IF(IF($A17="","",VLOOKUP($A17,Admixtures!$A$7:$G$75,7,FALSE))=0,"",IF($A17="","",VLOOKUP($A17,Admixtures!$A$7:$G$75,7,FALSE))) -> Admixtures R Us | F17: =IF(IF($A17="","",VLOOKUP($A17,Admixtures!$A$7:$I$75,8,FALSE))=0,"",IF($A17="","",VLOOKUP($A17,Admixtures!$A$7:$I$75,8,FALSE))) -> 1 | G17: =IF(IF($A17="","",VLOOKUP($A17,Admixtures!$A$7:$I$75,9,FALSE))=0,"",IF($A17="","",VLOOKUP($A17,Admixtures!$A$7:$I$75,9,FALSE))) -> 2008-12-25 | H17: =IF(A17="","",CONCATENATE(C17," / ",D17)) -> 4.5 / 13.5 | I17: =IF(A17="","",IF(VLOOKUP($A17,Admixtures!$A$7:$I$75,3,FALSE)="","0",VLOOKUP($A17,Admixtures!$A$7:$I$75,3,FALSE))) -> 0.3 | J17: =IF(IF($A17="","",VLOOKUP($A17,Admixtures!$A$7:$I$75,4,FALSE))="","",IF($A17="","",VLOOKUP($A17,Admixtures!$A$7:$I$75,4,FALSE))) -> 1.2 | K17: ='Program v.3'!K75 -> 10 | L17: =COUNTA(CHEMc) -> 1 | M17: B | N17: =IF(OR(ISERROR($B$17)=TRUE, ISERROR($B$18)=TRUE,ISERROR($B$19)=TRUE,ISERROR($B$20)=TRUE, ISERROR($B$21)=TRUE)=TRUE,"Error","none") -> none | P17: =LEFT(B17,25) -> Superplasticizer | Q17: =LEFT(E17,25) -> Admixtures R Us
B18: =IF(IF($A18="","",VLOOKUP($A18,Admixtures!$A$7:$G$75,2,FALSE))=0,"",IF($A18="","",VLOOKUP($A18,Admixtures!$A$7:$G$75,2,FALSE))) ->  | C18: =IF(IF($A18="","",VLOOKUP($A18,Admixtures!$A$7:$G$75,5,FALSE))=0,"",IF($A18="","",VLOOKUP($A18,Admixtures!$A$7:$G$75,5,FALSE))) ->  | D18: =IF(IF($A18="","",VLOOKUP($A18,Admixtures!$A$7:$G$75,6,FALSE))=0,"",IF($A18="","",VLOOKUP($A18,Admixtures!$A$7:$G$75,6,FALSE))) ->  | E18: =IF(IF($A18="","",VLOOKUP($A18,Admixtures!$A$7:$G$75,7,FALSE))=0,"",IF($A18="","",VLOOKUP($A18,Admixtures!$A$7:$G$75,7,FALSE))) ->  | F18: =IF(IF($A18="","",VLOOKUP($A18,Admixtures!$A$7:$I$75,8,FALSE))=0,"",IF($A18="","",VLOOKUP($A18,Admixtures!$A$7:$I$75,8,FALSE))) ->  | G18: =IF(IF($A18="","",VLOOKUP($A18,Admixtures!$A$7:$I$75,9,FALSE))=0,"",IF($A18="","",VLOOKUP($A18,Admixtures!$A$7:$I$75,9,FALSE))) ->  | H18: =IF(A18="","",CONCATENATE(C18," / ",D18)) ->  | I18: =IF(A18="","",IF(VLOOKUP($A18,Admixtures!$A$7:$I$75,3,FALSE)="","0",VLOOKUP($A18,Admixtures!$A$7:$I$75,3,FALSE))) ->  | J18: =IF(IF($A18="","",VLOOKUP($A18,Admixtures!$A$7:$I$75,4,FALSE))="","",IF($A18="","",VLOOKUP($A18,Admixtures!$A$7:$I$75,4,FALSE))) ->  | K18: ='Program v.3'!K76 -> 0 | M18: C | N18: =IF(OR(ISERROR($C$17)=TRUE, ISERROR($C$18)=TRUE,ISERROR($C$19)=TRUE,ISERROR($C$20)=TRUE, ISERROR($C$21)=TRUE)=TRUE,"Error","none") -> none | O18: Errors | P18: =LEFT(B18,25) ->  | Q18: =LEFT(E18,25) -> 
B19: =IF(IF($A19="","",VLOOKUP($A19,Admixtures!$A$7:$G$75,2,FALSE))=0,"",IF($A19="","",VLOOKUP($A19,Admixtures!$A$7:$G$75,2,FALSE))) ->  | C19: =IF(IF($A19="","",VLOOKUP($A19,Admixtures!$A$7:$G$75,5,FALSE))=0,"",IF($A19="","",VLOOKUP($A19,Admixtures!$A$7:$G$75,5,FALSE))) ->  | D19: =IF(IF($A19="","",VLOOKUP($A19,Admixtures!$A$7:$G$75,6,FALSE))=0,"",IF($A19="","",VLOOKUP($A19,Admixtures!$A$7:$G$75,6,FALSE))) ->  | E19: =IF(IF($A19="","",VLOOKUP($A19,Admixtures!$A$7:$G$75,7,FALSE))=0,"",IF($A19="","",VLOOKUP($A19,Admixtures!$A$7:$G$75,7,FALSE))) ->  | F19: =IF(IF($A19="","",VLOOKUP($A19,Admixtures!$A$7:$I$75,8,FALSE))=0,"",IF($A19="","",VLOOKUP($A19,Admixtures!$A$7:$I$75,8,FALSE))) ->  | G19: =IF(IF($A19="","",VLOOKUP($A19,Admixtures!$A$7:$I$75,9,FALSE))=0,"",IF($A19="","",VLOOKUP($A19,Admixtures!$A$7:$I$75,9,FALSE))) ->  | H19: =IF(A19="","",CONCATENATE(C19," / ",D19)) ->  | I19: =IF(A19="","",IF(VLOOKUP($A19,Admixtures!$A$7:$I$75,3,FALSE)="","0",VLOOKUP($A19,Admixtures!$A$7:$I$75,3,FALSE))) ->  | J19: =IF(IF($A19="","",VLOOKUP($A19,Admixtures!$A$7:$I$75,4,FALSE))="","",IF($A19="","",VLOOKUP($A19,Admixtures!$A$7:$I$75,4,FALSE))) ->  | K19: ='Program v.3'!K77 -> 0 | M19: D | N19: =IF(OR(ISERROR($D$17)=TRUE, ISERROR($D$18)=TRUE,ISERROR($D$19)=TRUE,ISERROR($D$20)=TRUE, ISERROR($D$21)=TRUE)=TRUE,"Error","none") -> none | O19: =IF(OR(N17="Error",N18="Error",N19="Error",N20="Error",N21="Error"), 1,0) -> 0 | P19: =LEFT(B19,25) ->  | Q19: =LEFT(E19,25) -> 
B20: =IF(IF($A20="","",VLOOKUP($A20,Admixtures!$A$7:$G$75,2,FALSE))=0,"",IF($A20="","",VLOOKUP($A20,Admixtures!$A$7:$G$75,2,FALSE))) ->  | C20: =IF(IF($A20="","",VLOOKUP($A20,Admixtures!$A$7:$G$75,5,FALSE))=0,"",IF($A20="","",VLOOKUP($A20,Admixtures!$A$7:$G$75,5,FALSE))) ->  | D20: =IF(IF($A20="","",VLOOKUP($A20,Admixtures!$A$7:$G$75,6,FALSE))=0,"",IF($A20="","",VLOOKUP($A20,Admixtures!$A$7:$G$75,6,FALSE))) ->  | E20: =IF(IF($A20="","",VLOOKUP($A20,Admixtures!$A$7:$G$75,7,FALSE))=0,"",IF($A20="","",VLOOKUP($A20,Admixtures!$A$7:$G$75,7,FALSE))) ->  | F20: =IF(IF($A20="","",VLOOKUP($A20,Admixtures!$A$7:$I$75,8,FALSE))=0,"",IF($A20="","",VLOOKUP($A20,Admixtures!$A$7:$I$75,8,FALSE))) ->  | G20: =IF(IF($A20="","",VLOOKUP($A20,Admixtures!$A$7:$I$75,9,FALSE))=0,"",IF($A20="","",VLOOKUP($A20,Admixtures!$A$7:$I$75,9,FALSE))) ->  | H20: =IF(A20="","",CONCATENATE(C20," / ",D20)) ->  | I20: =IF(A20="","",IF(VLOOKUP($A20,Admixtures!$A$7:$I$75,3,FALSE)="","0",VLOOKUP($A20,Admixtures!$A$7:$I$75,3,FALSE))) ->  | J20: =IF(IF($A20="","",VLOOKUP($A20,Admixtures!$A$7:$I$75,4,FALSE))="","",IF($A20="","",VLOOKUP($A20,Admixtures!$A$7:$I$75,4,FALSE))) ->  | K20: ='Program v.3'!K78 -> 0 | M20: F | N20: =IF(OR(ISERROR($F$17)=TRUE, ISERROR($F$18)=TRUE,ISERROR($F$19)=TRUE,ISERROR($F$20)=TRUE, ISERROR($F$21)=TRUE)=TRUE,"Error","none") -> none | P20: =LEFT(B20,25) ->  | Q20: =LEFT(E20,25) -> 
B21: =IF(IF($A21="","",VLOOKUP($A21,Admixtures!$A$7:$G$75,2,FALSE))=0,"",IF($A21="","",VLOOKUP($A21,Admixtures!$A$7:$G$75,2,FALSE))) ->  | C21: =IF(IF($A21="","",VLOOKUP($A21,Admixtures!$A$7:$G$75,5,FALSE))=0,"",IF($A21="","",VLOOKUP($A21,Admixtures!$A$7:$G$75,5,FALSE))) ->  | D21: =IF(IF($A21="","",VLOOKUP($A21,Admixtures!$A$7:$G$75,6,FALSE))=0,"",IF($A21="","",VLOOKUP($A21,Admixtures!$A$7:$G$75,6,FALSE))) ->  | E21: =IF(IF($A21="","",VLOOKUP($A21,Admixtures!$A$7:$G$75,7,FALSE))=0,"",IF($A21="","",VLOOKUP($A21,Admixtures!$A$7:$G$75,7,FALSE))) ->  | F21: =IF(IF($A21="","",VLOOKUP($A21,Admixtures!$A$7:$I$75,8,FALSE))=0,"",IF($A21="","",VLOOKUP($A21,Admixtures!$A$7:$I$75,8,FALSE))) ->  | G21: =IF(IF($A21="","",VLOOKUP($A21,Admixtures!$A$7:$I$75,9,FALSE))=0,"",IF($A21="","",VLOOKUP($A21,Admixtures!$A$7:$I$75,9,FALSE))) ->  | H21: =IF(A21="","",CONCATENATE(C21," / ",D21)) ->  | I21: =IF(A21="","",IF(VLOOKUP($A21,Admixtures!$A$7:$I$75,3,FALSE)="","0",VLOOKUP($A21,Admixtures!$A$7:$I$75,3,FALSE))) ->  | J21: =IF(IF($A21="","",VLOOKUP($A21,Admixtures!$A$7:$I$75,4,FALSE))="","",IF($A21="","",VLOOKUP($A21,Admixtures!$A$7:$I$75,4,FALSE))) ->  | K21: ='Program v.3'!K79 -> 0 | M21: H | N21: =IF(OR(ISERROR($H$17)=TRUE, ISERROR($H$18)=TRUE,ISERROR($H$19)=TRUE,ISERROR($H$20)=TRUE, ISERROR($F$21)=TRUE)=TRUE,"Error","none") -> none | P21: =LEFT(B21,25) ->  | Q21: =LEFT(E21,25) ->  | W21: Percent | X21: Aggregate | Y21: Aggregate
A22: Limit Name | B22: Min / Max | C22: Min / Max | D22: Left(3) | E22: 1 1/2" | F22: 1" | G22: 3/4" | H22: 1/2" | I22: 3/8" | J22: #4 | K22: #8 | L22: #16 | M22: #30 | N22: #50 | O22: #100 | P22: #200 | Q22: pan | R22: Errors By Row | T22: Errors | U22: Number | W22: Retained on | X22: S.G. | Y22: FM
A23: KDOT LC-HPC -- Min | B23: =IF(IF($A23="","",VLOOKUP($A23,'Aggregates (Max-Min)'!$A$7:$S$75,2,FALSE))=0,"0.00",IF($A23="","",VLOOKUP($A23,'Aggregates (Max-Min)'!$A$7:$S$75,2,FALSE))) -> KDOT LC-HPC | C23: =IF(IF($A23="","",VLOOKUP($A23,'Aggregates (Max-Min)'!$A$7:$S$75,3,FALSE))=0,"0.00",IF($A23="","",VLOOKUP($A23,'Aggregates (Max-Min)'!$A$7:$S$75,3,FALSE))) -> Min | D23: =LEFT(C23,3) -> Min | E23: =IF(IF($A23="",0,VLOOKUP($A23,'Aggregates (Max-Min)'!$A$7:$S$75,4,FALSE))=0,0,IF($A23="",0,VLOOKUP($A23,'Aggregates (Max-Min)'!$A$7:$S$75,4,FALSE))) -> 0 | F23: =IF(IF($A23="",0,VLOOKUP($A23,'Aggregates (Max-Min)'!$A$7:$S$75,5,FALSE))=0,0,IF($A23="",0,VLOOKUP($A23,'Aggregates (Max-Min)'!$A$7:$S$75,5,FALSE))) -> 0.02 | G23: =IF(IF($A23="",0,VLOOKUP($A23,'Aggregates (Max-Min)'!$A$7:$S$75,6,FALSE))=0,0,IF($A23="",0,VLOOKUP($A23,'Aggregates (Max-Min)'!$A$7:$S$75,6,FALSE))) -> 0.05 | H23: =IF(IF($A23="",0,VLOOKUP($A23,'Aggregates (Max-Min)'!$A$7:$S$75,7,FALSE))=0,0,IF($A23="",0,VLOOKUP($A23,'Aggregates (Max-Min)'!$A$7:$S$75,7,FALSE))) -> 0.08 | I23: =IF(IF($A23="",0,VLOOKUP($A23,'Aggregates (Max-Min)'!$A$7:$S$75,8,FALSE))=0,0,IF($A23="",0,VLOOKUP($A23,'Aggregates (Max-Min)'!$A$7:$S$75,8,FALSE))) -> 0.08 | J23: =IF(IF($A23="",0,VLOOKUP($A23,'Aggregates (Max-Min)'!$A$7:$S$75,9,FALSE))=0,0,IF($A23="",0,VLOOKUP($A23,'Aggregates (Max-Min)'!$A$7:$S$75,9,FALSE))) -> 0.08 | K23: =IF(IF($A23="",0,VLOOKUP($A23,'Aggregates (Max-Min)'!$A$7:$S$75,10,FALSE))=0,0,IF($A23="",0,VLOOKUP($A23,'Aggregates (Max-Min)'!$A$7:$S$75,10,FALSE))) -> 0.08 | L23: =IF(IF($A23="",0,VLOOKUP($A23,'Aggregates (Max-Min)'!$A$7:$S$75,11,FALSE))=0,0,IF($A23="",0,VLOOKUP($A23,'Aggregates (Max-Min)'!$A$7:$S$75,11,FALSE))) -> 0.08 | M23: =IF(IF($A23="",0,VLOOKUP($A23,'Aggregates (Max-Min)'!$A$7:$S$75,12,FALSE))=0,0,IF($A23="",0,VLOOKUP($A23,'Aggregates (Max-Min)'!$A$7:$S$75,12,FALSE))) -> 0.08 | N23: =IF(IF($A23="",0,VLOOKUP($A23,'Aggregates (Max-Min)'!$A$7:$S$75,13,FALSE))=0,0,IF($A23="",0,VLOOKUP($A23,'Aggregates (Max-Min)'!$A$7:$S$75,13,FALSE))) -> 0.05 | O23: =IF(IF($A23="",0,VLOOKUP($A23,'Aggregates (Max-Min)'!$A$7:$S$75,14,FALSE))=0,0,IF($A23="",0,VLOOKUP($A23,'Aggregates (Max-Min)'!$A$7:$S$75,14,FALSE))) -> 0 | P23: =IF(IF($A23="",0,VLOOKUP($A23,'Aggregates (Max-Min)'!$A$7:$S$75,15,FALSE))=0,0,IF($A23="",0,VLOOKUP($A23,'Aggregates (Max-Min)'!$A$7:$S$75,15,FALSE))) -> 0 | Q23: =IF(IF($A23="",0,VLOOKUP($A23,'Aggregates (Max-Min)'!$A$7:$S$75,16,FALSE))=0,0,IF($A23="",0,VLOOKUP($A23,'Aggregates (Max-Min)'!$A$7:$S$75,16,FALSE))) -> 0 | R23: =IF(OR(ISERROR($B$23)=TRUE, ISERROR($E$23)=TRUE,ISERROR($C$23)=TRUE,ISERROR($F$23)=TRUE, ISERROR($D$23)=TRUE)=TRUE,"Error","none") -> none | S23: =IF(R23="none",0,1) -> 0 | T23: =SUM(S23:S24) -> 0 | U23: =IF(A23="",0,1) -> 1 | V23: Sum | W23: #16 - pan
A24: KDOT LC-HPC -- Max | B24: =IF(IF($A24="","",VLOOKUP($A24,'Aggregates (Max-Min)'!$A$7:$S$75,2,FALSE))=0,"0.00",IF($A24="","",VLOOKUP($A24,'Aggregates (Max-Min)'!$A$7:$S$75,2,FALSE))) -> KDOT LC-HPC | C24: =IF(IF($A24="","",VLOOKUP($A24,'Aggregates (Max-Min)'!$A$7:$S$75,3,FALSE))=0,"0.00",IF($A24="","",VLOOKUP($A24,'Aggregates (Max-Min)'!$A$7:$S$75,3,FALSE))) -> Max | D24: =LEFT(C24,3) -> Max | E24: =IF(IF($A24="",0,VLOOKUP($A24,'Aggregates (Max-Min)'!$A$7:$S$75,4,FALSE))=0,0,IF($A24="",0,VLOOKUP($A24,'Aggregates (Max-Min)'!$A$7:$S$75,4,FALSE))) -> 0 | F24: =IF(IF($A24="",0,VLOOKUP($A24,'Aggregates (Max-Min)'!$A$7:$S$75,5,FALSE))=0,0,IF($A24="",0,VLOOKUP($A24,'Aggregates (Max-Min)'!$A$7:$S$75,5,FALSE))) -> 0.06 | G24: =IF(IF($A24="",0,VLOOKUP($A24,'Aggregates (Max-Min)'!$A$7:$S$75,6,FALSE))=0,0,IF($A24="",0,VLOOKUP($A24,'Aggregates (Max-Min)'!$A$7:$S$75,6,FALSE))) -> 0.18 | H24: =IF(IF($A24="",0,VLOOKUP($A24,'Aggregates (Max-Min)'!$A$7:$S$75,7,FALSE))=0,0,IF($A24="",0,VLOOKUP($A24,'Aggregates (Max-Min)'!$A$7:$S$75,7,FALSE))) -> 0.18 | I24: =IF(IF($A24="",0,VLOOKUP($A24,'Aggregates (Max-Min)'!$A$7:$S$75,8,FALSE))=0,0,IF($A24="",0,VLOOKUP($A24,'Aggregates (Max-Min)'!$A$7:$S$75,8,FALSE))) -> 0.18 | J24: =IF(IF($A24="",0,VLOOKUP($A24,'Aggregates (Max-Min)'!$A$7:$S$75,9,FALSE))=0,0,IF($A24="",0,VLOOKUP($A24,'Aggregates (Max-Min)'!$A$7:$S$75,9,FALSE))) -> 0.18 | K24: =IF(IF($A24="",0,VLOOKUP($A24,'Aggregates (Max-Min)'!$A$7:$S$75,10,FALSE))=0,0,IF($A24="",0,VLOOKUP($A24,'Aggregates (Max-Min)'!$A$7:$S$75,10,FALSE))) -> 0.18 | L24: =IF(IF($A24="",0,VLOOKUP($A24,'Aggregates (Max-Min)'!$A$7:$S$75,11,FALSE))=0,0,IF($A24="",0,VLOOKUP($A24,'Aggregates (Max-Min)'!$A$7:$S$75,11,FALSE))) -> 0.18 | M24: =IF(IF($A24="",0,VLOOKUP($A24,'Aggregates (Max-Min)'!$A$7:$S$75,12,FALSE))=0,0,IF($A24="",0,VLOOKUP($A24,'Aggregates (Max-Min)'!$A$7:$S$75,12,FALSE))) -> 0.15 | N24: =IF(IF($A24="",0,VLOOKUP($A24,'Aggregates (Max-Min)'!$A$7:$S$75,13,FALSE))=0,0,IF($A24="",0,VLOOKUP($A24,'Aggregates (Max-Min)'!$A$7:$S$75,13,FALSE))) -> 0.15 | O24: =IF(IF($A24="",0,VLOOKUP($A24,'Aggregates (Max-Min)'!$A$7:$S$75,14,FALSE))=0,0,IF($A24="",0,VLOOKUP($A24,'Aggregates (Max-Min)'!$A$7:$S$75,14,FALSE))) -> 0.05 | P24: =IF(IF($A24="",0,VLOOKUP($A24,'Aggregates (Max-Min)'!$A$7:$S$75,15,FALSE))=0,0,IF($A24="",0,VLOOKUP($A24,'Aggregates (Max-Min)'!$A$7:$S$75,15,FALSE))) -> 0.05 | Q24: =IF(IF($A24="",0,VLOOKUP($A24,'Aggregates (Max-Min)'!$A$7:$S$75,16,FALSE))=0,0,IF($A24="",0,VLOOKUP($A24,'Aggregates (Max-Min)'!$A$7:$S$75,16,FALSE))) -> 0.02 | R24: =IF(OR(ISERROR($B$24)=TRUE, ISERROR($E$24)=TRUE,ISERROR($C$24)=TRUE,ISERROR($F$24)=TRUE, ISERROR($D$24)=TRUE)=TRUE,"Error","none") -> none | S24: =IF(R24="none",0,1) -> 0 | U24: =IF(A24="",0,1) -> 1 | V24: =SUM(U23:U24) -> 2
A25: Aggregates | B25: Name | C25: Specific Gravity | E25: 1 1/2" | F25: 1" | G25: 3/4" | H25: 1/2" | I25: 3/8" | J25: #4 | K25: #8 | L25: #16 | M25: #30 | N25: #50 | O25: #100 | P25: #200 | Q25: pan | R25: Supplier | S25: % Absorption | T25: Designation | V25: Errors
A26: 1-1/2" PCCP GMQ -- CA-6 | B26: =IF(IF($A26="","",VLOOKUP($A26,Aggregates!$A$7:$T$200,2,FALSE))=0,"",IF($A26="","",VLOOKUP($A26,Aggregates!$A$7:$T$200,2,FALSE))) -> 1-1/2" PCCP GMQ | C26: =IF(IF($A26="","",VLOOKUP($A26,Aggregates!$A$7:$T$200,4,FALSE))=0,"",IF($A26="","",VLOOKUP($A26,Aggregates!$A$7:$T$200,4,FALSE))) -> 2.64 | D26: =T27 -> CA-6 | E26: =IF(ISERROR(E27)=TRUE,0,E27) -> 0.00 | F26: =IF(ISERROR(E26+F27)=TRUE,0,E26+F27) -> 0.17 | G26: =IF(ISERROR(F26+G27)=TRUE,0,F26+G27) -> 0.44 | H26: 0.72 | I26: 0.85 | J26: 1 | K26: 1 | L26: 1 | M26: 1 | N26: 1 | O26: 1 | P26: 1 | Q26: 1 | R26: =IF(IF($A26="","",VLOOKUP($A26,Aggregates!$A$7:$T$200,19,FALSE))=0,"",IF($A26="","",VLOOKUP($A26,Aggregates!$A$7:$T$200,19,FALSE))) -> 0.007 | S26: =IF(IF($A26="","",VLOOKUP($A26,Aggregates!$A$7:$T$200,19,FALSE))=0,"",IF($A26="","",VLOOKUP($A26,Aggregates!$A$7:$T$200,19,FALSE))) -> 0.007 | T26: =IF(IF($A26="","",VLOOKUP($A26,Aggregates!$A$7:$T$200,3,FALSE))=0,"",IF($A26="","",VLOOKUP($A26,Aggregates!$A$7:$T$200,3,FALSE))) -> CA-6 | V26: =IF(OR(ISERROR($B$26)=TRUE, ISERROR($C$26)=TRUE,ISERROR($E$27)=TRUE,ISERROR($F$27)=TRUE, ISERROR($G$27)=TRUE)=TRUE,"Error","none") -> none | Y26: =SUM(E26,G26,I26,J26,K26,L26,M26,N26,O26) -> 7.29
A27: =LEFT(A26,14) -> 1-1/2" PCCP GM | B27: =LEFT(B26,30) -> 1-1/2" PCCP GMQ | D27: =T27 -> CA-6 | E27: =IF(IF($A$26="",0,VLOOKUP($A$26,Aggregates!$A$7:$T$200,5,FALSE))=0,"0.00",IF($A$26="",0,VLOOKUP($A$26,Aggregates!$A$7:$T$200,5,FALSE)*1/T28)) -> 0.00 | F27: =IF(IF($A$26="",0,VLOOKUP($A$26,Aggregates!$A$7:$T$200,6,FALSE))=0,"0.00",IF($A$26="",0,VLOOKUP($A$26,Aggregates!$A$7:$T$200,6,FALSE)*1/T28)) -> 0.17 | G27: =IF(IF($A$26="",0,VLOOKUP($A$26,Aggregates!$A$7:$T$200,7,FALSE))=0,"0.00",IF($A$26="",0,VLOOKUP($A$26,Aggregates!$A$7:$T$200,7,FALSE)*1/T28)) -> 0.27 | H27: =IF(IF($A$26="",0,VLOOKUP($A$26,Aggregates!$A$7:$T$200,8,FALSE))=0,"0.00",IF($A$26="",0,VLOOKUP($A$26,Aggregates!$A$7:$T$200,8,FALSE)*1/T28)) -> 0.28 | I27: =IF(IF($A$26="",0,VLOOKUP($A$26,Aggregates!$A$7:$T$200,9,FALSE))=0,"0.00",IF($A$26="",0,VLOOKUP($A$26,Aggregates!$A$7:$T$200,9,FALSE)*1/T28)) -> 0.13 | J27: =IF(IF($A$26="",0,VLOOKUP($A$26,Aggregates!$A$7:$T$200,10,FALSE))=0,"0.00",IF($A$26="",0,VLOOKUP($A$26,Aggregates!$A$7:$T$200,10,FALSE)*1/T28)) -> 0.15 | K27: =IF(IF($A$26="",0,VLOOKUP($A$26,Aggregates!$A$7:$T$200,11,FALSE))=0,"0.00",IF($A$26="",0,VLOOKUP($A$26,Aggregates!$A$7:$T$200,11,FALSE)*1/T28)) -> 0.00 | L27: =IF(IF($A$26="",0,VLOOKUP($A$26,Aggregates!$A$7:$T$200,12,FALSE))=0,"0.00",IF($A$26="",0,VLOOKUP($A$26,Aggregates!$A$7:$T$200,12,FALSE)*1/T28)) -> 0.00 | M27: =IF(IF($A$26="",0,VLOOKUP($A$26,Aggregates!$A$7:$T$200,13,FALSE))=0,"0.00",IF($A$26="",0,VLOOKUP($A$26,Aggregates!$A$7:$T$200,13,FALSE)*1/T28)) -> 0.00 | N27: =IF(IF($A$26="",0,VLOOKUP($A$26,Aggregates!$A$7:$T$200,14,FALSE))=0,"0.00",IF($A$26="",0,VLOOKUP($A$26,Aggregates!$A$7:$T$200,14,FALSE)*1/T28)) -> 0.00 | O27: =IF(IF($A$26="",0,VLOOKUP($A$26,Aggregates!$A$7:$T$200,15,FALSE))=0,"0.00",IF($A$26="",0,VLOOKUP($A$26,Aggregates!$A$7:$T$200,15,FALSE)*1/T28)) -> 0.00 | P27: =IF(IF($A$26="",0,VLOOKUP($A$26,Aggregates!$A$7:$T$200,16,FALSE))=0,"0.00",IF($A$26="",0,VLOOKUP($A$26,Aggregates!$A$7:$T$200,16,FALSE)*1/T28)) -> 0.00 | Q27: =IF(IF($A$26="",0,VLOOKUP($A$26,Aggregates!$A$7:$T$200,17,FALSE))=0,"0.00",IF($A$26="",0,VLOOKUP($A$26,Aggregates!$A$7:$T$200,17,FALSE)*1/T28)) -> 0.00 | S27: =IF(ISERROR(S26*100)=TRUE,"unknown",S26*100) -> 0.7 | T27: =LEFT(T26,15) -> CA-6 | U27: # of Agg. | V27: =IF(V26="none",0,1) -> 0 | W27: =IF(ISBLANK(A26)=TRUE,"",SUM(L27:Q27)) -> 0 | X27: =C26 -> 2.64
D28: =T27 -> CA-6 | E28: =IF(ISERROR(1-E26)=TRUE,"",1-E26) -> 1 | F28: =IF(ISERROR(1-F26)=TRUE,"",1-F26) -> 0.83 | G28: 0.56 | H28: 0.28 | I28: 0.15 | J28: 0 | K28: 0 | L28: 0 | M28: 0 | N28: 0 | O28: 0 | P28: 0 | Q28: 0 | S28: =IF($A$26="","",SUM(E27:Q27)) -> 1 | T28: =IF($A$26="","",SUM(VLOOKUP($A$26,Aggregates!$A$7:$T$200,5,FALSE)+VLOOKUP($A$26,Aggregates!$A$7:$T$200,6,FALSE)+VLOOKUP($A$26,Aggregates!$A$7:$T$200,7,FALSE)+VLOOKUP($A$26,Aggregates!$A$7:$T$200,8,FALSE)+VLOOKUP($A$26,Aggregates!$A$7:$T$200,9,FALSE)+VLOOKUP($A$26,Aggregates!$A$7:$T$200,10,FALSE)+VLOOKUP($A$26,Aggregates!$A$7:$T$200,11,FALSE)+VLOOKUP($A$26,Aggregates!$A$7:$T$200,12,FALSE)+VLOOKUP($A$26,Aggregates!$A$7:$T$200,13,FALSE)+VLOOKUP($A$26,Aggregates!$A$7:$T$200,14,FALSE)+VLOOKUP($A$26,Aggregates!$A$7:$T$200,15,FALSE)+VLOOKUP($A$26,Aggregates!$A$7:$T$200,16,FALSE)+VLOOKUP($A$26,Aggregates!$A$7:$T$200,17,FALSE))) -> 1 | U28: =COUNTA(A26,A29,A32,A35,A38) -> 3
A29: 3/4" GMQ -- CA-5 | B29: =IF(IF($A29="","",VLOOKUP($A29,Aggregates!$A$7:$T$200,2,FALSE))=0,"",IF($A29="","",VLOOKUP($A29,Aggregates!$A$7:$T$200,2,FALSE))) -> 3/4" GMQ | C29: =IF(IF($A29="","",VLOOKUP($A29,Aggregates!$A$7:$T$200,4,FALSE))=0,"",IF($A29="","",VLOOKUP($A29,Aggregates!$A$7:$T$200,4,FALSE))) -> 2.64 | D29: =T30 -> CA-5 | E29: =IF(ISERROR(E30)=TRUE,0,E30) -> 0.00 | F29: =IF(ISERROR(E29+F30)=TRUE,0,E29+F30) -> 0 | G29: 0 | H29: 0.26 | I29: 0.52 | J29: 0.97 | K29: 1 | L29: 1 | M29: 1 | N29: 1 | O29: 1 | P29: 1 | Q29: 1 | R29: =IF(IF($A29="","",VLOOKUP($A29,Aggregates!$A$7:$T$200,19,FALSE))=0,"",IF($A29="","",VLOOKUP($A29,Aggregates!$A$7:$T$200,19,FALSE))) -> 0.007 | S29: =IF(IF($A29="","",VLOOKUP($A29,Aggregates!$A$7:$T$200,19,FALSE))=0,"",IF($A29="","",VLOOKUP($A29,Aggregates!$A$7:$T$200,19,FALSE))) -> 0.007 | T29: =IF(IF($A29="","",VLOOKUP($A29,Aggregates!$A$7:$T$200,3,FALSE))=0,"",IF($A29="","",VLOOKUP($A29,Aggregates!$A$7:$T$200,3,FALSE))) -> CA-5 | V29: =IF(OR(ISERROR($B$29)=TRUE, ISERROR($C$29)=TRUE,ISERROR($E$30)=TRUE,ISERROR($F$30)=TRUE, ISERROR($G$30)=TRUE)=TRUE,"Error","none") -> none | Y29: =SUM(E29,G29,I29,J29,K29,L29,M29,N29,O29) -> 6.49
A30: =LEFT(A29,14) -> 3/4" GMQ -- CA | B30: =LEFT(B29,30) -> 3/4" GMQ | D30: =T30 -> CA-5 | E30: =IF(IF($A$29="",0,VLOOKUP($A$29,Aggregates!$A$7:$T$200,5,FALSE))=0,"0.00",IF($A$29="",0,VLOOKUP($A$29,Aggregates!$A$7:$T$200,5,FALSE)*1/T31)) -> 0.00 | F30: =IF(IF($A$29="",0,VLOOKUP($A$29,Aggregates!$A$7:$T$200,6,FALSE))=0,"0.00",IF($A$29="",0,VLOOKUP($A$29,Aggregates!$A$7:$T$200,6,FALSE)*1/T31)) -> 0.00 | G30: =IF(IF($A$29="",0,VLOOKUP($A$29,Aggregates!$A$7:$T$200,7,FALSE))=0,"0.00",IF($A$29="",0,VLOOKUP($A$29,Aggregates!$A$7:$T$200,7,FALSE)*1/T31)) -> 0.00 | H30: =IF(IF($A$29="",0,VLOOKUP($A$29,Aggregates!$A$7:$T$200,8,FALSE))=0,"0.00",IF($A$29="",0,VLOOKUP($A$29,Aggregates!$A$7:$T$200,8,FALSE)*1/T31)) -> 0.26 | I30: =IF(IF($A$29="",0,VLOOKUP($A$29,Aggregates!$A$7:$T$200,9,FALSE))=0,"0.00",IF($A$29="",0,VLOOKUP($A$29,Aggregates!$A$7:$T$200,9,FALSE)*1/T31)) -> 0.26 | J30: =IF(IF($A$29="",0,VLOOKUP($A$29,Aggregates!$A$7:$T$200,10,FALSE))=0,"0.00",IF($A$29="",0,VLOOKUP($A$29,Aggregates!$A$7:$T$200,10,FALSE)*1/T31)) -> 0.45 | K30: =IF(IF($A$29="",0,VLOOKUP($A$29,Aggregates!$A$7:$T$200,11,FALSE))=0,"0.00",IF($A$29="",0,VLOOKUP($A$29,Aggregates!$A$7:$T$200,11,FALSE)*1/T31)) -> 0.03 | L30: =IF(IF($A$29="",0,VLOOKUP($A$29,Aggregates!$A$7:$T$200,12,FALSE))=0,"0.00",IF($A$29="",0,VLOOKUP($A$29,Aggregates!$A$7:$T$200,12,FALSE)*1/T31)) -> 0.00 | M30: =IF(IF($A$29="",0,VLOOKUP($A$29,Aggregates!$A$7:$T$200,13,FALSE))=0,"0.00",IF($A$29="",0,VLOOKUP($A$29,Aggregates!$A$7:$T$200,13,FALSE)*1/T31)) -> 0.00 | N30: =IF(IF($A$29="",0,VLOOKUP($A$29,Aggregates!$A$7:$T$200,14,FALSE))=0,"0.00",IF($A$29="",0,VLOOKUP($A$29,Aggregates!$A$7:$T$200,14,FALSE)*1/T31)) -> 0.00 | O30: =IF(IF($A$29="",0,VLOOKUP($A$29,Aggregates!$A$7:$T$200,15,FALSE))=0,"0.00",IF($A$29="",0,VLOOKUP($A$29,Aggregates!$A$7:$T$200,15,FALSE)*1/T31)) -> 0.00 | P30: =IF(IF($A$29="",0,VLOOKUP($A$29,Aggregates!$A$7:$T$200,16,FALSE))=0,"0.00",IF($A$29="",0,VLOOKUP($A$29,Aggregates!$A$7:$T$200,16,FALSE)*1/T31)) -> 0.00 | Q30: =IF(IF($A$29="",0,VLOOKUP($A$29,Aggregates!$A$7:$T$200,17,FALSE))=0,"0.00",IF($A$29="",0,VLOOKUP($A$29,Aggregates!$A$7:$T$200,17,FALSE)*1/T31)) -> 0.00 | S30: =IF(ISERROR(S29*100)=TRUE,"unknown",S29*100) -> 0.7 | T30: =LEFT(T29,15) -> CA-5 | V30: =IF(V29="none",0,1) -> 0 | W30: =IF(ISBLANK(A29)=TRUE,"",SUM(L30:Q30)) -> 0 | X30: =C29 -> 2.64
D31: =T30 -> CA-5 | E31: =IF(ISERROR(1-E29)=TRUE,"",1-E29) -> 1 | F31: =IF(ISERROR(1-F29)=TRUE,"",1-F29) -> 1 | G31: =IF(ISERROR(1-G29)=TRUE,"",1-G29) -> 1 | H31: 0.74 | I31: 0.48 | J31: 0.03 | K31: 0 | L31: 0 | M31: 0 | N31: 0 | O31: 0 | P31: 0 | Q31: 0 | S31: =IF($A$29="","",SUM(E30:Q30)) -> 1 | T31: =IF($A$29="","",SUM(VLOOKUP($A$29,Aggregates!$A$7:$T$200,5,FALSE)+VLOOKUP($A$29,Aggregates!$A$7:$T$200,6,FALSE)+VLOOKUP($A$29,Aggregates!$A$7:$T$200,7,FALSE)+VLOOKUP($A$29,Aggregates!$A$7:$T$200,8,FALSE)+VLOOKUP($A$29,Aggregates!$A$7:$T$200,9,FALSE)+VLOOKUP($A$29,Aggregates!$A$7:$T$200,10,FALSE)+VLOOKUP($A$29,Aggregates!$A$7:$T$200,11,FALSE)+VLOOKUP($A$29,Aggregates!$A$7:$T$200,12,FALSE)+VLOOKUP($A$29,Aggregates!$A$7:$T$200,13,FALSE)+VLOOKUP($A$29,Aggregates!$A$7:$T$200,14,FALSE)+VLOOKUP($A$29,Aggregates!$A$7:$T$200,15,FALSE)+VLOOKUP($A$29,Aggregates!$A$7:$T$200,16,FALSE)+VLOOKUP($A$29,Aggregates!$A$7:$T$200,17,FALSE))) -> 1
A32: Midwest Concrete Materials -- MA-2 | B32: =IF(IF($A32="","",VLOOKUP($A32,Aggregates!$A$7:$T$200,2,FALSE))=0,"",IF($A32="","",VLOOKUP($A32,Aggregates!$A$7:$T$200,2,FALSE))) -> Midwest Concrete Materials | C32: =IF(IF($A32="","",VLOOKUP($A32,Aggregates!$A$7:$T$200,4,FALSE))=0,"",IF($A32="","",VLOOKUP($A32,Aggregates!$A$7:$T$200,4,FALSE))) -> 2.63 | D32: =T33 -> MA-2 | E32: =IF(ISERROR(E33)=TRUE,0,E33) -> 0.00 | F32: =IF(ISERROR(E32+F33)=TRUE,0,E32+F33) -> 0 | G32: 0 | H32: 0 | I32: 0 | J32: 0.04 | K32: 0.24 | L32: 0.5 | M32: 0.7 | N32: 0.91 | O32: 1 | P32: 1 | Q32: 1 | R32: =IF(IF($A32="","",VLOOKUP($A32,Aggregates!$A$7:$T$200,19,FALSE))=0,"",IF($A32="","",VLOOKUP($A32,Aggregates!$A$7:$T$200,19,FALSE))) -> 0.0163 | S32: =IF(IF($A32="","",VLOOKUP($A32,Aggregates!$A$7:$T$200,19,FALSE))=0,"",IF($A32="","",VLOOKUP($A32,Aggregates!$A$7:$T$200,19,FALSE))) -> 0.0163 | T32: =IF(IF($A32="","",VLOOKUP($A32,Aggregates!$A$7:$T$200,3,FALSE))=0,"",IF($A32="","",VLOOKUP($A32,Aggregates!$A$7:$T$200,3,FALSE))) -> MA-2 | V32: =IF(OR(ISERROR($B$32)=TRUE, ISERROR($C$32)=TRUE,ISERROR($E$33)=TRUE,ISERROR($F$33)=TRUE, ISERROR($G$33)=TRUE)=TRUE,"Error","none") -> none | Y32: =SUM(E32,G32,I32,J32,K32,L32,M32,N32,O32) -> 3.39
A33: =LEFT(A32,14) -> Midwest Concre | B33: =LEFT(B32,30) -> Midwest Concrete Materials | D33: =T33 -> MA-2 | E33: =IF(IF($A$32="",0,VLOOKUP($A$32,Aggregates!$A$7:$T$200,5,FALSE))=0,"0.00",IF($A$32="",0,VLOOKUP($A$32,Aggregates!$A$7:$T$200,5,FALSE)*1/T34)) -> 0.00 | F33: =IF(IF($A$32="",0,VLOOKUP($A$32,Aggregates!$A$7:$T$200,6,FALSE))=0,"0.00",IF($A$32="",0,VLOOKUP($A$32,Aggregates!$A$7:$T$200,6,FALSE)*1/T34)) -> 0.00 | G33: =IF(IF($A$32="",0,VLOOKUP($A$32,Aggregates!$A$7:$T$200,7,FALSE))=0,"0.00",IF($A$32="",0,VLOOKUP($A$32,Aggregates!$A$7:$T$200,7,FALSE)*1/T34)) -> 0.00 | H33: =IF(IF($A$32="",0,VLOOKUP($A$32,Aggregates!$A$7:$T$200,8,FALSE))=0,"0.00",IF($A$32="",0,VLOOKUP($A$32,Aggregates!$A$7:$T$200,8,FALSE)*1/T34)) -> 0.00 | I33: =IF(IF($A$32="",0,VLOOKUP($A$32,Aggregates!$A$7:$T$200,9,FALSE))=0,"0.00",IF(A$32="",0,VLOOKUP($A$32,Aggregates!$A$7:$T$200,9,FALSE)*1/T34)) -> 0.00 | J33: =IF(IF($A$32="",0,VLOOKUP($A$32,Aggregates!$A$7:$T$200,10,FALSE))=0,"0.00",IF($A$32="",0,VLOOKUP($A$32,Aggregates!$A$7:$T$200,10,FALSE)*1/T34)) -> 0.04 | K33: =IF(IF($A$32="",0,VLOOKUP($A$32,Aggregates!$A$7:$T$200,11,FALSE))=0,"0.00",IF($A$32="",0,VLOOKUP($A$32,Aggregates!$A$7:$T$200,11,FALSE)*1/T34)) -> 0.2 | L33: =IF(IF($A$32="",0,VLOOKUP($A$32,Aggregates!$A$7:$T$200,12,FALSE))=0,"0.00",IF($A$32="",0,VLOOKUP($A$32,Aggregates!$A$7:$T$200,12,FALSE)*1/T34)) -> 0.26 | M33: =IF(IF($A$32="",0,VLOOKUP($A$32,Aggregates!$A$7:$T$200,13,FALSE))=0,"0.00",IF($A$32="",0,VLOOKUP($A$32,Aggregates!$A$7:$T$200,13,FALSE)*1/T34)) -> 0.2 | N33: =IF(IF($A$32="",0,VLOOKUP($A$32,Aggregates!$A$7:$T$200,14,FALSE))=0,"0.00",IF($A$32="",0,VLOOKUP($A$32,Aggregates!$A$7:$T$200,14,FALSE)*1/T34)) -> 0.21 | O33: =IF(IF($A$32="",0,VLOOKUP($A$32,Aggregates!$A$7:$T$200,15,FALSE))=0,"0.00",IF($A$32="",0,VLOOKUP($A$32,Aggregates!$A$7:$T$200,15,FALSE)*1/T34)) -> 0.09 | P33: =IF(IF($A$32="",0,VLOOKUP($A$32,Aggregates!$A$7:$T$200,16,FALSE))=0,"0.00",IF($A$32="",0,VLOOKUP($A$32,Aggregates!$A$7:$T$200,16,FALSE)*1/T34)) -> 0.00 | Q33: =IF(IF($A$32="",0,VLOOKUP($A$32,Aggregates!$A$7:$T$200,17,FALSE))=0,"0.00",IF($A$32="",0,VLOOKUP($A$32,Aggregates!$A$7:$T$200,17,FALSE)*1/T34)) -> 0.00 | S33: =IF(ISERROR(S32*100)=TRUE,"unknown",S32*100) -> 1.63 | T33: =LEFT(T32,15) -> MA-2 | V33: =IF(V32="none",0,1) -> 0 | W33: =IF(ISBLANK(A32)=TRUE,"",SUM(L33:Q33)) -> 0.76 | X33: =C32 -> 2.63
D34: =T33 -> MA-2 | E34: =IF(ISERROR(1-E32)=TRUE,"",1-E32) -> 1 | F34: =IF(ISERROR(1-F32)=TRUE,"",1-F32) -> 1 | G34: 1 | H34: 1 | I34: 1 | J34: 0.96 | K34: 0.76 | L34: 0.5 | M34: 0.3 | N34: 0.09 | O34: -2.220446049e-16 | P34: -2.220446049e-16 | Q34: -2.220446049e-16 | S34: =IF($A$32="","",SUM(E33:Q33)) -> 1 | T34: =IF($A$32="","",SUM(VLOOKUP($A$32,Aggregates!$A$7:$T$200,5,FALSE)+VLOOKUP($A$32,Aggregates!$A$7:$T$200,6,FALSE)+VLOOKUP($A$32,Aggregates!$A$7:$T$200,7,FALSE)+VLOOKUP($A$32,Aggregates!$A$7:$T$200,8,FALSE)+VLOOKUP($A$32,Aggregates!$A$7:$T$200,9,FALSE)+VLOOKUP($A$32,Aggregates!$A$7:$T$200,10,FALSE)+VLOOKUP($A$32,Aggregates!$A$7:$T$200,11,FALSE)+VLOOKUP($A$32,Aggregates!$A$7:$T$200,12,FALSE)+VLOOKUP($A$32,Aggregates!$A$7:$T$200,13,FALSE)+VLOOKUP($A$32,Aggregates!$A$7:$T$200,14,FALSE)+VLOOKUP($A$32,Aggregates!$A$7:$T$200,15,FALSE)+VLOOKUP($A$32,Aggregates!$A$7:$T$200,16,FALSE)+VLOOKUP($A$32,Aggregates!$A$7:$T$200,17,FALSE))) -> 1
B35: =IF(IF($A35="","",VLOOKUP($A35,Aggregates!$A$7:$T$200,2,FALSE))=0,"",IF($A35="","",VLOOKUP($A35,Aggregates!$A$7:$T$200,2,FALSE))) ->  | C35: =IF(IF($A35="","",VLOOKUP($A35,Aggregates!$A$7:$T$200,4,FALSE))=0,"",IF($A35="","",VLOOKUP($A35,Aggregates!$A$7:$T$200,4,FALSE))) ->  | D35: =T36 ->  | E35: =IF(ISERROR(E36)=TRUE,0,E36) -> 0.00 | F35: =IF(ISERROR(E35+F36)=TRUE,0,E35+F36) -> 0 | G35: 0 | H35: 0 | I35: 0 | J35: 0 | K35: 0 | L35: 0 | M35: 0 | N35: 0 | O35: 0 | P35: 0 | Q35: 0 | R35: =IF(IF($A35="","",VLOOKUP($A35,Aggregates!$A$7:$T$200,19,FALSE))=0,"",IF($A35="","",VLOOKUP($A35,Aggregates!$A$7:$T$200,19,FALSE))) ->  | S35: =IF(IF($A35="","0",VLOOKUP($A35,Aggregates!$A$7:$T$200,19,FALSE))=0,"",IF($A35="","",VLOOKUP($A35,Aggregates!$A$7:$T$200,19,FALSE))) ->  | T35: =IF(IF($A35="","",VLOOKUP($A35,Aggregates!$A$7:$T$200,3,FALSE))=0,"",IF($A35="","",VLOOKUP($A35,Aggregates!$A$7:$T$200,3,FALSE))) ->  | V35: =IF(OR(ISERROR($B$35)=TRUE, ISERROR($C$35)=TRUE,ISERROR($E$36)=TRUE,ISERROR($F$36)=TRUE, ISERROR($G$36)=TRUE)=TRUE,"Error","none") -> none | Y35: =SUM(E35,G35,I35,J35,K35,L35,M35,N35,O35) -> 0
A36: =LEFT(A35,14) ->  | B36: =LEFT(B35,30) ->  | D36: =T36 ->  | E36: =IF(IF($A$35="",0,VLOOKUP($A$35,Aggregates!$A$7:$T$200,5,FALSE))=0,"0.00",IF($A$35="",0,VLOOKUP($A$35,Aggregates!$A$7:$T$200,5,FALSE)*1/T37)) -> 0.00 | F36: =IF(IF($A$35="",0,VLOOKUP($A$35,Aggregates!$A$7:$T$200,6,FALSE))=0,"0.00",IF($A$35="",0,VLOOKUP($A$35,Aggregates!$A$7:$T$200,6,FALSE)*1/T37)) -> 0.00 | G36: =IF(IF($A$35="",0,VLOOKUP($A$35,Aggregates!$A$7:$T$200,7,FALSE))=0,"0.00",IF($A$35="",0,VLOOKUP($A$35,Aggregates!$A$7:$T$200,7,FALSE)*1/T37)) -> 0.00 | H36: =IF(IF($A$35="",0,VLOOKUP($A$35,Aggregates!$A$7:$T$200,8,FALSE))=0,"0.00",IF($A$35="",0,VLOOKUP($A$35,Aggregates!$A$7:$T$200,8,FALSE)*1/T37)) -> 0.00 | I36: =IF(IF($A$35="",0,VLOOKUP($A$35,Aggregates!$A$7:$T$200,9,FALSE))=0,"0.00",IF($A$35="",0,VLOOKUP($A$35,Aggregates!$A$7:$T$200,9,FALSE)*1/T37)) -> 0.00 | J36: =IF(IF($A$35="",0,VLOOKUP($A$35,Aggregates!$A$7:$T$200,10,FALSE))=0,"0.00",IF($A$35="",0,VLOOKUP($A$35,Aggregates!$A$7:$T$200,10,FALSE)*1/T37)) -> 0.00 | K36: =IF(IF($A$35="",0,VLOOKUP($A$35,Aggregates!$A$7:$T$200,11,FALSE))=0,"0.00",IF($A$35="",0,VLOOKUP($A$35,Aggregates!$A$7:$T$200,11,FALSE)*1/T37)) -> 0.00 | L36: =IF(IF($A$35="",0,VLOOKUP($A$35,Aggregates!$A$7:$T$200,12,FALSE))=0,"0.00",IF($A$35="",0,VLOOKUP($A$35,Aggregates!$A$7:$T$200,12,FALSE)*1/T37)) -> 0.00 | M36: =IF(IF($A$35="",0,VLOOKUP($A$35,Aggregates!$A$7:$T$200,13,FALSE))=0,"0.00",IF($A$35="",0,VLOOKUP($A$35,Aggregates!$A$7:$T$200,13,FALSE)*1/T37)) -> 0.00 | N36: =IF(IF($A$35="",0,VLOOKUP($A$35,Aggregates!$A$7:$T$200,14,FALSE))=0,"0.00",IF($A$35="",0,VLOOKUP($A$35,Aggregates!$A$7:$T$200,14,FALSE)*1/T37)) -> 0.00 | O36: =IF(IF($A$35="",0,VLOOKUP($A$35,Aggregates!$A$7:$T$200,15,FALSE))=0,"0.00",IF($A$35="",0,VLOOKUP($A$35,Aggregates!$A$7:$T$200,15,FALSE)*1/T37)) -> 0.00 | P36: =IF(IF($A$35="",0,VLOOKUP($A$35,Aggregates!$A$7:$T$200,16,FALSE))=0,"0.00",IF($A$35="",0,VLOOKUP($A$35,Aggregates!$A$7:$T$200,16,FALSE)*1/T37)) -> 0.00 | Q36: =IF(IF($A$35="",0,VLOOKUP($A$35,Aggregates!$A$7:$T$200,17,FALSE))=0,"0.00",IF($A$35="",0,VLOOKUP($A$35,Aggregates!$A$7:$T$200,17,FALSE)*1/T37)) -> 0.00 | S36: =IF(ISERROR(S35*100)=TRUE,"unknown",S35*100) -> unknown | T36: =LEFT(T35,15) ->  | V36: =IF(V35="none",0,1) -> 0 | W36: =IF(ISBLANK(A35)=TRUE,"",SUM(L36:Q36)) ->  | X36: =C35 -> 
D37: =T36 ->  | E37: =IF(ISERROR(1-E35)=TRUE,"",1-E35) -> 1 | F37: =IF(ISERROR(1-F35)=TRUE,"",1-F35) -> 1 | G37: 1 | H37: 1 | I37: 1 | J37: 1 | K37: 1 | L37: 1 | M37: 1 | N37: 1 | O37: 1 | P37: 1 | Q37: 1 | S37: =IF($A$35="","",SUM(E36:Q36)) ->  | T37: =IF($A$35="","",SUM(VLOOKUP($A$35,Aggregates!$A$7:$T$200,5,FALSE)+VLOOKUP($A$35,Aggregates!$A$7:$T$200,6,FALSE)+VLOOKUP($A$35,Aggregates!$A$7:$T$200,7,FALSE)+VLOOKUP($A$35,Aggregates!$A$7:$T$200,8,FALSE)+VLOOKUP($A$35,Aggregates!$A$7:$T$200,9,FALSE)+VLOOKUP($A$35,Aggregates!$A$7:$T$200,10,FALSE)+VLOOKUP($A$35,Aggregates!$A$7:$T$200,11,FALSE)+VLOOKUP($A$35,Aggregates!$A$7:$T$200,12,FALSE)+VLOOKUP($A$35,Aggregates!$A$7:$T$200,13,FALSE)+VLOOKUP($A$35,Aggregates!$A$7:$T$200,14,FALSE)+VLOOKUP($A$35,Aggregates!$A$7:$T$200,15,FALSE)+VLOOKUP($A$35,Aggregates!$A$7:$T$200,16,FALSE)+VLOOKUP($A$35,Aggregates!$A$7:$T$200,17,FALSE))) -> 
B38: =IF(IF($A38="","",VLOOKUP($A38,Aggregates!$A$7:$T$200,2,FALSE))=0,"",IF($A38="","",VLOOKUP($A38,Aggregates!$A$7:$T$200,2,FALSE))) ->  | C38: =IF(IF($A38="","",VLOOKUP($A38,Aggregates!$A$7:$T$200,4,FALSE))=0,"",IF($A38="","",VLOOKUP($A38,Aggregates!$A$7:$T$200,4,FALSE))) ->  | D38: =T38 ->  | E38: =IF(ISERROR(E39)=TRUE,0,E39) -> 0.00 | F38: =IF(ISERROR(E38+F39)=TRUE,0,E38+F39) -> 0 | G38: 0 | H38: 0 | I38: 0 | J38: 0 | K38: 0 | L38: 0 | M38: 0 | N38: 0 | O38: 0 | P38: 0 | Q38: 0 | R38: =IF(IF($A38="","",VLOOKUP($A38,Aggregates!$A$7:$T$200,19,FALSE))=0,"",IF($A38="","",VLOOKUP($A38,Aggregates!$A$7:$T$200,19,FALSE))) ->  | S38: =IF(IF($A38="","",VLOOKUP($A38,Aggregates!$A$7:$T$200,19,FALSE))=0,"",IF($A38="","",VLOOKUP($A38,Aggregates!$A$7:$T$200,19,FALSE))) ->  | T38: =IF(IF($A38="","",VLOOKUP($A38,Aggregates!$A$7:$T$200,3,FALSE))=0,"",IF($A38="","",VLOOKUP($A38,Aggregates!$A$7:$T$200,3,FALSE))) ->  | V38: =IF(OR(ISERROR($B$38)=TRUE, ISERROR($C$38)=TRUE,ISERROR($E$39)=TRUE,ISERROR($F$39)=TRUE, ISERROR($G$27)=TRUE)=TRUE,"Error","none") -> none | Y38: =SUM(E38,G38,I38,J38,K38,L38,M38,N38,O38) -> 0
A39: =LEFT(A38,14) ->  | B39: =LEFT(B38,30) ->  | D39: =T38 ->  | E39: =IF(IF($A$38="",0,VLOOKUP($A$38,Aggregates!$A$7:$T$200,5,FALSE))=0,"0.00",IF($A$38="",0,VLOOKUP($A$38,Aggregates!$A$7:$T$200,5,FALSE)*1/T40)) -> 0.00 | F39: =IF(IF($A$38="",0,VLOOKUP($A$38,Aggregates!$A$7:$T$200,6,FALSE))=0,"0.00",IF($A$38="",0,VLOOKUP($A$38,Aggregates!$A$7:$T$200,6,FALSE)*1/T40)) -> 0.00 | G39: =IF(IF($A$38="",0,VLOOKUP($A$38,Aggregates!$A$7:$T$200,7,FALSE))=0,"0.00",IF($A$38="",0,VLOOKUP($A$38,Aggregates!$A$7:$T$200,7,FALSE)*1/T40)) -> 0.00 | H39: =IF(IF($A$38="",0,VLOOKUP($A$38,Aggregates!$A$7:$T$200,8,FALSE))=0,"0.00",IF($A$38="",0,VLOOKUP($A$38,Aggregates!$A$7:$T$200,8,FALSE)*1/T40)) -> 0.00 | I39: =IF(IF($A$38="",0,VLOOKUP($A$38,Aggregates!$A$7:$T$200,9,FALSE))=0,"0.00",IF($A$38="",0,VLOOKUP($A$38,Aggregates!$A$7:$T$200,9,FALSE)*1/T40)) -> 0.00 | J39: =IF(IF($A$38="",0,VLOOKUP($A$38,Aggregates!$A$7:$T$200,10,FALSE))=0,"0.00",IF($A$38="",0,VLOOKUP($A$38,Aggregates!$A$7:$T$200,10,FALSE)*1/T40)) -> 0.00 | K39: =IF(IF($A$38="",0,VLOOKUP($A$38,Aggregates!$A$7:$T$200,11,FALSE))=0,"0.00",IF($A$38="",0,VLOOKUP($A$38,Aggregates!$A$7:$T$200,11,FALSE)*1/T40)) -> 0.00 | L39: =IF(IF($A$38="",0,VLOOKUP($A$38,Aggregates!$A$7:$T$200,12,FALSE))=0,"0.00",IF($A$38="",0,VLOOKUP($A$38,Aggregates!$A$7:$T$200,12,FALSE)*1/T40)) -> 0.00 | M39: =IF(IF($A$38="",0,VLOOKUP($A$38,Aggregates!$A$7:$T$200,13,FALSE))=0,"0.00",IF($A$38="",0,VLOOKUP($A$38,Aggregates!$A$7:$T$200,13,FALSE)*1/T40)) -> 0.00 | N39: =IF(IF($A$38="",0,VLOOKUP($A$38,Aggregates!$A$7:$T$200,14,FALSE))=0,"0.00",IF($A$38="","",VLOOKUP($A$38,Aggregates!$A$7:$T$200,14,FALSE)*1/T40)) -> 0.00 | O39: =IF(IF($A$38="",0,VLOOKUP($A$38,Aggregates!$A$7:$T$200,15,FALSE))=0,"0.00",IF($A$38="",0,VLOOKUP($A$38,Aggregates!$A$7:$T$200,15,FALSE)*1/T40)) -> 0.00 | P39: =IF(IF($A$38="",0,VLOOKUP($A$38,Aggregates!$A$7:$T$200,16,FALSE))=0,"0.00",IF($A$38="",0,VLOOKUP($A$38,Aggregates!$A$7:$T$200,16,FALSE)*1/T40)) -> 0.00 | Q39: =IF(IF($A$38="",0,VLOOKUP($A$38,Aggregates!$A$7:$T$200,17,FALSE))=0,"0.00",IF($A$38="",0,VLOOKUP($A$38,Aggregates!$A$7:$T$200,17,FALSE)*1/T40)) -> 0.00 | S39: =IF(ISERROR(S38*100)=TRUE,"unknown",S38*100) -> unknown | T39: =LEFT(T38,15) ->  | V39: =IF(V38="none",0,1) -> 0 | W39: =IF(ISBLANK(A38)=TRUE,"",SUM(L39:Q39)) ->  | X39: =C38 -> 
D40: =T38 ->  | E40: =IF(ISERROR(1-E38)=TRUE,"",1-E38) -> 1 | F40: =IF(ISERROR(1-F38)=TRUE,"",1-F38) -> 1 | G40: 1 | H40: 1 | I40: 1 | J40: 1 | K40: 1 | L40: 1 | M40: 1 | N40: 1 | O40: 1 | P40: 1 | Q40: 1 | S40: =IF($A$38="","",SUM(E39:Q39)) ->  | T40: =IF($A$38="","",SUM(VLOOKUP($A$38,Aggregates!$A$7:$T$200,5,FALSE)+VLOOKUP($A$38,Aggregates!$A$7:$T$200,6,FALSE)+VLOOKUP($A$38,Aggregates!$A$7:$T$200,7,FALSE)+VLOOKUP($A$38,Aggregates!$A$7:$T$200,8,FALSE)+VLOOKUP($A$38,Aggregates!$A$7:$T$200,9,FALSE)+VLOOKUP($A$38,Aggregates!$A$7:$T$200,10,FALSE)+VLOOKUP($A$38,Aggregates!$A$7:$T$200,11,FALSE)+VLOOKUP($A$38,Aggregates!$A$7:$T$200,12,FALSE)+VLOOKUP($A$38,Aggregates!$A$7:$T$200,13,FALSE)+VLOOKUP($A$38,Aggregates!$A$7:$T$200,14,FALSE)+VLOOKUP($A$38,Aggregates!$A$7:$T$200,15,FALSE)+VLOOKUP($A$38,Aggregates!$A$7:$T$200,16,FALSE)+VLOOKUP($A$38,Aggregates!$A$7:$T$200,17,FALSE))) -> 
A41: Actual Aggregate | U41: Total
A42: Combined Gradation | B42: Cumulative | E42: =AJ69 -> 0 | F42: =E42+AJ70 -> 0.05521073795 | G42: =F42+AJ71 -> 0.1428983806 | H42: =G42+AJ72 -> 0.2874101916 | I42: =H42+AJ73 -> 0.3832066455 | J42: =I42+AJ74 -> 0.543417225 | K42: =J42+AJ75 -> 0.6434326417 | L42: =K42+AJ76 -> 0.7654162116 | M42: =L42+AJ77 -> 0.859249727 | N42: =M42+AJ78 -> 0.9577749181 | O42: =N42+AJ79 -> 1 | P42: =O42+AJ80 -> 1 | Q42: =P42+AJ81 -> 1 | U42: Errors | V42: =SUM(V27,V30,V33,V36,V39) -> 0
B43: Individual | E43: =E42 -> 0 | F43: =F42-E42 -> 0.05521073795 | G43: =G42-F42 -> 0.08768764263 | H43: 0.144511811 | I43: 0.09579645396 | J43: 0.1602105795 | K43: 0.1000154166 | L43: 0.12198357 | M43: 0.09383351535 | N43: 0.09852519112 | O43: 0.04222508191 | P43: 0 | Q43: 0
B44: Passing | E44: =1-E42 -> 1 | F44: =1-F42 -> 0.944789262 | G44: =1-G42 -> 0.8571016194 | H44: 0.7125898084 | I44: 0.6167933545 | J44: 0.456582775 | K44: 0.3565673583 | L44: 0.2345837884 | M44: 0.140750273 | N44: 0.04222508191 | O44: 0 | P44: 0 | Q44: 0
E46: *Blue: Percent Retained (DR) | R46: *Blue: Total Percent Retained (DR) | V46: Equivalent | W46: =MAX(W27,W30,W33,W36,W39) -> 0.76
R47: *Green: Total Percent Retained from | V47: Sand S.G. | W47: 2.6 | X47: =VLOOKUP(W46,W27:X39,2,FALSE) -> 2.63
R48: aggregates page - used for internally | W48: Note: Specific gravity is being used as 2.60.
R49: normalizing percent retained to 100% (DR) | W49: This is for conversion of cementitious
W50: materials to equivalent sand. Now using
W51: a 'standard' specific gravity. (DR)
P56: SHEET CALCULATIONS | X56: Linked Cells - User Input - Iterative Cells
AA57: Linked
J58: Cubic Equation: WF and CF relationship | AA58: Percent
L59: x | M59: y | Q59: Target | Z59: Sieve Size | AA59: Retained | AC59: *100
J60: A | K60: 2.169e-05 | L60: 75 | M60: =$K$60*L60^3+$K$61*L60^2+$K$62*L60+$K$63 -> 32.90941222 | Q60: CF | R60: WF | X60: Air | AC60: 8 | AG60: Top Sieve | AI60: # of Iterations | AJ60: 2
J61: B | K61: -0.00339758 | L61: 70 | M61: 33.55392427 | Q61: 59.55660691 | R61: 35 | X61: w/cm | Y61: 0.42 | AA61: min | AB61: max | AG61: Iteration
J62: C | K62: 0.02158694 | L62: 60 | M62: 35.00027887 | AA62: 2 | AB62: 6 | AC62: Target | AD62: Temp | AE62: Temp*100 | AG62: Final | AI62: Diff. | AJ62: SUM Diff. | AK62: Initial Diff | AL62: Diff*10000
J63: D | K63: =41.14931047+(35-34.898) -> 41.25131047 | L63: 50 | M63: 36.54795747 | Q63: Q | R63: =Q61*(100-R65)/100 -> 38.32066445 | X63: Top Sieve | Y63: 25 mm (1.0 in.) | Z63: =VLOOKUP(Y63,Calculations!K79:L83,2,FALSE) -> 25 | AA63: =AA62*1 -> 2 | AB63: =AB62*1 -> 6 | AC63: =AG63*1 -> 5.521073795 | AD63: 0.05521073795 | AE63: =AD63*100 -> 5.521073795 | AG63: 5.521073795 | AI63: =ABS(AG63-AC63) -> 0 | AJ63: =SUM(AI63:AI65) -> 0 | AK63: 5.521073795 | AL63: =AI63*10000 -> 0
L64: 40 | M64: 38.06682007 | Q64: I | R64: =100-R63-R65 -> 26.02259894 | X64: Pan | Y64: Pan | Z64: Pan | AA64: 0 | AC64: =AA64*100 -> 0 | AD64: 0 | AE64: =AD64*100 -> 0 | AI64: =ABS(AC64-AE64) -> 0 | AL64: =AI64*10000 -> 0
L65: 30 | M65: 39.42672667 | Q65: W | R65: =R61+AL89 -> 35.65673661 | X65: #200 | Y65: No. 200 | Z65: 0.075 | AA65: 0 | AC65: =AA65*100 -> 0 | AD65: 0 | AE65: =AD65*100 -> 0 | AI65: =ABS(AC65-AE65) -> 0 | AL65: =AI65*10000 -> 0
L66: 20 | M66: 40.49753727 | X66: TOP | Y66: COND. | AF66: Combined Gradation | AH66: Combined Gradation | AJ66: % | AK66: Actual | AL66: Actual | AM66: Gradation | AN66: NEW | AO66: GRADATIONS | AQ66: BY WT.
L67: 10 | M67: 41.14911187 | X67: SIEVE | Y67: SUM | AC67: Cubic #1 | AD67: Cubic #2 | AE67: Optimum | AJ67: Retained | AK67: Gradation | AL67: Gradation | AM67: with W | AN67: Retained | AO67: Optimum vs. Actual | AQ67: % Retained
L68: 0 | M68: 41.25131047 | U68: Sieve Designation & Size | X68: LOCATOR | Y68: (EQ. #8) | Z68: log(x)3 | AA68: log(x)2 | AB68: log(x) | AE68: Model | AF68: (% Retained) | AH68: (% Passing) | AJ68: per Sieve | AL68: %per Sieve | AM68: Correction | AN68: %per Sieve | AQ68: per Sieve
U69: a | V69: 1.5 | W69: 37.5 | X69: =IF(W69=Z63,1,0) -> 0 | Y69: =IF(Z63=W69,1,0) -> 0 | Z69: =LOG(W69)^3 -> 3.899779624 | AA69: =LOG(W69)^2 -> 2.477574432 | AB69: =LOG(W69) -> 1.574031268 | AC69: =Z69*$AA$96+AA69*$AA$97+AB69*$AA$98+$AA$99 -> -1.274642531 | AD69: =Z69*$AA$100+AA69*$AA$101+AB69*$AA$102+$AA$103 -> 10.35021023 | AE69: =Y69*AC69/100 -> 0 | AF69: =AJ69 -> 0 | AH69: =1-AF69 -> 1 | AJ69: =(E27*$Q$117+E30*$Q$118+E33*$Q$119+E36*$Q$120+E39*$Q$121)/1000 -> 0 | AK69: =AJ69*$AM$92 -> 0 | AL69: =AK69/$AM$92 -> 0 | AM69: =AK69 -> 0 | AN69: =AM69/$AN$83 -> 0 | AO69: =AL69-AE69 -> 0 | AP69: =IF(AO69>0.02,1,IF(AO69<-0.02,-1,0)) -> 0 | AQ69: =(F26*$U$117+F29*$U$118+F32*$U$119+F35*$U$120+F38*$U$121)/100 -> 0.055318
A70: Contact Information | B70: One | U70: b | V70: 1 | W70: 25 | X70: =IF(Z63=W70,1,0) -> 1 | Y70: =IF(Z63>=W70,1,0) -> 1 | Z70: 2.731905065 | AA70: 1.954236268 | AB70: 1.397940009 | AC70: 5.521073795 | AD70: 11.14018251 | AE70: 0.05521073795 | AF70: =AF69+AJ70 -> 0.05521073795 | AH70: =1-AF70 -> 0.944789262 | AJ70: =(F27*$Q$117+F30*$Q$118+F33*$Q$119+F36*$Q$120+F39*$Q$121)/1000 -> 0.05521073795 | AK70: 168.5031722 | AL70: =AK70/$AM$92 -> 0.05521073795 | AM70: 168.5031722 | AN70: 0.05577426101 | AO70: =AL70-AE70 -> 0 | AP70: =IF(AO70>0.02,1,IF(AO70<-0.02,-1,0)) -> 0 | AQ70: =(F27*$U$117+F30*$U$118+F33*$U$119+F36*$U$120+F39*$U$121)/100 -> 0.055318
A71: Company Name | B71: University of Kansas | P71: 8 Equations, 8 Unknowns | U71: c | V71: 3/4 | W71: 19 | X71: =IF(Z63=W71,1,0) -> 0 | Y71: =IF(Z63>=W71,1,0) -> 1 | Z71: 2.091031663 | AA71: 1.635210772 | AB71: 1.278753601 | AC71: 8.648454974 | AD71: 11.61791064 | AE71: 0.08648454974 | AF71: =AF70+AJ71 -> 0.1428983806 | AH71: 0.8571016194 | AJ71: =(G27*$Q$117+G30*$Q$118+G33*$Q$119+G36*$Q$120+G39*$Q$121)/1000 -> 0.08768764263 | AK71: =AJ71*$AM$92 -> 267.6226853 | AL71: 0.08768764263 | AM71: 267.6226853 | AN71: 0.08858264984 | AO71: 0.001203092893 | AP71: =IF(AO71>0.02,1,IF(AO71<-0.02,-1,0)) -> 0 | AQ71: =(G27*$U$117+G30*$U$118+G33*$U$119+G36*$U$120+G39*$U$121)/100 -> 0.087858
A72: Address1 | B72: CEAE Department | P72: # | Q72: Equations | U72: d | V72: 1/2 | W72: 12.5 | X72: =IF(Z63=W72,1,0) -> 0 | Y72: =IF(Z63>=W72,1,0) -> 1 | Z72: =LOG(W72)^3 -> 1.319814826 | AA72: 1.203211577 | AB72: 1.096910013 | AC72: 11.58407339 | AD72: 12.23993491 | AE72: 0.1158407339 | AF72: 0.2874101916 | AH72: 0.7125898084 | AJ72: =(H27*$Q$117+H30*$Q$118+H33*$Q$119+H36*$Q$120+H39*$Q$121)/1000 -> 0.144511811 | AK72: 441.0500471 | AL72: 0.144511811 | AM72: 441.0500471 | AN72: 0.1459868092 | AO72: 0.02867107703 | AP72: =IF(AO72>0.02,1,IF(AO72<-0.02,-1,0)) -> 1 | AQ72: =(H27*$U$117+H30*$U$118+H33*$U$119+H36*$U$120+H39*$U$121)/100 -> 0.144776
A73: Address2 | B73: 2150 Learned Hall | P73: 1 | Q73: Top Sieve and quantity retained | U73: e | V73: 3/8 | W73: 9.5 | X73: =IF(Z63=W73,1,0) -> 0 | Y73: =IF(Z63>=W73,1,0) -> 1 | Z73: 0.9346484748 | AA73: 0.9559434483 | AB73: 0.9777236053 | AC73: 12.56706228 | AD73: 12.56706228 | AE73: 0.1256706228 | AF73: 0.3832066455 | AH73: 0.6167933545 | AJ73: =(I27*$Q$117+I30*$Q$118+I33*$Q$119+I36*$Q$120+I39*$Q$121)/1000 -> 0.09579645396 | AK73: 292.3707775 | AL73: =AK73/$AM$92 -> 0.09579645396 | AM73: 292.3707775 | AN73: 0.09677422591 | AO73: -0.02987416888 | AP73: -1 | AQ73: =(I27*$U$117+I30*$U$118+I33*$U$119+I36*$U$120+I39*$U$121)/100 -> 0.095966
A74: Address3 | B74: 1530 W. 15th St. | P74: 2 | Q74: No. 200 quantity retained | U74: f | V74: No. 4 | W74: 4.75 | Y74: 1 | Z74: 0.3098676408 | AA74: 0.4579142413 | AB74: 0.6766936096 | AC74: 13.05600952 | AD74: 13.05600952 | AE74: 0.1305600952 | AF74: 0.543417225 | AH74: 0.456582775 | AJ74: =(J27*$Q$117+J30*$Q$118+J33*$Q$119+J36*$Q$120+J39*$Q$121)/1000 -> 0.1602105795 | AK74: 488.9626886 | AL74: 0.1602105795 | AM74: 488.9626886 | AN74: 0.1618458113 | AO74: 0.02965048426 | AP74: 1 | AQ74: =(J27*$U$117+J30*$U$118+J33*$U$119+J36*$U$120+J39*$U$121)/100 -> 0.160418
A75: City | B75: Lawrence | P75: 3 | Q75: No 3/8 = No. 3/8 | U75: g | V75: No. 8 | W75: 2.36 | Y75: 1 | Z75: 0.05185839685 | AA75: 0.139063362 | AB75: 0.372912003 | AC75: 12.96658942 | AD75: 12.96658942 | AE75: 0.1296658942 | AF75: 0.6434326417 | AH75: 0.3565673583 | AJ75: =(K27*$Q$117+K30*$Q$118+K33*$Q$119+K36*$Q$120+K39*$Q$121)/1000 -> 0.1000154166 | AK75: 305.2470516 | AL75: 0.1000154166 | AM75: 305.2470516 | AN75: 0.1010362506 | AO75: -0.02965047751 | AP75: -1 | AQ75: =(K27*$U$117+K30*$U$118+K33*$U$119+K36*$U$120+K39*$U$121)/100 -> 0.099832
A76: State | B76: Kansas | P76: 4 | Q76: No. 4 = No. 4 | U76: h | V76: No. 16 | W76: 1.18 | Y76: 1 | Z76: 0.0003714159832 | AA76: 0.005167022974 | AB76: 0.07188200731 | AC76: 15.16819922 | AD76: 12.18517217 | AE76: =AD76/100 -> 0.1218517217 | AF76: 0.7654162116 | AH76: 0.2345837884 | AJ76: =(L27*$Q$117+L30*$Q$118+L33*$Q$119+L36*$Q$120+L39*$Q$121)/1000 -> 0.12198357 | AK76: 372.2938555 | AL76: 0.12198357 | AM76: 372.2938555 | AN76: 0.1232286277 | AO76: 0.0001318482161 | AP76: 0 | AQ76: =(L27*$U$117+L30*$U$118+L33*$U$119+L36*$U$120+L39*$U$121)/100 -> 0.121732
A77: Zip Code | B77: 66045-7609 | P77: 5 | Q77: No. 8 = No. 8 | U77: I | V77: No. 30 | W77: 0.6 | Y77: 1 | Z77: -0.01091870056 | AA77: 0.04921686771 | AB77: -0.2218487496 | AC77: 22.24354254 | AD77: 10.6482329 | AE77: =AD77/100 -> 0.106482329 | AF77: 0.859249727 | AH77: 0.140750273 | AJ77: =(M27*$Q$117+M30*$Q$118+M33*$Q$119+M36*$Q$120+M39*$Q$121)/1000 -> 0.09383351535 | AK77: 286.3798889 | AL77: 0.09383351535 | AM77: 286.3798889 | AN77: 0.09479125204 | AO77: -0.0126488136 | AP77: 0 | AQ77: =(M27*$U$117+M30*$U$118+M33*$U$119+M36*$U$120+M39*$U$121)/100 -> 0.09364
A78: Telephone Number | B78: 785.864.3885 | J78: Pull-Down Menus | P78: 6 | Q78: Sum I | U78: j | V78: No. 50 | W78: 0.3 | Y78: 1 | Z78: -0.14295619 | AA78: 0.2734021823 | AB78: -0.5228787453 | AC78: 37.33309465 | AD78: 8.167308442 | AE78: =AD78/100 -> 0.08167308442 | AF78: 0.9577749181 | AH78: 0.04222508191 | AJ78: =(N27*$Q$117+N30*$Q$118+N33*$Q$119+N36*$Q$120+N39*$Q$121)/1000 -> 0.09852519112 | AK78: 300.6988833 | AL78: 0.09852519112 | AM78: 300.6988833 | AN78: 0.09953081465 | AO78: 0.01685210669 | AP78: 0 | AQ78: =(N27*$U$117+N30*$U$118+N33*$U$119+N36*$U$120+N39*$U$121)/100 -> 0.098322
A79: Fax Number | B79: 785.864.5631 | K79: 37.5 mm (1.5 in.) | L79: 37.5 | M79: 0.45 | N79: 0 | O79: 0 | P79: 7 | Q79: Sum W | U79: k | V79: No. 100 | W79: 0.15 | Y79: 1 | Z79: -0.5592903565 | AA79: 0.6788256134 | AB79: -0.8239087409 | AC79: 63.18028501 | AD79: 4.656023101 | AE79: =AD79/100 -> 0.04656023101 | AF79: 1 | AH79: 0 | AJ79: =($O$27*$Q$117+$O$30*$Q$118+$O$33*$Q$119+$O$36*$Q$120+$O$39*$Q$121)/1000 -> 0.04222508191 | AK79: 128.87095 | AL79: 0.04222508191 | AM79: 128.87095 | AN79: 0.04265606342 | AO79: -0.004335149104 | AP79: 0 | AQ79: =($O$27*$U$117+$O$30*$U$118+$O$33*$U$119+$O$36*$U$120+$O$39*$U$121)/100 -> 0.042138
A80: Contractor | B80: Quality Construction Co. | K80: 25 mm (1.0 in.) | L80: 25 | M80: 0.44 | N80: 1 | O80: 1 | P80: 8 | Q80: Sum Q | U80: l | V80: No. 200 | W80: 0.075 | Y80: 1 | Z80: -1.423595528 | AA80: 1.265487161 | AB80: -1.124938737 | AC80: 102.6311723 | AD80: 0 | AE80: =AD80/100 -> 0 | AF80: 1 | AH80: 0 | AJ80: =($P$27*$Q$117+$P$30*$Q$118+$P$33*$Q$119+$P$36*$Q$120+$P$39*$Q$121)/1000 -> 0 | AK80: 0 | AL80: 0 | AM80: 0 | AN80: 0 | AO80: 0 | AP80: 0 | AQ80: =($P$27*$U$117+$P$30*$U$118+$P$33*$U$119+$P$36*$U$120+$P$39*$U$121)/100 -> 0
A81: Project | B81: County Road 443 | K81: 19 mm (3/4 in.) | L81: 19 | M81: 0.43 | N81: 2 | O81: 2 | U81: m | V81: Pan | W81: =W80/2 -> 0.0375 | AE81: =AC64/100 -> 0 | AF81: 1 | AH81: 0 | AJ81: =(Q27*$Q$117+Q30*$Q$118+Q33*$Q$119+Q36*$Q$120+Q39*$Q$121)/1000 -> 0 | AK81: =AJ81*$AM$92 -> 0 | AL81: 0 | AM81: =AK81+$AM$91 -> -30.83630952 | AN81: -0.01020676557 | AO81: 0 | AP81: 0 | AQ81: =(Q27*$U$117+Q30*$U$118+Q33*$U$119+Q36*$U$120+Q39*$U$121)/100 -> 0
A82: Source of Concrete | B82: Ready Mix Concrete | K82: 12.5 mm (1/2 in.) | L82: 12.5 | M82: 0.42 | N82: 3 | O82: 3 | AD82: MINIMIZE
A83: Project Type | B83: LC-HPC Bridge Deck | K83: 9.5 mm (3/8 in.) | L83: 9.5 | M83: 0.41 | N83: 4 | O83: 4 | AF83: fineness modulus | AH83: =(SUM(AF69,AF71,AF73,AF74,AF75,AF76,AF77,AF78,AF79)) -> 5.295395749 | AI83: Sum | AJ83: =SUM(AJ69:AJ81) -> 1 | AK83: =SUM(AK69:AK81) -> 3052 | AL83: =SUM(AL69:AL81) -> 1 | AM83: =SUM(AM69:AM81) -> 3021.16369 | AN83: =SUM(AM91:AM92) -> 3021.16369
A84: Placement Type | B84: Conventional | M84: 0.4 | N84: 5 | O84: 5
A85: Report Number | M85: 0.39 | N85: 6 | O85: 6 | P85: OPTIMUM GRADATION SOLVE FOR MODEL CONSTANTS | AF85: Coarsness Factor | AJ85: =SUM(AJ69:AJ73)/(SUM(AJ69:AJ75))*100 -> 59.55660635 | AK85: =SUM(AQ69:AQ73)/(SUM(AQ69:AQ75))*100 -> 62.79410882
A86: Target Strength | M86: 0.38 | N86: 7 | O86: 7 | Q86: A | R86: B | S86: C | T86: D | U86: A' | V86: B' | W86: C' | X86: D' | AA86: Equals | AF86: Workability Factor | AJ86: =(SUM(AJ76:AJ81))/SUM(AJ69:AJ81)*100-AL89 -> 34.99999922 | AK86: =(SUM(AQ76:AQ81))/SUM(AQ69:AQ81)*100-AM89 -> 33.71798832 | AL86: W agg | AN86: W corr
A87: Prepared By | B87: Jiqiu Yuan | M87: 0.37 | N87: 8 | O87: 8 | P87: #1 | Q87: =SUMPRODUCT(X69:X73,Z69:Z73) -> 2.731905065 | R87: =SUMPRODUCT(X69:X73,AA69:AA73) -> 1.954236268 | S87: =SUMPRODUCT(X69:X73,AB69:AB73) -> 1.397940009 | T87: 1 | U87: 0 | V87: 0 | W87: 0 | X87: 0 | Y87: A | AA87: =AC63 -> 5.521073795 | AG87: Squared Difference | AL87: =SUM(AL76:AL81) -> 0.3565673583 | AN87: =SUM(AN76:AN81) -> 0.3499999922
A88: Target Slump | B88: 3 | M88: 0.36 | N88: 9 | O88: 9 | P88: #2 | Q88: 0 | R88: 0 | S88: 0 | T88: 0 | U88: =Z80 -> -1.423595528 | V88: =AA80 -> 1.265487161 | W88: =AB80 -> -1.124938737 | X88: =1 -> 1 | Y88: B | AA88: =AC65 -> 0 | AD88: No. 8 - No. 4 | AG88: =(AE69-AJ69)^2 -> 0 | AH88: 1.5 | AL88: (Wagg-Wcorr)*100
A89: Slump Tolerance | B89: 0.5 | M89: 0.35 | N89: 10 | O89: 10 | P89: #3 | Q89: =Z73 -> 0.9346484748 | R89: 0.9559434483 | S89: 0.9777236053 | T89: 1 | U89: =-Z73 -> -0.9346484748 | V89: -0.9559434483 | W89: -0.9777236053 | X89: -1 | Y89: C | AA89: 0 | AD89: =ABS(AE75-AE74) -> 0.0008942010764 | AG89: 4.333342375e-34 | AH89: 1 | AL89: =(AL87-AN87)*100 -> 0.6567366131
A90: Hold Chart Toolbar calculation page | B90: 0 | P90: #4 | Q90: 0.3098676408 | R90: 0.4579142413 | S90: 0.6766936096 | T90: 1 | U90: -0.3098676408 | V90: -0.4579142413 | W90: -0.6766936096 | X90: -1 | Y90: D | Z90: = | AA90: 0 | AD90: 3/8" - No. 4 | AE90: =SUM(AD89,AD91,AD93) -> 0.009778944773 | AG90: 1.44743251e-06 | AH90: 3/4
A91: Hold chart toolbar program v.3 page | B91: 0 | J91: W-Section Correction | P91: #5 | Q91: 0.05185839685 | R91: 0.139063362 | S91: 0.372912003 | T91: 1 | U91: -0.05185839685 | V91: -0.139063362 | W91: -0.372912003 | X91: -1 | Y91: A' | AA91: 0 | AD91: =ABS(AE74-AE73) -> 0.004889472386 | AG91: 0.0008220306583 | AH91: 1/2 | AK91: W Correction | AM91: =M101 -> -30.83630952 | AN91: (lbs)
M92: ft3 | P92: #6 | Q92: =SUM(Z74:Z75) -> 0.3617260377 | R92: =SUM(AA74:AA75) -> 0.5969776033 | S92: =SUM(AB74:AB75) -> 1.049605613 | T92: =SUM(Y74:Y75) -> 2 | U92: 0 | V92: 0 | W92: 0 | X92: 0 | Y92: B' | AA92: =Calculations!R64 -> 26.02259894 | AD92: 3/8"-No. 8 | AG92: 0.0008924659665 | AH92: 3/8 | AK92: Total Aggregate Wt. | AM92: =SUM(T117:T121) -> 3052 | AN92: (lbs)
L93: V CM | M93: =IF(ISBLANK('Program v.3'!K19)=TRUE,"--",'Program v.3'!K19/('Program v.3'!J19*62.4)) -> 2.679286859 | P93: #7 | Q93: 0 | R93: 0 | S93: 0 | T93: 0 | U93: =SUM(Z76:Z80) -> -2.136389359 | V93: =SUM(AA76:AA80) -> 2.272098847 | W93: =SUM(AB76:AB80) -> -2.621692965 | X93: 5 | Y93: C' | AA93: =Calculations!R65-AC64 -> 35.65673661 | AD93: =ABS(AE73-AE75) -> 0.00399527131 | AG93: 0.0008791512171 | AH93: No. 4
L94: V MA1 | M94: =IF(ISBLANK('Program v.3'!K20)=TRUE,"--",'Program v.3'!K20/('Program v.3'!J20*62.4)) -> -- | P94: #8 | Q94: =SUMPRODUCT(Y69:Y73,Z69:Z73) -> 7.077400029 | R94: =SUMPRODUCT(Y69:Y73,AA69:AA73) -> 5.748602065 | S94: =SUMPRODUCT(Y69:Y73,AB69:AB73) -> 4.751327228 | T94: =SUM(Y69:Y73) -> 4 | U94: 0 | V94: 0 | W94: 0 | X94: 0 | Y94: D' | AA94: =Calculations!R63 -> 38.32066445 | AG94: 0.0008791508166 | AH94: No. 8
L95: V MA2 | M95: =IF(ISBLANK('Program v.3'!K21)=TRUE,"--",'Program v.3'!K21/('Program v.3'!J21*62.4)) -> -- | AD95: MINIMIZE | AG95: 1.738395208e-08 | AH95: No. 16
L96: V MA3 | M96: =IF(ISBLANK('Program v.3'!K22)=TRUE,"--",'Program v.3'!K22/('Program v.3'!J22*62.4)) -> -- | P96: #1 | Q96: =MINVERSE(Q87:X94) -> 8.643123805 | R96: 1.224759401 | S96: -3.025648426 | T96: 9.044639121 | U96: -7.861551078 | V96: 3.193810431 | W96: -0.6134639569 | X96: -3.297046071 | Y96: =AA87 -> 5.521073795 | AA96: =MMULT(Q96:X103,Y96:Y103) -> -17.3885466 | AB96: A | AD96: (WF'-WF)^2 | AG96: 0.0001599924856 | AH96: No. 30
L97: V MA4 | M97: =IF(ISBLANK('Program v.3'!K23)=TRUE,"--",'Program v.3'!K23/('Program v.3'!J23*62.4)) -> -- | P97: #2 | Q97: -18.99939964 | R97: -3.599158406 | S97: 8.891369165 | T97: -26.57917049 | U97: 23.10247028 | V97: -8.371512048 | W97: 1.802765471 | X97: 7.581938698 | Y97: 0 | AA97: 32.08007425 | AB97: B | AD97: =(Calculations!AJ86-Calculations!R61)^2 -> 6.08087991e-13 | AG97: 0.0002839935 | AH97: No. 50
N98: 6-Sack Mix | P98: #3 | Q98: 11.92164937 | R98: 3.246780318 | S98: -8.02085353 | T98: 23.97691846 | U98: -20.84060698 | V98: 5.971072072 | W98: -1.626264473 | X98: -4.744812868 | Y98: 0 | AA98: -18.60854604 | AB98: C | AE98: =SUM(AD97,AD100) -> 9.210398028e-13 | AG98: 1.879351775e-05 | AH98: No. 100
L99: Σ | M99: =SUM(M93:M97) -> 2.679286859 | N99: =(94*6)/(3.15*62.4) -> 2.869352869 | P99: #4 | Q99: -2.14862848 | R99: -0.8511246256 | S99: 2.102620223 | T99: -6.285410083 | U99: 5.463244221 | V99: -0.7124749769 | W99: 0.4263157975 | X99: 0.8232810178 | Y99: 0 | Z99: = | AA99: 16.34651877 | AB99: D | AD99: (CF'-CF)^2 | AG99: 0 | AH99: No. 200
P100: #5 | Q100: -0.5048811087 | R100: -0.8551487879 | S100: -0.9349782511 | T100: 1.055983422 | U100: 0.7241320093 | V100: -0.7838993766 | W100: 0.3400571936 | X100: 0.3068856705 | Y100: 0 | AA100: 0.6988076424 | AB100: A' | AD100: =(Calculations!AJ85-Calculations!Q61)^2 -> 3.129518117e-13 | AG100: 0 | AH100: Pan
J101: Equivalent Weight of Sand | M101: =(M99-N99)*$W$47*62.4 -> -30.83630952 | N101: (lbs) | P101: #6 | Q101: -0.4533819978 | R101: 0.6175002348 | S101: -0.8396081773 | T101: 0.5517155398 | U101: 0.253713785 | V101: -0.3073847343 | W101: -0.1303358175 | X101: 0.2755825797 | Y101: 26.02259894 | AA101: -4.588947477 | AB101: B' | AG101: =SUM(AG88:AG100) -> 0.003937042978 | AH101: SUM
P102: #7 | Q102: 0.2252723547 | R102: 0.5874692918 | S102: 0.4171769325 | T102: -1.006687146 | U102: -0.8586187235 | V102: 0.8852862604 | W102: -0.4071196457 | X102: -0.1369289847 | Y102: 35.65673661 | AA102: 4.517426942 | AB102: C'
P103: #8 | Q103: 0.1084202068 | R103: -0.3379576467 | S103: 0.2007810028 | T103: -0.3273570208 | U103: -0.2560939092 | V103: 0.2689285949 | W103: 0.1910575439 | X103: -0.06590186735 | Y103: 38.32066445 | AA103: 11.88390211 | AB103: D'
P105: MIX DESIGN
P106: Cement / Water / Air | Q106: lbs / % | R106: S.G. | S106: ft3
P107: Water Content | Q107: =Y61*SUM(Q110:Q114) -> 224.7 | S107: =ROUND(Q107/62.4,2) -> 3.6
P108: Water Content - Admixtures | Q108: =ROUND(Y61*H8-SUM(U125:U129,U130),0) -> 224 | R108: 1 | S108: =ROUND(Q108/62.4,2) -> 3.59
P109: Air Content | Q109: =AC60 -> 8 | R109: NA | S109: =ROUND(Q109/100*27,2) -> 2.16 | U109: %Blend | V109: % Paste | W109: =SUM(S110:S114,Q107/62.4)/27 -> 0.2326282051
P110: =B3 -> Type I/II Cement | Q110: =H3 -> 535 | R110: =E3 -> 3.2 | S110: =IF(Q110=0,"",ROUND(Q110/(62.4*R110),2)) -> 2.68 | U110: =IF(SUM($Q$110:$Q$114)=0,0,ROUND(Q110/(SUM($Q$110:$Q$114))*100,1)) -> 100
P111: =B4 ->  | Q111: =H4 -> 0 | R111: =E4 ->  | S111: =IF(Q111=0,"",ROUND(Q111/(62.4*R111),2)) ->  | U111: =IF(SUM($Q$110:$Q$114)=0,0,ROUND(Q111/(SUM($Q$110:$Q$114))*100,1)) -> 0
P112: =B5 ->  | Q112: =H5 -> 0 | R112: =E5 ->  | S112: =IF(Q112=0,"",ROUND(Q112/(62.4*R112),2)) ->  | U112: =IF(SUM($Q$110:$Q$114)=0,0,ROUND(Q112/(SUM($Q$110:$Q$114))*100,1)) -> 0
P113: =B6 ->  | Q113: =H6 -> 0 | R113: =E6 ->  | S113: =IF(Q113=0,"",ROUND(Q113/(62.4*R113),2)) ->  | U113: =IF(SUM($Q$110:$Q$114)=0,0,ROUND(Q113/(SUM($Q$110:$Q$114))*100,1)) -> 0
O114: Original % | P114: =B7 ->  | Q114: =H7 -> 0 | R114: =E7 ->  | S114: =IF(Q114=0,"",ROUND(Q114/(62.4*R114),2)) ->  | U114: =IF(SUM($Q$110:$Q$114)=0,0,ROUND(Q114/(SUM($Q$110:$Q$114))*100,1)) -> 0 | Y114: CHECKS BY DR
O115: Temporary | Q115: VOLUME | U115: WEIGHT | Y115: Volume | Z115: Weight
O116: % Blend | P116: Aggregates | Q116: %Blend | R116: S.G. | S116: ft3 | T116: lbs. | U116: Blend % | V116: round ft3 | W116: Min % | X116: Max % | Y116: % Blend | Z116: % Blend
O117: 324.7690468 | P117: =IF(B26="",0,B26) -> 1-1/2" PCCP GMQ | Q117: 324.7690468 | R117: =IF(C26="",1,C26) -> 2.64 | S117: =IF(T117="","",T117/62.4/R117) -> 6.02782634 | T117: =IF(P117=0,"",ROUND(Q117/1000*$T$122*(R117/$R$122),0)) -> 993 | U117: =IF(T117="",0,ROUND(100*T117/SUM($T$117:$T$121),2)) -> 32.54 | V117: =IF(P117=0,"",T117/(R117*62.4)) -> 6.02782634 | W117: =IF(ISBLANK('Program v.3'!I48)=TRUE,0,'Program v.3'!I48*1000) -> 0 | X117: =IF(ISBLANK('Program v.3'!J48)=TRUE,1000,'Program v.3'!J48*1000) -> 1000 | Y117: =IF(T117="","",ROUND((T117/(R117*62.4))/($T$122/(62.4*$R$122))*100,1)) -> 32.5 | Z117: =T117/$Z$123 -> 0.3253533277
O118: 206.0633765 | P118: =IF(B29="",0,B29) -> 3/4" GMQ | Q118: 206.0633765 | R118: =IF(C29="",1,C29) -> 2.64 | S118: =IF(T118="","",T118/62.4/R118) -> 3.824300699 | T118: =IF(P118=0,"",ROUND(Q118/1000*$T$122*(R118/$R$122),0)) -> 630 | U118: =IF(T118="",0,ROUND(100*T118/SUM($T$117:$T$121),2)) -> 20.64 | V118: =IF(P118=0,"",T118/(R118*62.4)) -> 3.824300699 | W118: =IF(ISBLANK('Program v.3'!I49)=TRUE,0,'Program v.3'!I49*1000) -> 0 | X118: =IF(ISBLANK('Program v.3'!J49)=TRUE,1000,'Program v.3'!J49*1000) -> 1000 | Y118: =IF(T118="","",ROUND((T118/(R118*62.4))/($T$122/(62.4*$R$122))*100,1)) -> 20.6 | Z118: =T118/$Z$123 -> 0.2064175191
O119: 469.1675768 | P119: =IF(B32="",0,B32) -> Midwest Concrete Materials | Q119: 469.1675768 | R119: =IF(C32="",1,C32) -> 2.63 | S119: =IF(T119="","",T119/62.4/R119) -> 8.707468071 | T119: =IF(P119=0,"",ROUND(Q119/1000*$T$122*(R119/$R$122),0)) -> 1429 | U119: =IF(T119="",0,ROUND(100*T119/SUM($T$117:$T$121),2)) -> 46.82 | V119: =IF(P119=0,"",T119/(R119*62.4)) -> 8.707468071 | W119: =IF(ISBLANK('Program v.3'!I50)=TRUE,0,'Program v.3'!I50*1000) -> 0 | X119: =IF(ISBLANK('Program v.3'!J50)=TRUE,1000,'Program v.3'!J50*1000) -> 1000 | Y119: =IF(T119="","",ROUND((T119/(R119*62.4))/($T$122/(62.4*$R$122))*100,1)) -> 46.9 | Z119: =T119/$Z$123 -> 0.4682073568
O120: 0 | P120: =IF(B35="",0,B35) -> 0 | Q120: 0 | R120: =IF(C35="",1,C35) -> 1 | S120: =IF(T120="","",T120/62.4/R120) ->  | T120: =IF(P120=0,"",ROUND(Q120/1000*$T$122*(R120/$R$122),0)) ->  | U120: =IF(T120="",0,ROUND(100*T120/SUM($T$117:$T$121),2)) -> 0 | V120: =IF(P120=0,"",T120/(R120*62.4)) ->  | W120: =IF(ISBLANK('Program v.3'!I51)=TRUE,0,'Program v.3'!I51*1000) -> 0 | X120: =IF(ISBLANK('Program v.3'!J51)=TRUE,1000,'Program v.3'!J51*1000) -> 1000 | Y120: =IF(T120="","",ROUND((T120/(R120*62.4))/($T$122/(62.4*$R$122))*100,1)) ->  | Z120: =T120/$Z$123 -> 
O121: 0 | P121: =IF(B38="",0,B38) -> 0 | Q121: 0 | R121: =IF(C38="",1,C38) -> 1 | S121: =IF(T121="","",T121/62.4/R121) ->  | T121: =IF(P121=0,"",ROUND(Q121/1000*$T$122*(R121/$R$122),0)) ->  | U121: =IF(T121="",0,ROUND(100*T121/SUM($T$117:$T$121),2)) -> 0 | V121: =IF(P121=0,"",T121/(R121*62.4)) ->  | W121: =IF(ISBLANK('Program v.3'!I52)=TRUE,0,'Program v.3'!I52*1000) -> 0 | X121: =IF(ISBLANK('Program v.3'!J52)=TRUE,1000,'Program v.3'!J52*1000) -> 1000 | Y121: =IF(T121="","",ROUND((T121/(R121*62.4))/($T$122/(62.4*$R$122))*100,1)) ->  | Z121: =T121/$Z$123 -> 
P122: Sum | Q122: =SUM(Q117:Q121) -> 1000 | R122: 2.6 | S122: =27-SUM(S108:S114,V125:V129,V130) -> 18.56 | T122: =62.4*R122*S122 -> 3011.1744 | U122: =SUM(U117:U121) -> 100 | V122: =SUM(V117:V121) -> 18.55959511 | Z122: =SUM(Z117:Z121) -> 
U123: =SUM(T117:T120) -> 3052 | Z123: =62.4*(O117/1000*S122*R117+O118/1000*S122*R118+O119/1000*S122*R119+O120/1000*S122*R120+O121/1000*S122*R121) -> 3052.066524
P124: Admixtures | Q124: ft3 | R124: SG | S124: % Solids | T124: lbs Admix | U124: lbs Water | V124: ft3 Water
P125: =B17 -> Superplasticizer | Q125: =IF(ISBLANK(A17)=TRUE,"",K17*0.001044379) -> 0.01044379 | R125: =J17 -> 1.2 | S125: =I17 -> 0.3 | T125: =IF(Q125="",0,Q125*R125*62.4) -> 0.7820309952 | U125: =IF(ISBLANK(A17)=TRUE,0,T125*(1-S125)) -> 0.5474216966 | V125: =IF(A17="","0",ROUND(U125/62.4,2)) -> 0.01
P126: =B18 ->  | Q126: =IF(ISBLANK(A18)=TRUE,"",K18*0.001044379) ->  | R126: =J18 ->  | S126: =I18 ->  | T126: =IF(Q126="",0,Q126*R126*62.4) -> 0 | U126: =IF(ISBLANK(A18)=TRUE,0,T126*(1-S126)) -> 0 | V126: =ROUND(U126/62.4,2) -> 0
P127: =B19 ->  | Q127: =IF(ISBLANK(A19)=TRUE,"",K19*0.001044379) ->  | R127: =J19 ->  | S127: =I19 ->  | T127: =IF(Q127="",0,Q127*R127*62.4) -> 0 | U127: =IF(ISBLANK(A19)=TRUE,0,T127*(1-S127)) -> 0 | V127: =ROUND(U127/62.4,2) -> 0
P128: =B20 ->  | Q128: =IF(ISBLANK(A20)=TRUE,"",K20*0.001044379) ->  | R128: =J20 ->  | S128: =I20 ->  | T128: =IF(Q128="",0,Q128*R128*62.4) -> 0 | U128: =IF(ISBLANK(A20)=TRUE,0,T128*(1-S128)) -> 0 | V128: =ROUND(U128/62.4,2) -> 0
P129: =B21 ->  | Q129: =IF(ISBLANK(A21)=TRUE,"",K21*0.001044379) ->  | R129: =J21 ->  | S129: =I21 ->  | T129: =IF(Q129="",0,Q129*R129*62.4) -> 0 | U129: =IF(ISBLANK(A21)=TRUE,0,T129*(1-S129)) -> 0 | V129: =ROUND(U129/62.4,2) -> 0
P130: =B12 -> Air Entraining Agent | Q130: =I12*0.001044379 -> 0.004177516 | R130: =K12 -> 1.01 | S130: =J12 -> 0.3 | T130: =IF(Q130=0,0,Q130*R130*62.4) -> 0.2632837684 | U130: =IF(ISBLANK(A12)=TRUE,0,T130*(1-S130)) -> 0.1842986379 | V130: =ROUND(U130/62.4,2) -> 0
P132: Unit Weight, lb/ft3 | Q132: =SUM(Q107,Q110:Q114,T117:T121)/27 -> 141.1740741
Y134: Sum of Volume | Z134: =IF(S108="",0,S108)+IF(S109="",0,S109)+IF(S110="",0,S110)+IF(S111="",0,S111)+IF(S112="",0,S112)+IF(S113="",0,S113)+IF(S114="",0,S114)+IF(V117="",0,V117)+IF(V118="",0,V118)+IF(V119="",0,V119)+IF(V120="",0,V120)+IF(V121="",0,V121)+IF(V125="",0,V125)+IF(V126="",0,V126)+IF(V127="",0,V127)+IF(V128="",0,V128)+IF(V129="",0,V129)+IF(V130="",0,V130) -> 26.99959511
